{"text_format":"1","workbook":"xlsx","n_sheets":15,"sheets":["Index","General Info","Financial Results","Cash Flow Direct","Cash Flow Indirect","Asset Liabilities","Segment","Impact of Audit Qualification","Financial details","Audit qualification","Related Party Transactions","SOD","OS Default on Loans & Debt Sec.","Taxonomy","TextBlock"],"not_rendered":{"charts":0,"images":1,"macros":1,"external_links":0,"defined_names":6,"comments":0,"pivot_tables":0},"unopened":[],"bounds":{"document_bytes":16777216,"sheet_cells":100000,"rows_first":2000,"rows_last":500,"rows_between":2000,"halvings":0,"cell_chars":16384,"cell_head_chars":4096},"cells_cut":0,"cells_raw":0,"read":"whole","date_system":"1900"}

{"sheet":"Index","index":0,"n_rows":59,"n_cols":10,"rows_kept":59,"cut":false,"hidden":false,"merged":[[56,3,56,9],[57,3,57,9],[58,3,58,9],[44,3,44,9],[45,3,45,9],[54,3,54,9],[55,3,55,9],[53,3,53,9],[48,3,48,9],[51,3,51,9],[52,3,52,9],[41,3,41,9],[42,3,42,9],[43,3,43,9],[46,3,46,9],[47,3,47,9],[20,3,20,9],[5,4,5,8],[6,5,6,8],[7,5,7,8],[8,5,8,8],[9,5,9,8],[13,3,13,9],[14,3,14,9],[17,3,17,9],[18,3,18,9],[19,3,19,9],[10,5,10,8],[23,3,23,9],[31,4,31,8],[32,4,32,8],[21,3,21,9],[22,3,22,9],[26,3,26,9],[27,4,27,8],[28,4,28,8],[29,4,29,8],[30,4,30,8],[38,4,38,8],[33,4,33,8],[34,4,34,8],[35,4,35,8],[36,4,36,8],[37,4,37,8]]}
[]
[]
[]
[]
[]
[null,null,null,null,"                                      XBRL Excel Utility"]
[null,null,null,null,"1.","Overview"]
[null,null,null,null,"2.","Before you begin"]
[null,null,null,null,"3.","Index"]
[null,null,null,null,"4.","Steps for filing - Integrated Filing (Finance)_Other than Banks"]
[null,null,null,null,"5.","Fill up the data in excel utility"]
[]
[]
[null,null,null,"1. Overview"]
[null,null,null,"The excel utility can be used for creating the XBRL/XML file for efiling of Integrated Filing (Finance)_Other than Banks"]
[]
[]
[null,null,null," 2.  Before you begin"]
[null,null,null,"1. The version of Microsoft Excel in your system should be Microsoft Office Excel 2007 and above."]
[null,null,null,"2. The system should have a file compression software to unzip excel utility file."]
[null,null,null,"3. Make sure that you have downloaded the latest Excel Utility from NSE Website to your local system."]
[null,null,null,"4. Make sure that you have downloaded the Chrome Browser to view report generated from Excel utility"]
[null,null,null,"5. Please enable the Macros (if disabled) as per instructions given in manual, so that all the functionalities of  Excel Utility works fine. Please first go through Enable Macro - Manual attached with zip file."]
[null,null,null,"6. Kindly use this file in local system instead of OneDrive/shared drive.\nBecause it may gives an error \"Run-time error '52' : Bad file name or number\" While clicking on textblock button if files saved on OneDrive/shared drive."]
[]
[]
[null,null,null,"3. Index "]
[null,null,null,1,"Details of general information about company",null,null,null,null,"General Info"]
[null,null,null,{"$f":"+D28+1","v":2},"Financial Result By Companies Other than Banks",null,null,null,null,"Financial Results"]
[null,null,null,{"$f":"+D29+1","v":3},"Statement of Asset and Liabilities",null,null,null,null,"Asset Liabilities"]
[null,null,null,4,"Format of Reporting of Segment wise Revenue, Result and Capital Employed along with the quarterly results",null,null,null,null,"Segment"]
[null,null,null,5,"Cash Flow Direct",null,null,null,null,"Cash Flow Direct"]
[null,null,null,6,"Cash Flow Indirect",null,null,null,null,"Cash Flow Indirect"]
[null,null,null,7,"Statement on Deviation or Variation for proceeds of Public Issue, Rights Issue, Preferential Issue, Qualified Institutions Placement Etc.",null,null,null,null,"SOD"]
[null,null,null,8,"Format for Disclosing Outstanding Default on Loans and Debt Securities",null,null,null,null,"OS Default on Loans & Debt Sec."]
[null,null,null,9,"Format for Disclosure of Related Party Transactions",null,null,null,null,"Related Party Transactions"]
[null,null,null,10,"Details of Impact of Audit Qualification",null,null,null,null,"Impact of Audit Qualification"]
[null,null,null,11,"Financial details",null,null,null,null,"Financial details"]
[null,null,null,12,"Audit qualification",null,null,null,null,"Audit qualification"]
[]
[]
[null,null,null,"4. Steps for Integrated Filing (Finance)_Other than Banks"]
[null,null,null,"I.  Fill up the data: Navigate to each field of every section in the sheet to provide applicable data in correct format.  (Formats will get reflected while Filling data.)  \n   - Use paste special command to paste data from other sheet."]
[null,null,null,"II. Validating Sheets:  Click on the ''Validate \"  button to ensure that the sheet has been properly filled and also data has been furnished in proper format. If there are some errors on the sheet, excel utility will prompt you about the same."]
[null,null,null,"III. Validate All Sheets:  Click on the ''Home\"  button. And then click on \"Validate All Sheet\" button to ensure that all sheets has been properly filled and validated successfully. If there are some errors on the sheet, excel utility will prompt you about the same and stop validation at the same time. After correction, once again follow the same procedure to validate all sheets."]
[null,null,null,"Excel Utility will not allow you to generate XBRL/XML until you rectify all errors. "]
[null,null,null,"IV. Generate XML :   Excel Utility will not allow you to generate XBRL/XML unless successful validation of all sheet is completed. Now click on 'Generate XML'' to generate XBRL/XML file. \n    - Save the XBRL/XML file in your desired folder in local system."]
[null,null,null,"V. Generate Report :   Excel Utility will allow you to generate Report. Now click on 'Generate Report'' to generate html report.   \n     - Save the HTML Report file in your desired folder in local system.     \n     - To view HTML Report open \"Chrome Web Browser\" . \n     - To print report in PDF Format, Click on print button and save as PDF."]
[null,null,null,"VI. Upload XML file to NSE Listing Center: For uploading the XBRL/XML file generated through  Utility, login to NSE Listing Center and upload generated xml file. On Upload screen provide the required information and browse to select XML file and submit the XML."]
[]
[]
[null,null,null,"5. Fill up the data in excel utility"]
[null,null,null,"1. Cells with red fonts indicate mandatory fields. "]
[null,null,null,"2. If mandatory field is left empty, then Utility will not allow you to proceed further for generating XML."]
[null,null,null,"3. You are not allowed to enter data in the Grey Cells."]
[null,null,null,"4. If fields are not applicable to your company then leave it blank. Do not insert Zero unless it is a mandatory field."]
[null,null,null,"5. Data provided must be in correct format, otherwise Utility will not allow you to proceed further for generating XML."]
[null,null,null,"6. Select data from \"Dropdown list\" wherever applicable. "]
[null,null,null,"7. Adding Notes:  Click on \"Add Notes\" button to add notes "]

{"sheet":"General Info","index":1,"n_rows":72,"n_cols":28,"rows_kept":72,"cut":false,"hidden":false,"merged":[[43,5,43,7],[5,3,5,7],[22,5,22,7],[24,5,25,7],[13,7,16,7]]}
[0,null,null,null,null,null,null,null,null,null,null,null,null,null,null,"Quarterly",null,"SME","Main Board",null,"Yes",null,"1",null,null,"First quarter","First quarter","Declaration of unmodified opinion"]
[null,null,null,null,null,null,null,null,null,null,null,null,null,null,null,"Half Yearly",null,"Actual",null,"Audited","No",null,"2",null,null,"Half yearly","Half yearly","Statement on impact of audit qualification"]
[null,null,null,null,null,null,null,null,null,null,null,null,null,null,null,null,"Consolidated","Thousands",null,"Unaudited","NA",null,"3",null,null,"Third quarter","Third quarter","Not applicable"]
[null,null,null,null,null,null,null,null,null,null,null,null,null,null,null,null,"Standalone","Lakhs","Single segment",null,null,"Cash Flow Direct","4",null,null,"Fourth quarter","Fourth quarter"]
[null,null,null,null,null,null,null,"                *Validate General Information to open other sheets",null,null,null,null,null,null,null,null,null,"Millions","Multi segment","First quarter","Half yearly","Cash Flow Indirect","5",null,null,"Yearly","Fifth quarter"]
[null,null,null,"General information about company",null,null,null,null,null,null,null,null,null,null,null,null,null,"Billions","Geographical","Second quarter","Yearly",null,"6",null,null,null,"Yearly"]
[null,null,null,"Scrip code*",null,null,null,null,null,null,null,null,null,null,null,null,null,"Crores",null,"Third quarter",null,null,"7"]
[null,null,null,"NSE Symbol*",null,null,null,null,null,null,null,null,null,null,null,null,null,null,null,"Fourth quarter",null,null,"8"]
[null,null,null,"MSEI Symbol*",null,null,null,null,null,null,null,null,null,null,null,null,null,null,null,"Half yearly",null,null,"9"]
[null,null,null,"ISIN*",null,null,null,null,null,null,null,null,null,null,"Equity",null,null,null,null,"Yearly",null,null,"10"]
[null,null,null,"Name of company",null,null,null,null,null,null,null,null,null,null,"Debt securities and/or non-cumulative redeemable preference shares",null,"00"]
[null,null,null,"Type of company",null,null,null,null,null,null,null,null,null,null,null,null,"01","01","2014","Date Calculation"]
[null,null,null,"Class of security","Equity",null,null,null,null,null,null,null,null,null,null,null,"02","02","2015",null,null,null,null,null,null,15]
[null,null,null,"Date of start of financial year","01",null,null,null,null,null,null,null,null,null,null,null,"03","03","2016","01","12"]
[null,null,null,"Date of end of financial year",{"$f":"IF(F15=\"\",\"\",IF(OR(VALUE(F15)=12,VALUE(F15)=3,VALUE(F15)=1,VALUE(F15)=5,VALUE(F15)=7,VALUE(F15)=8,VALUE(F15)=10),31,30))","v":""},{"$f":"IF(F14=\"\",\"\",IF(G14=\"\",\"\",VLOOKUP(F14,T14:U17,2,0)))","v":""},{"$f":"IF(F14=\"\",\"\",IF(G14=\"\",\"\",IF(VALUE(F14)=1,G14,G14+1)))","v":""},null,null,null,null,null,null,null,null,null,"04","04","2017","04","03"]
[null,null,null,"Date of board meeting when results were approved",null,null,null,null,null,null,null,null,null,null,null,null,"05","05","2018","07","06"]
[null,null,null,"Date on which prior intimation of the meeting for considering financial results was informed to the exchange",null,null,null,null,null,null,null,null,null,null,null,null,"06","06","2019","10","09"]
[null,null,null,"Description of presentation currency","INR",null,null,null,null,null,null,null,null,null,null,null,"07","07","2020"]
[null,null,null,"Level of rounding",null,null,null,null,null,{"$f":"IF('General Info'!E15=\"\",\"\",IF('General Info'!F15=\"\",\"\",IF('General Info'!$E$20='General Info'!T24,IF(LEN('General Info'!U29)>1,'General Info'!U29,\"0\"&'General Info'!U29)&\"-\"&IF(LEN('General Info'!V29)>1,'General Info'!V29,\"0\"&'General Info'!V29)&\"-\"&IF(LEN('General Info'!W29)>1,'General Info'!W29,\"0\"&'General Info'!W29),\"\")&IF(OR('General Info'!$E$20='General Info'!T25,'General Info'!$E$20='General Info'!T9),IF(LEN('General Info'!U30)>1,'General Info'!U30,\"0\"&'General Info'!U30)&\"-\"&IF(LEN('General Info'!V30)>1,'General Info'!V30,\"0\"&'General Info'!V30)&\"-\"&IF(LEN('General Info'!W30)>1,'General Info'!W30,\"0\"&'General Info'!W30),\"\")&IF('General Info'!$E$20='General Info'!T26,IF(LEN('General Info'!U31)>1,'General Info'!U31,\"0\"&'General Info'!U31)&\"-\"&IF(LEN('General Info'!V31)>1,'General Info'!V31,\"0\"&'General Info'!V31)&\"-\"&IF(LEN('General Info'!W31)>1,'General Info'!W31,\"0\"&'General Info'!W31),\"\")&IF(OR('General Info'!$E$20='General Info'!T27,'General Info'!$E$20='General Info'!T10),IF(LEN('General Info'!U32)>1,'General Info'!U32,\"0\"&'General Info'!U32)&\"-\"&IF(LEN('General Info'!V32)>1,'General Info'!V32,\"0\"&'General Info'!V32)&\"-\"&IF(LEN('General Info'!W32)>1,'General Info'!W32,\"0\"&'General Info'!W32),\"\")))","v":""},null,null,null,null,null,null,"08","08","2021","03",null,null,null,null,null,{"$f":"IF($E$12=$R$1,Dbt,IF($E$13=$O$11,Dbt,IF($Z$13=15,Diff15,IF($Z$13=18,Diff18,IF($Z$13<=12,Diff12,Eqt)))))","v":{"$error":"#VALUE!"}}]
[null,null,null,"Reporting Type",null,null,null,null,null,null,null,null,null,null,null,null,"09","09","2022"]
[null,null,null,"Reporting Quarter",null,null,null,null,null,null,null,null,null,null,null,null,"10","10","2023"]
[null,null,null,"Nature of report standalone or consolidated",null,null,null,null,null,null,null,null,null,null,null,null,"11","11","2024",null,"STD"]
[null,null,null,"Whether results are audited or unaudited for the quarter ended",null,"For Current Quarter Only",null,null,null,null,null,null,null,null,null,null,"12","12","2025",null,"dd","mm","yyyy"]
[null,null,null,"Whether results are audited or unaudited for the Year to date for current period ended/year ended",null,null,null,null,null,null,null,null,null,null,null,null,"13",null,"2026","First quarter",{"$f":"VALUE(E14)","v":1},{"$f":"VALUE(F14)","v":0},{"$f":"VALUE(G14)","v":0}]
[null,null,null,"Segment Reporting",null,null,null,null,null,null,null,null,null,null,null,null,"14",null,"2027","Second quarter",1,{"$f":"+IF(OR(V24=1,V24=4,V24=7,V24=10),IF(V24+3>=13,1,V24+3),IF(OR(V24=2,V24=3),4,IF(OR(V24=5,V24=6),7,IF(OR(V24=8,V24=9),10,IF(OR(V24=11,V24=12),1)))))","v":false},{"$f":"+IF(V25<=1,W24+1,W24)","v":0}]
[null,null,null,"Description of single segment",null,null,null,null,null,null,null,null,null,null,null,null,"15",null,2018,"Third quarter",{"$f":"+U25","v":1},{"$f":"+IF(V25+3>=13,1,V25+3)","v":3},{"$f":"+IF(V26<=1,W25+1,W25)","v":0}]
[null,null,null,"Start date and time of board meeting",null,null,null,"HH:MM",null,null,null,null,null,null,null,null,"16",null,null,"Fourth quarter",{"$f":"+U26","v":1},{"$f":"+IF(V26+3>=13,1,V26+3)","v":6},{"$f":"+IF(V27<=1,W26+1,W26)","v":0},null,null,"Start date of board meeting"]
[null,null,null,"End date and time of board meeting",null,null,null,"HH:MM",null,null,null,null,null,null,null,null,"17",null,null,null,"EDT",null,null,null,null,"End date of board meeting"]
[null,null,null,"Whether cash flow statement is applicable on company","",null,null,null,null,null,null,null,null,null,null,null,"18",null,2018,"First quarter",{"$f":"IF(OR(V29=12,V29=3,V29=1,V29=5,V29=7,V29=8,V29=10),31,30)","v":30},{"$f":"+IF(OR(V24=1,V24=4,V24=7,V24=10),IF(V24+3>=13,13,V24+3),IF(OR(V24=2,V24=3),4,IF(OR(V24=5,V24=6),7,IF(OR(V24=8,V24=9),10,IF(OR(V24=11,V24=12),1)))))-1","v":-1},{"$f":"+IF((+V24+2)>12,W24+1,W24)","v":0}]
[null,null,null,"Type of cash flow statement","",null,null,null,null,null,null,null,null,null,null,null,"19",null,null,"Second quarter",{"$f":"IF(OR(V30=12,V30=3,V30=1,V30=5,V30=7,V30=8,V30=10),31,30)","v":30},{"$f":"+V25+2","v":2},{"$f":"+IF((V25+2)>12,W25+1,W25)","v":0}]
[null,null,null,"Declaration of unmodified opinion or statement on impact of audit qualification",null,null,null,null,null,null,null,null,null,null,null,null,"20",null,null,"Third quarter",{"$f":"IF(OR(V31=12,V31=3,V31=1,V31=5,V31=7,V31=8,V31=10),31,30)","v":31},{"$f":"+V26+2","v":5},{"$f":"+IF((V26+2)>12,W26+1,W26)","v":0}]
[null,null,null,"Whether the company has any related party?",null,null,null,null,null,null,null,null,null,null,null,null,"21",null,null,"Fourth quarter",{"$f":"IF(OR(V32=12,V32=3,V32=1,V32=5,V32=7,V32=8,V32=10),31,30)","v":31},{"$f":"+V27+2","v":8},{"$f":"+IF((V27+2)>12,W27+1,W27)","v":0}]
[null,null,null,"Whether the company has entered into any Related Party transaction during the selected half year for which it wants to submit disclosure?",null,null,null,null,null,null,null,null,null,null,null,null,"22"]
[null,null,null,"(I) We declare that the acceptance of fixed deposits by the bans/Non-Banking Finance Company are at the terms uniformly applicable/offered to all shareholders/public",null,null,null,null,null,null,null,null,null,null,null,null,"23"]
[null,null,null,"(II) We declare that the scheduled commercial bank, as per RBI circular RBI/DBR/2015-16/19 dated March 03, 2016, has allowed additional interest of one per cent per annum, over and above the rate of interest mentioned in the schedule of interest rates on savings or a term deposits of bank’s staff and their exclusive associations as well as on deposits of Chairman, Chairman & Managing Director, Executive Director or such other Executives appointed for a fixed tenure.",null,null,null,null,null,null,null,null,null,null,null,null,"24"]
[null,null,null,"(III) Whether the company is a ‘high value debt listed entity’ according to regulation 15 (1A)?",null,null,null,null,null,null,null,null,null,null,null,null,"25"]
[null,null,null,"(a) If answer to above question is Yes, whether complying with proviso to regulation 23 (9), i.e., submitting RPT disclosures on the day of results publication?",null,null,null,null,null,null,null,null,null,null,null,null,"26"]
[null,null,null,"(b) If answer to above question is No, please explain the reason for not complying.",null,null,null,null,null,null,null,null,null,null,null,null,"27"]
[null,null,null,"Whether the updated Related Party Transactions (RPT) Policy (in compliance with Reg. 23 of SEBI LODR) has been uploaded on the website of the Company?",null,null,null,null,null,null,null,null,null,null,null,null,"28"]
[null,null,null,"Latest Date on which RPT policy is updated",null,null,null,null,null,null,null,null,null,null,null,null,"29"]
[null,null,null,"Indicate Company website link for updated RPT policy of the Company",null,null,null,null,null,null,null,null,null,null,null,null,"30"]
[null,null,null,"Whether statement on deviation or variation for proceeds of public issue, rights issue, preferential issue, qualified institutions placement etc. is applicable to the company for the current quarter?",null,null,null,null,null,null,null,null,null,null,null,null,"31"]
[null,null,null,"No. of times funds raised during the quarter",null,null,null,null,null,null,null,null,null,null,null,null,"32"]
[null,null,null,"Whether the disclosure for the Default on Loans and Debt Securities is applicable to the entity?",null,null,null,null,{"$f":"IF($E$44=\"No\",\"<<< Notes mandatory, if Not Applicable\",\"\")","v":""},null,null,null,null,null,null,null,"33",null,null,null,null,null,null,null,null,"Notes for Whether the disclosure for the Default on Loans and Debt Securities is applicable to the entity"]
[null,null,null,null,null,null,null,null,null,null,null,null,null,null,null,null,"34"]
[null,null,null,null,null,null,null,null,null,null,null,null,null,null,null,null,"35"]
[null,null,null,null,null,null,null,null,null,null,null,null,null,null,null,null,"36"]
[null,null,null,null,null,null,null,null,null,null,null,null,null,null,null,null,"37"]
[null,null,null,null,null,null,null,null,null,null,null,null,null,null,null,null,"38"]
[null,null,null,null,null,null,null,null,null,null,null,null,null,null,null,null,"39"]
[null,null,null,null,null,null,null,null,null,null,null,null,null,null,null,null,"40"]
[null,null,null,null,null,null,null,null,null,null,null,null,null,null,null,null,"41"]
[null,null,null,null,null,null,null,null,null,null,null,null,null,null,null,null,"42"]
[null,null,null,null,null,null,null,null,null,null,null,null,null,null,null,null,"43"]
[null,null,null,null,null,null,null,null,null,null,null,null,null,null,null,null,"44"]
[null,null,null,null,null,null,null,null,null,null,null,null,null,null,null,null,"45"]
[null,null,null,null,null,null,null,null,null,null,null,null,null,null,null,null,"46"]
[null,null,null,null,null,null,null,null,null,null,null,null,null,null,null,null,"47"]
[null,null,null,null,null,null,null,null,null,null,null,null,null,null,null,null,"48"]
[null,null,null,null,null,null,null,null,null,null,null,null,null,null,null,null,"49"]
[null,null,null,null,null,null,null,null,null,null,null,null,null,null,null,null,"50"]
[null,null,null,null,null,null,null,null,null,null,null,null,null,null,null,null,"51"]
[null,null,null,null,null,null,null,null,null,null,null,null,null,null,null,null,"52"]
[null,null,null,null,null,null,null,null,null,null,null,null,null,null,null,null,"53"]
[null,null,null,null,null,null,null,null,null,null,null,null,null,null,null,null,"54"]
[null,null,null,null,null,null,null,null,null,null,null,null,null,null,null,null,"55"]
[null,null,null,null,null,null,null,null,null,null,null,null,null,null,null,null,"56"]
[null,null,null,null,null,null,null,null,null,null,null,null,null,null,null,null,"57"]
[null,null,null,null,null,null,null,null,null,null,null,null,null,null,null,null,"58"]
[null,null,null,null,null,null,null,null,null,null,null,null,null,null,null,null,"59"]
[null,null,null,null,null,null,null,null,null,null,null,null,null,null,null,null,"60"]
[null,null,null,null,null,null,null,null,null,null,null,null,null,null,null,null,"61"]

{"sheet":"Financial Results","index":2,"n_rows":67,"n_cols":26,"rows_kept":67,"cut":false,"hidden":false,"merged":[[58,5,58,6],[60,5,60,6],[8,3,8,4],[55,5,55,6],[43,5,43,6],[7,3,7,6],[14,5,14,6],[18,5,18,6],[25,5,25,6],[13,4,13,6],[9,3,9,4],[10,3,10,4],[11,3,11,4],[12,3,12,4]]}
[]
[]
[]
[]
[]
[]
[]
[null,null,null,"Financial Results – Other than Bank"]
[null,null,null,"Particulars",null,"3 months/ 6 months ended         (dd-mm-yyyy)","Year to date figures for current period ended                              (dd-mm-yyyy)"]
[null,null,null,"Date of start of reporting period",null,{"$f":"IF('General Info'!E15=\"\",\"\",IF('General Info'!F15=\"\",\"\",IF(OR('General Info'!$E$21='General Info'!T24,'General Info'!$E$21='General Info'!T9),IF(LEN('General Info'!U24)>1,'General Info'!U24,\"0\"&'General Info'!U24)&\"-\"&IF(LEN('General Info'!V24)>1,'General Info'!V24,\"0\"&'General Info'!V24)&\"-\"&IF(LEN('General Info'!W24)>1,'General Info'!W24,\"0\"&'General Info'!W24),\"\")&IF('General Info'!$E$21='General Info'!T25,IF(LEN('General Info'!U25)>1,'General Info'!U25,\"0\"&'General Info'!U25)&\"-\"&IF(LEN('General Info'!V25)>1,'General Info'!V25,\"0\"&'General Info'!V25)&\"-\"&IF(LEN('General Info'!W25)>1,'General Info'!W24,\"0\"&'General Info'!W25),\"\")&IF(OR('General Info'!$E$21='General Info'!T26,'General Info'!$E$21='General Info'!T10),IF(LEN('General Info'!U26)>1,'General Info'!U26,\"0\"&'General Info'!U26)&\"-\"&IF(LEN('General Info'!V26)>1,'General Info'!V26,\"0\"&'General Info'!V26)&\"-\"&IF(LEN('General Info'!W26)>1,'General Info'!W26,\"0\"&'General Info'!W26),\"\")&IF('General Info'!$E$21='General Info'!T27,IF(LEN('General Info'!U27)>1,'General Info'!U27,\"0\"&'General Info'!U27)&\"-\"&IF(LEN('General Info'!V27)>1,'General Info'!V27,\"0\"&'General Info'!V27)&\"-\"&IF(LEN('General Info'!W27)>1,'General Info'!W27,\"0\"&'General Info'!W27),\"\")))","v":""},{"$f":"IF('General Info'!E21=\"\",\"\",IF('General Info'!F14=\"\",\"\",IF('General Info'!G14=\"\",\"\",'General Info'!E14&\"-\"&'General Info'!F14&\"-\"&'General Info'!G14)))","v":""}]
[null,null,null,"Date of end of reporting period",null,{"$f":"IF('General Info'!E15=\"\",\"\",IF('General Info'!F15=\"\",\"\",IF('General Info'!$E$21='General Info'!T24,IF(LEN('General Info'!U29)>1,'General Info'!U29,\"0\"&'General Info'!U29)&\"-\"&IF(LEN('General Info'!V29)>1,'General Info'!V29,\"0\"&'General Info'!V29)&\"-\"&IF(LEN('General Info'!W29)>1,'General Info'!W29,\"0\"&'General Info'!W29),\"\")&IF(OR('General Info'!$E$21='General Info'!T25,'General Info'!$E$21='General Info'!T9),IF(LEN('General Info'!U30)>1,'General Info'!U30,\"0\"&'General Info'!U30)&\"-\"&IF(LEN('General Info'!V30)>1,'General Info'!V30,\"0\"&'General Info'!V30)&\"-\"&IF(LEN('General Info'!W30)>1,'General Info'!W30,\"0\"&'General Info'!W30),\"\")&IF('General Info'!$E$21='General Info'!T26,IF(LEN('General Info'!U31)>1,'General Info'!U31,\"0\"&'General Info'!U31)&\"-\"&IF(LEN('General Info'!V31)>1,'General Info'!V31,\"0\"&'General Info'!V31)&\"-\"&IF(LEN('General Info'!W31)>1,'General Info'!W31,\"0\"&'General Info'!W31),\"\")&IF(OR('General Info'!$E$21='General Info'!T27,'General Info'!$E$21='General Info'!T10),IF(LEN('General Info'!U32)>1,'General Info'!U32,\"0\"&'General Info'!U32)&\"-\"&IF(LEN('General Info'!V32)>1,'General Info'!V32,\"0\"&'General Info'!V32)&\"-\"&IF(LEN('General Info'!W32)>1,'General Info'!W32,\"0\"&'General Info'!W32),\"\")))","v":""},{"$f":"IF('General Info'!E15=\"\",\"\",IF('General Info'!F15=\"\",\"\",IF('General Info'!$E$21='General Info'!T24,IF(LEN('General Info'!U29)>1,'General Info'!U29,\"0\"&'General Info'!U29)&\"-\"&IF(LEN('General Info'!V29)>1,'General Info'!V29,\"0\"&'General Info'!V29)&\"-\"&IF(LEN('General Info'!W29)>1,'General Info'!W29,\"0\"&'General Info'!W29),\"\")&IF(OR('General Info'!$E$21='General Info'!T25,'General Info'!$E$21='General Info'!T9),IF(LEN('General Info'!U30)>1,'General Info'!U30,\"0\"&'General Info'!U30)&\"-\"&IF(LEN('General Info'!V30)>1,'General Info'!V30,\"0\"&'General Info'!V30)&\"-\"&IF(LEN('General Info'!W30)>1,'General Info'!W30,\"0\"&'General Info'!W30),\"\")&IF('General Info'!$E$21='General Info'!T26,IF(LEN('General Info'!U31)>1,'General Info'!U31,\"0\"&'General Info'!U31)&\"-\"&IF(LEN('General Info'!V31)>1,'General Info'!V31,\"0\"&'General Info'!V31)&\"-\"&IF(LEN('General Info'!W31)>1,'General Info'!W31,\"0\"&'General Info'!W31),\"\")&IF(OR('General Info'!$E$21='General Info'!T27,'General Info'!$E$21='General Info'!T10),IF(LEN('General Info'!U32)>1,'General Info'!U32,\"0\"&'General Info'!U32)&\"-\"&IF(LEN('General Info'!V32)>1,'General Info'!V32,\"0\"&'General Info'!V32)&\"-\"&IF(LEN('General Info'!W32)>1,'General Info'!W32,\"0\"&'General Info'!W32),\"\")))","v":""}]
[null,null,null,"Whether results are audited or unaudited",null,{"$f":"+IF(COUNTA('General Info'!E23),'General Info'!E23,\"\")","v":""},{"$f":"+IF(COUNTA('General Info'!E24),'General Info'!E24,F12)","v":""},null,null,null,null,null,null,null,null,null,null,null,"Audited"]
[null,null,null,"Nature of report standalone or consolidated",null,{"$f":"+IF(COUNTA('General Info'!E22),'General Info'!E22,\"\")","v":""},{"$f":"+IF(COUNTA('General Info'!E22),'General Info'!E22,\"\")","v":""},null,null,null,null,null,null,null,null,null,null,null,"Unaudited"]
[null,null,null,"Part I","Blue color marked fields are non-mandatory.                                                                                                                                                                                     For Consolidated Results, if the company has no figures for 3 months / 6 months ended, in such case zero shall be inserted in the said column."]
[null,null,null,1,"Revenue From Operations"]
[null,null,null,null,"Revenue from operations",null,null,null,null,null,null,null,null,null,null,null,null,null,{"$f":"+IF(COUNTA('Financial Results'!F16),+'Financial Results'!F16,\"\")","v":""}]
[null,null,null,null,"Other income",null,null,null,null,null,null,null,null,null,null,null,null,null,{"$f":"+IF(COUNTA('Financial Results'!F17),+'Financial Results'!F17,\"\")","v":""}]
[null,null,null,null,"Total Income",{"$f":"+IF(COUNT(F16:F17),ROUND(SUM(F16:F17),2),\"\")","v":""},{"$f":"+IF(COUNT(G16:G17),ROUND(SUM(G16:G17),2),\"\")","v":""},null,null,null,null,null,null,null,null,null,null,null,{"$f":"+IF(COUNTA('Financial Results'!F18),+'Financial Results'!F18,\"\")","v":""}]
[null,null,null,2,"Expenses",null,null,null,null,null,null,null,null,null,null,null,null,null,{"$f":"+IF(COUNTA('Financial Results'!F19),+'Financial Results'!F19,\"\")","v":""}]
[null,null,null,"(a)","Cost of materials consumed",null,null,null,null,null,null,null,null,null,null,null,null,null,{"$f":"+IF(COUNTA('Financial Results'!F20),+'Financial Results'!F20,\"\")","v":""}]
[null,null,null,"(b)","Purchases of stock-in-trade",null,null,null,null,null,null,null,null,null,null,null,null,null,{"$f":"+IF(COUNTA('Financial Results'!F21),+'Financial Results'!F21,\"\")","v":""}]
[null,null,null,"(c)","Changes in inventories of finished goods, work-in-progress and stock-in-trade",null,null,null,null,null,null,null,null,null,null,null,null,null,{"$f":"+IF(COUNTA('Financial Results'!F22),+'Financial Results'!F22,\"\")","v":""}]
[null,null,null,"(d)","Employee benefit expense  ",null,null,null,null,null,null,null,null,null,null,null,null,null,{"$f":"+IF(COUNTA('Financial Results'!F23),+'Financial Results'!F23,\"\")","v":""}]
[null,null,null,"(e)","Finance costs",null,null,null,null,null,null,null,null,null,null,null,null,null,{"$f":"+IF(COUNTA('Financial Results'!F24),+'Financial Results'!F24,\"\")","v":""}]
[null,null,null,"(f)","Depreciation and amortisation expense",null,null,null,null,null,null,null,null,null,null,null,null,null,{"$f":"+IF(COUNTA('Financial Results'!F25),+'Financial Results'!F25,\"\")","v":""}]
[null,null,null,"(g)","Other Expenses",null,null,null,null,null,null,null,null,null,null,null,null,null,{"$f":"+IF(COUNTA('Financial Results'!F26),+'Financial Results'!F26,\"\")","v":""}]
[null,null,null,1,null,null,null,null,null,null,null,null,null,null,null,null,null,null,{"$f":"+IF(COUNTA('Financial Results'!F27),+'Financial Results'!F27,\"\")","v":""}]
[null,null,null,2,null,null,null,null,null,null,null,null,null,null,null,null,null,null,{"$f":"+IF(COUNTA('Financial Results'!F28),+'Financial Results'!F28,\"\")","v":""}]
[null,null,null,3,null,null,null,null,null,null,null,null,null,null,null,null,null,null,{"$f":"+IF(COUNTA('Financial Results'!F29),+'Financial Results'!F29,\"\")","v":""}]
[null,null,null,4,null,null,null,null,null,null,null,null,null,null,null,null,null,null,{"$f":"+IF(COUNTA('Financial Results'!F30),+'Financial Results'!F30,\"\")","v":""}]
[null,null,null,5,null,null,null,null,null,null,null,null,null,null,null,null,null,null,{"$f":"+IF(COUNTA('Financial Results'!F31),+'Financial Results'!F31,\"\")","v":""}]
[null,null,null,6,null,null,null,null,null,null,null,null,null,null,null,null,null,null,{"$f":"+IF(COUNTA('Financial Results'!F32),+'Financial Results'!F32,\"\")","v":""}]
[null,null,null,7,null,null,null,null,null,null,null,null,null,null,null,null,null,null,{"$f":"+IF(COUNTA('Financial Results'!F33),+'Financial Results'!F33,\"\")","v":""}]
[null,null,null,8,null,null,null,null,null,null,null,null,null,null,null,null,null,null,{"$f":"+IF(COUNTA('Financial Results'!F34),+'Financial Results'!F34,\"\")","v":""}]
[null,null,null,9,null,null,null,null,null,null,null,null,null,null,null,null,null,null,{"$f":"+IF(COUNTA('Financial Results'!F35),+'Financial Results'!F35,\"\")","v":""}]
[null,null,null,10,null,null,null,null,null,null,null,null,null,null,null,null,null,null,{"$f":"+IF(COUNTA('Financial Results'!F36),+'Financial Results'!F36,\"\")","v":""}]
[null,null,null,null,"Total other expenses",{"$f":"+IF(COUNT(F27:F36),ROUND(SUM(F27:F36),2),\"\")","v":""},{"$f":"+IF(COUNT(G27:G36),ROUND(SUM(G27:G36),2),\"\")","v":""},null,null,null,null,null,null,null,null,null,null,null,{"$f":"+IF(COUNTA('Financial Results'!F37),+'Financial Results'!F37,\"\")","v":""}]
[null,null,null,null,"Total  expenses",{"$f":"+IF(COUNT(F37,F20:F25),ROUND(SUM(F37,F20:F25),2),\"\")","v":""},{"$f":"+IF(COUNT(G37,G20:G25),ROUND(SUM(G37,G20:G25),2),\"\")","v":""},null,null,null,null,null,null,null,null,null,null,null,{"$f":"+IF(COUNTA('Financial Results'!F38),+'Financial Results'!F38,\"\")","v":""}]
[null,null,null,3,"Profit before exceptional and extraordinary items and tax ",{"$f":"+IF(COUNT(F38,F18),+ROUND(SUM(F18)-SUM(F38),2),\"\")","v":""},{"$f":"+IF(COUNT(G38,G18),+ROUND(SUM(G18)-SUM(G38),2),\"\")","v":""},null,null,null,null,null,null,null,null,null,null,null,{"$f":"+IF(COUNTA('Financial Results'!F39),+'Financial Results'!F39,\"\")","v":""}]
[null,null,null,4,"Exceptional items ",null,null,null,null,null,null,null,null,null,null,null,null,null,{"$f":"+IF(COUNTA('Financial Results'!F40),+'Financial Results'!F40,\"\")","v":""}]
[null,null,null,5,"Profit before extraordinary items and tax",{"$f":"+IF(COUNT(F39:F40),+ROUND(SUM(F39,F40),2),\"\")","v":""},{"$f":"+IF(COUNT(G39:G40),+ROUND(SUM(G39,G40),2),\"\")","v":""},null,null,null,null,null,null,null,null,null,null,null,{"$f":"+IF(COUNTA('Financial Results'!F41),+'Financial Results'!F41,\"\")","v":""}]
[null,null,null,6,"Extraordinary items",null,null,null,null,null,null,null,null,null,null,null,null,null,{"$f":"+IF(COUNTA('Financial Results'!F42),+'Financial Results'!F42,\"\")","v":""}]
[null,null,null,7,"Profit before tax",{"$f":"+IF(COUNT(F41:F42),+ROUND(SUM(F41,F42),2),\"\")","v":""},{"$f":"+IF(COUNT(G41:G42),+ROUND(SUM(G41,G42),2),\"\")","v":""},null,null,null,null,null,null,null,null,null,null,null,{"$f":"+IF(COUNTA('Financial Results'!F43),+'Financial Results'!F43,\"\")","v":""}]
[null,null,null,8,"Tax Expense",null,null,null,null,null,null,null,null,null,null,null,null,null,{"$f":"+IF(COUNTA('Financial Results'!F44),+'Financial Results'!F44,\"\")","v":""}]
[null,null,null,null,"Current tax",null,null,null,null,null,null,null,null,null,null,null,null,null,{"$f":"+IF(COUNTA('Financial Results'!F45),+'Financial Results'!F45,\"\")","v":""}]
[null,null,null,null,"Deferred tax",null,null,null,null,null,null,null,null,null,null,null,null,null,{"$f":"+IF(COUNTA('Financial Results'!F46),+'Financial Results'!F46,\"\")","v":""}]
[null,null,null,null,"Total tax expenses",{"$f":"+IF(COUNT(F45:F46),ROUND(SUM(F45:F46),2),\"\")","v":""},{"$f":"+IF(COUNT(G45:G46),ROUND(SUM(G45:G46),2),\"\")","v":""},null,null,null,null,null,null,null,null,null,null,null,{"$f":"+IF(COUNTA('Financial Results'!F47),+'Financial Results'!F47,\"\")","v":""}]
[null,null,null,9,"Net Profit Loss for the period from continuing operations",{"$f":"+IF(COUNT(F43,F47),ROUND(SUM(F43)-SUM(F47),2),\"\")","v":""},{"$f":"+IF(COUNT(G43,G47),ROUND(SUM(G43)-SUM(G47),2),\"\")","v":""},null,null,null,null,null,null,null,null,null,null,null,{"$f":"+IF(COUNTA('Financial Results'!F48),+'Financial Results'!F48,\"\")","v":""}]
[null,null,null,10,"Profit (loss) from discontinuing operations before tax",null,null,null,null,null,null,null,null,null,null,null,null,null,{"$f":"+IF(COUNTA('Financial Results'!F49),+'Financial Results'!F49,\"\")","v":""}]
[null,null,null,11,"Tax expense of discontinuing operations",null,null,null,null,null,null,null,null,null,null,null,null,null,{"$f":"+IF(COUNTA('Financial Results'!F50),+'Financial Results'!F50,\"\")","v":""}]
[null,null,null,12,"Net profit (loss) from discontinuing operation after tax",{"$f":"+IF(COUNT(F49:F50),+ROUND(SUM(F49)-SUM(F50),2),\"\")","v":""},{"$f":"+IF(COUNT(G49:G50),+ROUND(SUM(G49)-SUM(G50),2),\"\")","v":""},null,null,null,null,null,null,null,null,null,null,null,{"$f":"+IF(COUNTA('Financial Results'!F51),+'Financial Results'!F51,\"\")","v":""}]
[null,null,null,13,"Profit (loss) for period before minority interest",{"$f":"+IF(COUNT(F48:F51),+ROUND(SUM(F48,F51),2),\"\")","v":""},{"$f":"+IF(COUNT(G48:G51),+ROUND(SUM(G48,G51),2),\"\")","v":""},null,null,null,null,null,null,null,null,null,null,null,{"$f":"+IF(COUNTA('Financial Results'!F52),+'Financial Results'!F52,\"\")","v":""}]
[null,null,null,14,"Share of profit (loss) of associates",null,null,null,null,null,null,null,null,null,null,null,null,null,{"$f":"+IF(COUNTA('Financial Results'!F53),+'Financial Results'!F53,\"\")","v":""}]
[null,null,null,15,"Profit (loss) of minority interest",null,null,null,null,null,null,null,null,null,null,null,null,null,{"$f":"+IF(COUNTA('Financial Results'!F54),+'Financial Results'!F54,\"\")","v":""}]
[null,null,null,16,"Net profit (Loss) for the period",{"$f":"+IF(COUNT(F52:F54),ROUND(SUM(F52)+SUM(F53)+SUM(F54),2),\"\")","v":""},{"$f":"+IF(COUNT(G52:G54),ROUND(SUM(G52)+SUM(G53)+SUM(G54),2),\"\")","v":""},null,null,null,null,null,null,null,null,null,null,null,{"$f":"+IF(COUNTA('Financial Results'!F55),+'Financial Results'!F55,\"\")","v":""}]
[null,null,null,17,"Details of equity share capital",null,null,null,null,null,null,null,null,null,null,null,null,null,{"$f":"+IF(COUNTA('Financial Results'!F56),+'Financial Results'!F56,\"\")","v":""}]
[null,null,null,null,"Paid-up equity share capital",null,null,null,null,null,null,null,null,null,null,null,null,null,{"$f":"+IF(COUNTA('Financial Results'!F57),+'Financial Results'!F57,\"\")","v":""}]
[null,null,null,null,"Face value of equity share capital",null,null,null,null,null,null,null,null,null,null,null,null,null,{"$f":"+IF(COUNTA('Financial Results'!F58),+'Financial Results'!F58,\"\")","v":""}]
[null,null,null,null,"Details of debt securities",null,null,null,null,null,null,null,null,null,null,null,null,null,{"$f":"+IF(COUNTA('Financial Results'!F59),+'Financial Results'!F59,\"\")","v":""}]
[null,null,null,18,"Reserves excluding revaluation reserve",null,null,null,null,null,null,null,null,null,null,null,null,null,{"$f":"+IF(COUNTA('Financial Results'!F60),+'Financial Results'!F60,\"\")","v":""}]
[null,null,null,19,"Earnings per equity share (for continuing and discontinued operations)",null,null,null,null,null,null,null,null,null,null,null,null,null,{"$f":"+IF(COUNTA('Financial Results'!F61),+'Financial Results'!F61,\"\")","v":""}]
[null,null,null,null,"Basic earnings (loss) per share from continuing and discontinued operations",null,null,null,null,null,null,null,null,null,null,null,null,null,{"$f":"+IF(COUNTA('Financial Results'!F62),+'Financial Results'!F62,\"\")","v":""}]
[null,null,null,null,"Diluted earnings (loss) per share from continuing and discontinued operations",null,null,null,null,null,null,null,null,null,null,null,null,null,{"$f":"+IF(COUNTA('Financial Results'!F63),+'Financial Results'!F63,\"\")","v":""}]
[null,null,null,20,"Debt equity ratio",null,{"$f":"+IF(COUNTA('Financial Results'!F64),+'Financial Results'!F64,\"\")","v":""},null,null,null,null,null,null,null,null,null,null,null,{"$f":"+IF(COUNTA('Financial Results'!F64),+'Financial Results'!F64,\"\")","v":""},null,null,null,null,null,null,"Remarks for Debt equity ratio"]
[null,null,null,21,"Debt service coverage ratio",null,{"$f":"+IF(COUNTA('Financial Results'!F65),+'Financial Results'!F65,\"\")","v":""},null,null,null,null,null,null,null,null,null,null,null,{"$f":"+IF(COUNTA('Financial Results'!F65),+'Financial Results'!F65,\"\")","v":""},null,null,null,null,null,null,"Remarks for Debt service coverage ratio"]
[null,null,null,22,"Interest service coverage ratio",null,{"$f":"+IF(COUNTA('Financial Results'!F66),+'Financial Results'!F66,\"\")","v":""},null,null,null,null,null,null,null,null,null,null,null,{"$f":"+IF(COUNTA('Financial Results'!F66),+'Financial Results'!F66,\"\")","v":""},null,null,null,null,null,null,"Remarks for Interest service coverage ratio"]
[null,null,null,23,"Disclosure of notes on financial results"]

{"sheet":"Cash Flow Direct","index":3,"n_rows":84,"n_cols":18,"rows_kept":84,"cut":false,"hidden":true,"merged":[[7,3,7,5],[8,3,8,4],[13,4,13,5],[9,3,9,4],[10,3,10,4],[11,3,11,4],[12,3,12,4]]}
[]
[]
[]
[]
[]
[]
[null,null,null,null,null,{"$f":"IF('General Info'!E19=\"\",\"\",\"Amount in (\"&'General Info'!E19&\")\")","v":""}]
[null,null,null,"Cash flow statement - direct"]
[null,null,null,"Particulars",null,{"$f":"IF('General Info'!E21=\"Half yearly\",\"Half Year ended (dd-mm-yyyy)\",IF('General Info'!E21=\"Second quarter\",\"Half Year ended (dd-mm-yyyy)\",\"Year ended (dd-mm-yyyy)\"))","v":"Year ended (dd-mm-yyyy)"}]
[null,null,null,"Date of start of reporting period",null,{"$f":"IF('General Info'!E21=\"\",\"\",IF('General Info'!F14=\"\",\"\",IF('General Info'!G14=\"\",\"\",'General Info'!E14&\"-\"&'General Info'!F14&\"-\"&'General Info'!G14)))","v":""}]
[null,null,null,"Date of end of reporting period",null,{"$f":"IF('General Info'!E15=\"\",\"\",IF('General Info'!F15=\"\",\"\",IF('General Info'!$E$21='General Info'!T24,IF(LEN('General Info'!U29)>1,'General Info'!U29,\"0\"&'General Info'!U29)&\"-\"&IF(LEN('General Info'!V29)>1,'General Info'!V29,\"0\"&'General Info'!V29)&\"-\"&IF(LEN('General Info'!W29)>1,'General Info'!W29,\"0\"&'General Info'!W29),\"\")&IF(OR('General Info'!$E$21='General Info'!T25,'General Info'!$E$21='General Info'!T9),IF(LEN('General Info'!U30)>1,'General Info'!U30,\"0\"&'General Info'!U30)&\"-\"&IF(LEN('General Info'!V30)>1,'General Info'!V30,\"0\"&'General Info'!V30)&\"-\"&IF(LEN('General Info'!W30)>1,'General Info'!W30,\"0\"&'General Info'!W30),\"\")&IF('General Info'!$E$21='General Info'!T26,IF(LEN('General Info'!U31)>1,'General Info'!U31,\"0\"&'General Info'!U31)&\"-\"&IF(LEN('General Info'!V31)>1,'General Info'!V31,\"0\"&'General Info'!V31)&\"-\"&IF(LEN('General Info'!W31)>1,'General Info'!W31,\"0\"&'General Info'!W31),\"\")&IF(OR('General Info'!$E$21='General Info'!T27,'General Info'!$E$21='General Info'!T10),IF(LEN('General Info'!U32)>1,'General Info'!U32,\"0\"&'General Info'!U32)&\"-\"&IF(LEN('General Info'!V32)>1,'General Info'!V32,\"0\"&'General Info'!V32)&\"-\"&IF(LEN('General Info'!W32)>1,'General Info'!W32,\"0\"&'General Info'!W32),\"\")))","v":""}]
[null,null,null,"Whether results are audited or unaudited",null,{"$f":"IF(COUNTA('Financial Results'!G12),'Financial Results'!G12,\"\")","v":""},null,null,null,null,null,null,null,null,null,null,null,"Audited"]
[null,null,null,"Nature of report standalone or consolidated",null,{"$f":"+IF(COUNTA('General Info'!E22),'General Info'!E22,\"\")","v":""},null,null,null,null,null,null,null,null,null,null,null,"Unaudited"]
[]
[null,null,null,1,"Statement of cash flows"]
[null,null,null,2,"Cash flows from used in operating activities"]
[null,null,null,null,"Classes of cash receipts from operating activities"]
[null,null,null,null,"Receipts from sales of goods and rendering of services",null,null,null,null,"Receipts from sales of goods and rendering of services",null,null,null,null,null,null,null,{"$f":"+IF(COUNTA('Cash Flow Direct'!F18),+'Cash Flow Direct'!F18,\"\")","v":""}]
[null,null,null,null,"Receipts from royalties fees, commissions and other revenue",null,null,null,null,"Receipts from royalties fees, commissions and other revenue",null,null,null,null,null,null,null,{"$f":"+IF(COUNTA('Cash Flow Direct'!F19),+'Cash Flow Direct'!F19,\"\")","v":""}]
[null,null,null,null,"Receipts from future contracts, forward contracts, options contracts and swap contracts held for dealing or trading purpose",null,null,null,null,"Receipts from future contracts, forward contracts, options contracts and swap contracts held for dealing or trading purpose",null,null,null,null,null,null,null,{"$f":"+IF(COUNTA('Cash Flow Direct'!F20),+'Cash Flow Direct'!F20,\"\")","v":""}]
[null,null,null,null,"Receipts from premiums and claims annuities and other policy benefits",null,null,null,null,"Receipts from premiums and claims annuities and other policy benefits",null,null,null,null,null,null,null,{"$f":"+IF(COUNTA('Cash Flow Direct'!F21),+'Cash Flow Direct'!F21,\"\")","v":""}]
[null,null,null,null,"Other cash receipts from operating activities",null,null,null,null,"Other cash receipts from operating activities",null,null,null,null,null,null,null,{"$f":"+IF(COUNTA('Cash Flow Direct'!F22),+'Cash Flow Direct'!F22,\"\")","v":""}]
[null,null,null,3,"Classes of cash payments",null,null,null,null,"Classes of cash payments [Abstract]",null,null,null,null,null,null,null,{"$f":"+IF(COUNTA('Cash Flow Direct'!F23),+'Cash Flow Direct'!F23,\"\")","v":""}]
[null,null,null,null,"Payments to suppliers for goods and services",null,null,null,null,"Payments to suppliers for goods and services",null,null,null,null,null,null,null,{"$f":"+IF(COUNTA('Cash Flow Direct'!F24),+'Cash Flow Direct'!F24,\"\")","v":""}]
[null,null,null,null,"Payments to future contracts, forward contracts, options contracts and swap contracts held for dealing or trading purpose",null,null,null,null,"Payments to future contracts, forward contracts, options contracts and swap contracts held for dealing or trading purpose",null,null,null,null,null,null,null,{"$f":"+IF(COUNTA('Cash Flow Direct'!F25),+'Cash Flow Direct'!F25,\"\")","v":""}]
[null,null,null,null,"Payments to and on behalf of employees",null,null,null,null,"Payments to and on behalf of employees",null,null,null,null,null,null,null,{"$f":"+IF(COUNTA('Cash Flow Direct'!F26),+'Cash Flow Direct'!F26,\"\")","v":""}]
[null,null,null,null,"Payments for premiums and claims annuities and other policy benefits",null,null,null,null,"Payments for premiums and claims, annuities and other policy benefits",null,null,null,null,null,null,null,{"$f":"+IF(COUNTA('Cash Flow Direct'!F27),+'Cash Flow Direct'!F27,\"\")","v":""}]
[null,null,null,null,"Other cash payments from operating activities",null,null,null,null,"Other cash payments from operating activities",null,null,null,null,null,null,null,{"$f":"+IF(COUNTA('Cash Flow Direct'!F28),+'Cash Flow Direct'!F28,\"\")","v":""}]
[null,null,null,null,"Net cash flows from (used in) operations",{"$f":"IF(COUNT(F18:F28),ROUND(SUM(F18:F22)-SUM(F24)-SUM(F25)-SUM(F26)-SUM(F27)-SUM(F28),2),\"\")","v":""},null,null,null,"Net cash flows from (used in) operations",null,null,null,null,null,null,null,{"$f":"+IF(COUNTA('Cash Flow Direct'!F29),+'Cash Flow Direct'!F29,\"\")","v":""}]
[null,null,null,null,"Dividends received",null,null,null,null,"Dividends received operating activities",null,null,null,null,null,null,null,{"$f":"+IF(COUNTA('Cash Flow Direct'!F30),+'Cash Flow Direct'!F30,\"\")","v":""}]
[null,null,null,null,"Interest paid",null,null,null,null,"Interest paid operating activities",null,null,null,null,null,null,null,{"$f":"+IF(COUNTA('Cash Flow Direct'!F31),+'Cash Flow Direct'!F31,\"\")","v":""}]
[null,null,null,null,"Interest received",null,null,null,null,"Interest received operating activities",null,null,null,null,null,null,null,{"$f":"+IF(COUNTA('Cash Flow Direct'!F32),+'Cash Flow Direct'!F32,\"\")","v":""}]
[null,null,null,null,"Income taxes paid (refund)",null,null,null,null,"Income taxes paid (refund) operating activities",null,null,null,null,null,null,null,{"$f":"+IF(COUNTA('Cash Flow Direct'!F33),+'Cash Flow Direct'!F33,\"\")","v":""}]
[null,null,null,null,"Other inflows (outflows) of cash",null,null,null,null,"Other inflows (outflows) of cash operating activities",null,null,null,null,null,null,null,{"$f":"+IF(COUNTA('Cash Flow Direct'!F34),+'Cash Flow Direct'!F34,\"\")","v":""}]
[null,null,null,null,"Net cash flows from (used in) operating activities before extraordinary items",{"$f":"IF(COUNT(F29:F34),ROUND(SUM(F29)+SUM(F30)-SUM(F31)+SUM(F32)-SUM(F33)+SUM(F34),2),\"\")","v":""},null,null,null,"Net cash flows from (used in) operating activities before extraordinary items",null,null,null,null,null,null,null,{"$f":"+IF(COUNTA('Cash Flow Direct'!F35),+'Cash Flow Direct'!F35,\"\")","v":""}]
[null,null,null,null,"Proceeds from extraordinary items",null,null,null,null,"Proceeds from extraordinary items operating activities",null,null,null,null,null,null,null,{"$f":"+IF(COUNTA('Cash Flow Direct'!F36),+'Cash Flow Direct'!F36,\"\")","v":""}]
[null,null,null,null,"Payment for extraordinary items",null,null,null,null,"Payment for extraordinary items operating activities",null,null,null,null,null,null,null,{"$f":"+IF(COUNTA('Cash Flow Direct'!F37),+'Cash Flow Direct'!F37,\"\")","v":""}]
[null,null,null,null,"Net cash flows from (used in) operating activities",{"$f":"IF(COUNT(F35:F37),ROUND(SUM(F35:F36)-SUM(F37),2),\"\")","v":""},null,null,null,"Net cash flows from (used in) operating activities",null,null,null,null,null,null,null,{"$f":"+IF(COUNTA('Cash Flow Direct'!F38),+'Cash Flow Direct'!F38,\"\")","v":""}]
[null,null,null,4,"Cash flows from used in investing activities",null,null,null,null,"Cash flows from used in investing activities [Abstract]",null,null,null,null,null,null,null,{"$f":"+IF(COUNTA('Cash Flow Direct'!F39),+'Cash Flow Direct'!F39,\"\")","v":""}]
[null,null,null,null,"Cash flows from losing control of subsidiaries or other businesses",null,null,null,null,"Cash flows from losing control of subsidiaries or other businesses",null,null,null,null,null,null,null,{"$f":"+IF(COUNTA('Cash Flow Direct'!F40),+'Cash Flow Direct'!F40,\"\")","v":""}]
[null,null,null,null,"Cash flows used in obtaining control of subsidiaries or other businesses",null,null,null,null,"Cash flows used in obtaining control of subsidiaries or other businesses",null,null,null,null,null,null,null,{"$f":"+IF(COUNTA('Cash Flow Direct'!F41),+'Cash Flow Direct'!F41,\"\")","v":""}]
[null,null,null,null,"Other cash receipts from sales of equity or debt instruments of other entities",null,null,null,null,"Other cash receipts from sales of equity or debt instruments of other entities",null,null,null,null,null,null,null,{"$f":"+IF(COUNTA('Cash Flow Direct'!F42),+'Cash Flow Direct'!F42,\"\")","v":""}]
[null,null,null,null,"Other cash payments to acquire equity or debt instruments of other entities",null,null,null,null,"Other cash payments to acquire equity or debt instruments of other entities",null,null,null,null,null,null,null,{"$f":"+IF(COUNTA('Cash Flow Direct'!F43),+'Cash Flow Direct'!F43,\"\")","v":""}]
[null,null,null,null,"Other cash receipts from sales of interests in joint ventures",null,null,null,null,"Other cash receipts from sales of interests in joint ventures",null,null,null,null,null,null,null,{"$f":"+IF(COUNTA('Cash Flow Direct'!F44),+'Cash Flow Direct'!F44,\"\")","v":""}]
[null,null,null,null,"Other cash payments to acquire interests in joint ventures",null,null,null,null,"Other cash payments to acquire interests in joint ventures",null,null,null,null,null,null,null,{"$f":"+IF(COUNTA('Cash Flow Direct'!F45),+'Cash Flow Direct'!F45,\"\")","v":""}]
[null,null,null,null,"Cash receipts from share of profits of partnership firm or association of persons or limited liability partnerships",null,null,null,null,"Cash receipts from share of profits of partnership firm or association of persons or limited liability partnerships",null,null,null,null,null,null,null,{"$f":"+IF(COUNTA('Cash Flow Direct'!F46),+'Cash Flow Direct'!F46,\"\")","v":""}]
[null,null,null,null,"Cash payment for investment in partnership firm or association of persons or limited liability partnerships",null,null,null,null,"Cash payment for investment in partnership firm or association of persons or limited liability partnerships",null,null,null,null,null,null,null,{"$f":"+IF(COUNTA('Cash Flow Direct'!F47),+'Cash Flow Direct'!F47,\"\")","v":""}]
[null,null,null,null,"Proceeds from sales of property plant and equipment",null,null,null,null,"Proceeds from sales of property plant and equipment",null,null,null,null,null,null,null,{"$f":"+IF(COUNTA('Cash Flow Direct'!F48),+'Cash Flow Direct'!F48,\"\")","v":""}]
[null,null,null,null,"Purchase of property plant and equipment",null,null,null,null,"Purchase of property plant and equipment",null,null,null,null,null,null,null,{"$f":"+IF(COUNTA('Cash Flow Direct'!F49),+'Cash Flow Direct'!F49,\"\")","v":""}]
[null,null,null,null,"Proceeds from sales of intangible assets",null,null,null,null,"Proceeds from sales of intangible assets",null,null,null,null,null,null,null,{"$f":"+IF(COUNTA('Cash Flow Direct'!F50),+'Cash Flow Direct'!F50,\"\")","v":""}]
[null,null,null,null,"Purchase of intangible assets",null,null,null,null,"Purchase of intangible assets",null,null,null,null,null,null,null,{"$f":"+IF(COUNTA('Cash Flow Direct'!F51),+'Cash Flow Direct'!F51,\"\")","v":""}]
[null,null,null,null,"Cash advances and loans made to other parties",null,null,null,null,"Cash advances and loans made to other parties",null,null,null,null,null,null,null,{"$f":"+IF(COUNTA('Cash Flow Direct'!F52),+'Cash Flow Direct'!F52,\"\")","v":""}]
[null,null,null,null,"Cash receipts from repayment of advances and loans made to other parties",null,null,null,null,"Cash receipts from repayment of advances and loans made to other parties",null,null,null,null,null,null,null,{"$f":"+IF(COUNTA('Cash Flow Direct'!F53),+'Cash Flow Direct'!F53,\"\")","v":""}]
[null,null,null,null,"Cash payments for future contracts, forward contracts, option contracts and swap contracts",null,null,null,null,"Cash payments for future contracts, forward contracts, option contracts and swap contracts",null,null,null,null,null,null,null,{"$f":"+IF(COUNTA('Cash Flow Direct'!F54),+'Cash Flow Direct'!F54,\"\")","v":""}]
[null,null,null,null,"Cash receipts from future contracts, forward contracts, option contracts and swap contracts",null,null,null,null,"Cash receipts from future contracts, forward contracts, option contracts and swap contracts",null,null,null,null,null,null,null,{"$f":"+IF(COUNTA('Cash Flow Direct'!F55),+'Cash Flow Direct'!F55,\"\")","v":""}]
[null,null,null,null,"Dividends received",null,null,null,null,"Dividends received investing activities",null,null,null,null,null,null,null,{"$f":"+IF(COUNTA('Cash Flow Direct'!F56),+'Cash Flow Direct'!F56,\"\")","v":""}]
[null,null,null,null,"Interest received",null,null,null,null,"Interest received investing activities",null,null,null,null,null,null,null,{"$f":"+IF(COUNTA('Cash Flow Direct'!F57),+'Cash Flow Direct'!F57,\"\")","v":""}]
[null,null,null,null,"Income taxes paid (refund)",null,null,null,null,"Income taxes paid (refund) investing activities",null,null,null,null,null,null,null,{"$f":"+IF(COUNTA('Cash Flow Direct'!F58),+'Cash Flow Direct'!F58,\"\")","v":""}]
[null,null,null,null,"Other inflows (outflows) of cash",null,null,null,null,"Other inflows (outflows) of cash investing activities",null,null,null,null,null,null,null,{"$f":"+IF(COUNTA('Cash Flow Direct'!F59),+'Cash Flow Direct'!F59,\"\")","v":""}]
[null,null,null,null,"Proceeds from government grants",null,null,null,null,"Proceeds from government grants",null,null,null,null,null,null,null,{"$f":"+IF(COUNTA('Cash Flow Direct'!F60),+'Cash Flow Direct'!F60,\"\")","v":""}]
[null,null,null,null,"Net cash flows from (used in) investing activities before extraordinary items",{"$f":"IF(COUNT(F40:F60),ROUND(SUM(F40)-SUM(F41)+SUM(F42)-SUM(F43)+SUM(F44)-SUM(F45)+SUM(F46)-SUM(F47)+SUM(F48)-SUM(F49)+SUM(F50)-SUM(F51)-SUM(F52)+SUM(F53)-SUM(F54)+SUM(F55)+SUM(F56)+SUM(F57)-SUM(F58)+SUM(F59)+SUM(F60),2),\"\")","v":""},null,null,null,"Net cash flows from (used in) investing activities before extraordinary items",null,null,null,null,null,null,null,{"$f":"+IF(COUNTA('Cash Flow Direct'!F61),+'Cash Flow Direct'!F61,\"\")","v":""}]
[null,null,null,null,"Proceeds from extraordinary items",null,null,null,null,"Proceeds from extraordinary items investing activities",null,null,null,null,null,null,null,{"$f":"+IF(COUNTA('Cash Flow Direct'!F62),+'Cash Flow Direct'!F62,\"\")","v":""}]
[null,null,null,null,"Payment for extraordinary items",null,null,null,null,"Payment for extraordinary items investing activities",null,null,null,null,null,null,null,{"$f":"+IF(COUNTA('Cash Flow Direct'!F63),+'Cash Flow Direct'!F63,\"\")","v":""}]
[null,null,null,null,"Net cash flows from (used in) investing activities",{"$f":"IF(COUNT(F61:F63),ROUND(SUM(F61:F62)-SUM(F63),2),\"\")","v":""},null,null,null,"Net cash flows from (used in) investing activities",null,null,null,null,null,null,null,{"$f":"+IF(COUNTA('Cash Flow Direct'!F64),+'Cash Flow Direct'!F64,\"\")","v":""}]
[null,null,null,5,"Cash flows from used in financing activities",null,null,null,null,"Cash flows from used in financing activities [Abstract]",null,null,null,null,null,null,null,{"$f":"+IF(COUNTA('Cash Flow Direct'!F65),+'Cash Flow Direct'!F65,\"\")","v":""}]
[null,null,null,null,"Proceeds from issuing shares",null,null,null,null,"Proceeds from issuing shares",null,null,null,null,null,null,null,{"$f":"+IF(COUNTA('Cash Flow Direct'!F66),+'Cash Flow Direct'!F66,\"\")","v":""}]
[null,null,null,null,"Proceeds from issuing other equity instruments",null,null,null,null,"Proceeds from issuing other equity instruments",null,null,null,null,null,null,null,{"$f":"+IF(COUNTA('Cash Flow Direct'!F67),+'Cash Flow Direct'!F67,\"\")","v":""}]
[null,null,null,null,"Proceeds from issuing debentures notes bonds etc",null,null,null,null,"Proceeds from issuing debentures notes bonds etc",null,null,null,null,null,null,null,{"$f":"+IF(COUNTA('Cash Flow Direct'!F68),+'Cash Flow Direct'!F68,\"\")","v":""}]
[null,null,null,null,"Proceeds from borrowings",null,null,null,null,"Proceeds from borrowings",null,null,null,null,null,null,null,{"$f":"+IF(COUNTA('Cash Flow Direct'!F69),+'Cash Flow Direct'!F69,\"\")","v":""}]
[null,null,null,null,"Repayments of borrowings",null,null,null,null,"Repayments of borrowings",null,null,null,null,null,null,null,{"$f":"+IF(COUNTA('Cash Flow Direct'!F70),+'Cash Flow Direct'!F70,\"\")","v":""}]
[null,null,null,null,"Dividends paid",null,null,null,null,"Dividends paid",null,null,null,null,null,null,null,{"$f":"+IF(COUNTA('Cash Flow Direct'!F71),+'Cash Flow Direct'!F71,\"\")","v":""}]
[null,null,null,null,"Interest paid",null,null,null,null,"Interest paid",null,null,null,null,null,null,null,{"$f":"+IF(COUNTA('Cash Flow Direct'!F72),+'Cash Flow Direct'!F72,\"\")","v":""}]
[null,null,null,null,"Income taxes paid (refund)",null,null,null,null,"Income taxes paid (refund)",null,null,null,null,null,null,null,{"$f":"+IF(COUNTA('Cash Flow Direct'!F73),+'Cash Flow Direct'!F73,\"\")","v":""}]
[null,null,null,null,"Other inflows (outflows) of cash",null,null,null,null,"Other inflows (outflows) of cash",null,null,null,null,null,null,null,{"$f":"+IF(COUNTA('Cash Flow Direct'!F74),+'Cash Flow Direct'!F74,\"\")","v":""}]
[null,null,null,null,"Net cash flows from (used in) financing activities before extraordinary items",{"$f":"IF(COUNT(F66:F74),ROUND(SUM(F66:F69)+SUM(F74)-SUM(F70)-SUM(F71)-SUM(F72)-SUM(F73),2),\"\")","v":""},null,null,null,"Net cash flows from (used in) financing activities before extraordinary items",null,null,null,null,null,null,null,{"$f":"+IF(COUNTA('Cash Flow Direct'!F75),+'Cash Flow Direct'!F75,\"\")","v":""}]
[null,null,null,null,"Proceeds from extraordinary items",null,null,null,null,"Proceeds from extraordinary items",null,null,null,null,null,null,null,{"$f":"+IF(COUNTA('Cash Flow Direct'!F76),+'Cash Flow Direct'!F76,\"\")","v":""}]
[null,null,null,null,"Payment for extraordinary items",null,null,null,null,"Payment for extraordinary items",null,null,null,null,null,null,null,{"$f":"+IF(COUNTA('Cash Flow Direct'!F77),+'Cash Flow Direct'!F77,\"\")","v":""}]
[null,null,null,null,"Net cash flows from (used in) financing activities",{"$f":"IF(COUNT(F75:F77),ROUND(SUM(F75:F76)-SUM(F77),2),\"\")","v":""},null,null,null,"Net cash flows from (used in) financing activities",null,null,null,null,null,null,null,{"$f":"+IF(COUNTA('Cash Flow Direct'!F78),+'Cash Flow Direct'!F78,\"\")","v":""}]
[null,null,null,null,"Net increase (decrease) in cash and cash equivalents before effect of exchange rate changes",{"$f":"+IF(COUNT(F38:F78),ROUND(SUM(F64,F78,F38),2),\"\")","v":""},null,null,null,"Net increase (decrease) in cash and cash equivalents before effect of exchange rate changes",null,null,null,null,null,null,null,{"$f":"+IF(COUNTA('Cash Flow Direct'!F79),+'Cash Flow Direct'!F79,\"\")","v":""}]
[null,null,null,6,"Effect of exchange rate changes on cash and cash equivalents",null,null,null,null,"Effect of exchange rate changes on cash and cash equivalents [Abstract]",null,null,null,null,null,null,null,{"$f":"+IF(COUNTA('Cash Flow Direct'!F80),+'Cash Flow Direct'!F80,\"\")","v":""}]
[null,null,null,null,"Effect of exchange rate changes on cash and cash equivalents",null,null,null,null,"Effect of exchange rate changes on cash and cash equivalents",null,null,null,null,null,null,null,{"$f":"+IF(COUNTA('Cash Flow Direct'!F81),+'Cash Flow Direct'!F81,\"\")","v":""}]
[null,null,null,null,"Net increase (decrease) in cash and cash equivalents ",{"$f":"+IF(COUNT(F79:F81),ROUND(SUM(F79,F81),2),\"\")","v":""},null,null,null,"Net increase (decrease) in cash and cash equivalents",null,null,null,null,null,null,null,{"$f":"+IF(COUNTA('Cash Flow Direct'!F82),+'Cash Flow Direct'!F82,\"\")","v":""}]
[null,null,null,null,"Cash and cash equivalents cash flow statement at beginning of period",null,null,null,null,"Cash and cash equivalents cash flow statement at beginning of period",null,null,null,null,null,null,null,{"$f":"+IF(COUNTA('Cash Flow Direct'!F83),+'Cash Flow Direct'!F83,\"\")","v":""}]
[null,null,null,null,"Cash and cash equivalents cash flow statement at end of period",{"$f":"+IF(COUNT(F82:F83),ROUND(SUM(F82,F83),2),\"\")","v":""},null,null,null,"Cash and cash equivalents cash flow statement at end of period",null,null,null,null,null,null,null,{"$f":"+IF(COUNTA('Cash Flow Direct'!F84),+'Cash Flow Direct'!F84,\"\")","v":""}]

{"sheet":"Cash Flow Indirect","index":4,"n_rows":95,"n_cols":18,"rows_kept":95,"cut":false,"hidden":true,"merged":[[7,3,7,5],[8,3,8,4],[13,4,13,5],[9,3,9,4],[10,3,10,4],[11,3,11,4],[12,3,12,4]]}
[]
[]
[]
[]
[]
[]
[null,null,null,null,null,{"$f":"IF('General Info'!E19=\"\",\"\",\"Amount in (\"&'General Info'!E19&\")\")","v":""}]
[null,null,null,"Cash flow statement - indirect"]
[null,null,null,"Particulars",null,{"$f":"IF('General Info'!E21=\"Half yearly\",\"Half Year ended (dd-mm-yyyy)\",IF('General Info'!E21=\"Second quarter\",\"Half Year ended (dd-mm-yyyy)\",\"Year ended (dd-mm-yyyy)\"))","v":"Year ended (dd-mm-yyyy)"}]
[null,null,null,"Date of start of reporting period",null,{"$f":"IF('General Info'!E21=\"\",\"\",IF('General Info'!F14=\"\",\"\",IF('General Info'!G14=\"\",\"\",'General Info'!E14&\"-\"&'General Info'!F14&\"-\"&'General Info'!G14)))","v":""}]
[null,null,null,"Date of end of reporting period",null,{"$f":"IF('General Info'!E15=\"\",\"\",IF('General Info'!F15=\"\",\"\",IF('General Info'!$E$21='General Info'!T24,IF(LEN('General Info'!U29)>1,'General Info'!U29,\"0\"&'General Info'!U29)&\"-\"&IF(LEN('General Info'!V29)>1,'General Info'!V29,\"0\"&'General Info'!V29)&\"-\"&IF(LEN('General Info'!W29)>1,'General Info'!W29,\"0\"&'General Info'!W29),\"\")&IF(OR('General Info'!$E$21='General Info'!T25,'General Info'!$E$21='General Info'!T9),IF(LEN('General Info'!U30)>1,'General Info'!U30,\"0\"&'General Info'!U30)&\"-\"&IF(LEN('General Info'!V30)>1,'General Info'!V30,\"0\"&'General Info'!V30)&\"-\"&IF(LEN('General Info'!W30)>1,'General Info'!W30,\"0\"&'General Info'!W30),\"\")&IF('General Info'!$E$21='General Info'!T26,IF(LEN('General Info'!U31)>1,'General Info'!U31,\"0\"&'General Info'!U31)&\"-\"&IF(LEN('General Info'!V31)>1,'General Info'!V31,\"0\"&'General Info'!V31)&\"-\"&IF(LEN('General Info'!W31)>1,'General Info'!W31,\"0\"&'General Info'!W31),\"\")&IF(OR('General Info'!$E$21='General Info'!T27,'General Info'!$E$21='General Info'!T10),IF(LEN('General Info'!U32)>1,'General Info'!U32,\"0\"&'General Info'!U32)&\"-\"&IF(LEN('General Info'!V32)>1,'General Info'!V32,\"0\"&'General Info'!V32)&\"-\"&IF(LEN('General Info'!W32)>1,'General Info'!W32,\"0\"&'General Info'!W32),\"\")))","v":""}]
[null,null,null,"Whether results are audited or unaudited",null,{"$f":"IF(COUNTA('Financial Results'!G12),'Financial Results'!G12,\"\")","v":""},null,null,null,null,null,null,null,null,null,null,null,"Audited"]
[null,null,null,"Nature of report standalone or consolidated",null,{"$f":"+IF(COUNTA('General Info'!E22),'General Info'!E22,\"\")","v":""},null,null,null,null,null,null,null,null,null,null,null,"Unaudited"]
[]
[null,null,null,1,"Statement of cash flows"]
[null,null,null,null,"Cash flows from used in operating activities"]
[null,null,null,null,"Profit before extraordinary items and tax",{"$f":"+IF(COUNTA('Financial Results'!$G$41),'Financial Results'!$G$41,\"\")","v":""},null,null,null,"Total profit before extraordinary items and tax",null,null,null,null,null,null,null,{"$f":"+IF(COUNTA('Cash Flow Indirect'!F17),+'Cash Flow Indirect'!F17,\"\")","v":""}]
[null,null,null,2,"Adjustments for reconcile profit (loss)",null,null,null,null,"Adjustments for reconcile profit (loss) [Abstract]",null,null,null,null,null,null,null,{"$f":"+IF(COUNTA('Cash Flow Indirect'!F18),+'Cash Flow Indirect'!F18,\"\")","v":""}]
[null,null,null,null,"Adjustments to profit (loss)",null,null,null,null,"Adjustments to profit (loss) [Abstract]",null,null,null,null,null,null,null,{"$f":"+IF(COUNTA('Cash Flow Indirect'!F19),+'Cash Flow Indirect'!F19,\"\")","v":""}]
[null,null,null,null,"Adjustments for finance costs",null,null,null,null,"Adjustments for finance costs",null,null,null,null,null,null,null,{"$f":"+IF(COUNTA('Cash Flow Indirect'!F20),+'Cash Flow Indirect'!F20,\"\")","v":""}]
[null,null,null,null,"Adjustments for depreciation and amortisation expense",null,null,null,null,"Adjustments for depreciation and amortisation expense",null,null,null,null,null,null,null,{"$f":"+IF(COUNTA('Cash Flow Indirect'!F21),+'Cash Flow Indirect'!F21,\"\")","v":""}]
[null,null,null,null,"Adjustments for impairment loss reversal of impairment loss recognised in profit or loss",null,null,null,null,"Adjustments for impairment loss reversal of impairment loss recognised in profit or loss",null,null,null,null,null,null,null,{"$f":"+IF(COUNTA('Cash Flow Indirect'!F22),+'Cash Flow Indirect'!F22,\"\")","v":""}]
[null,null,null,null,"Adjustments for unrealised foreign exchange losses gains",null,null,null,null,"Adjustments for unrealised foreign exchange losses gains",null,null,null,null,null,null,null,{"$f":"+IF(COUNTA('Cash Flow Indirect'!F23),+'Cash Flow Indirect'!F23,\"\")","v":""}]
[null,null,null,null,"Adjustments for dividend income",null,null,null,null,"Adjustments for dividend income",null,null,null,null,null,null,null,{"$f":"+IF(COUNTA('Cash Flow Indirect'!F24),+'Cash Flow Indirect'!F24,\"\")","v":""}]
[null,null,null,null,"Adjustments for share-based payments",null,null,null,null,"Adjustments for share-based payments",null,null,null,null,null,null,null,{"$f":"+IF(COUNTA('Cash Flow Indirect'!F25),+'Cash Flow Indirect'!F25,\"\")","v":""}]
[null,null,null,null,"Other adjustments for which cash effects are investing or financing cash flow",null,null,null,null,"Other adjustments for which cash effects are investing or financing cash flow",null,null,null,null,null,null,null,{"$f":"+IF(COUNTA('Cash Flow Indirect'!F26),+'Cash Flow Indirect'!F26,\"\")","v":""}]
[null,null,null,null,"Other adjustments to reconcile profit (loss)",null,null,null,null,"Other adjustments to reconcile profit (loss)",null,null,null,null,null,null,null,{"$f":"+IF(COUNTA('Cash Flow Indirect'!F27),+'Cash Flow Indirect'!F27,\"\")","v":""}]
[null,null,null,null,"Other adjustments for non-cash items",null,null,null,null,"Other adjustments for non-cash items",null,null,null,null,null,null,null,{"$f":"+IF(COUNTA('Cash Flow Indirect'!F28),+'Cash Flow Indirect'!F28,\"\")","v":""}]
[null,null,null,null,"Share of profit and loss from partnership firm or association of persons or limited liability partnerships",null,null,null,null,"Share of profit and loss from partnership firm or association of persons or limited liability partnerships",null,null,null,null,null,null,null,{"$f":"+IF(COUNTA('Cash Flow Indirect'!F29),+'Cash Flow Indirect'!F29,\"\")","v":""}]
[null,null,null,null,"Total adjustments to profit (loss)",{"$f":"IF(COUNT(F20:F29),ROUND(SUM(F20:F23) + SUM(F25:F29) - SUM(F24),2),\"\")","v":""},null,null,null,"Total adjustments to profit (loss)",null,null,null,null,null,null,null,{"$f":"+IF(COUNTA('Cash Flow Indirect'!F30),+'Cash Flow Indirect'!F30,\"\")","v":""}]
[null,null,null,3,"Adjustments for working capital",null,null,null,null,"Adjustments for working capital [Abstract]",null,null,null,null,null,null,null,{"$f":"+IF(COUNTA('Cash Flow Indirect'!F31),+'Cash Flow Indirect'!F31,\"\")","v":""}]
[null,null,null,null,"Adjustments for decrease (increase) in inventories",null,null,null,null,"Adjustments for decrease (increase) in inventories",null,null,null,null,null,null,null,{"$f":"+IF(COUNTA('Cash Flow Indirect'!F32),+'Cash Flow Indirect'!F32,\"\")","v":""}]
[null,null,null,null,"Adjustments for decrease (increase) in trade receivables",null,null,null,null,"Adjustments for decrease (increase) in trade receivables",null,null,null,null,null,null,null,{"$f":"+IF(COUNTA('Cash Flow Indirect'!F33),+'Cash Flow Indirect'!F33,\"\")","v":""}]
[null,null,null,null,"Adjustments for decrease (increase) in other current assets",null,null,null,null,"Adjustments for decrease (increase) in other current assets",null,null,null,null,null,null,null,{"$f":"+IF(COUNTA('Cash Flow Indirect'!F34),+'Cash Flow Indirect'!F34,\"\")","v":""}]
[null,null,null,null,"Adjustments for increase (decrease) in trade payables",null,null,null,null,"Adjustments for increase (decrease) in trade payables",null,null,null,null,null,null,null,{"$f":"+IF(COUNTA('Cash Flow Indirect'!F35),+'Cash Flow Indirect'!F35,\"\")","v":""}]
[null,null,null,null,"Adjustments for increase (decrease) in other current liabilities",null,null,null,null,"Adjustments for increase (decrease) in other current liabilities",null,null,null,null,null,null,null,{"$f":"+IF(COUNTA('Cash Flow Indirect'!F36),+'Cash Flow Indirect'!F36,\"\")","v":""}]
[null,null,null,null,"Adjustments for provisions",null,null,null,null,"Adjustments for provisions",null,null,null,null,null,null,null,{"$f":"+IF(COUNTA('Cash Flow Indirect'!F37),+'Cash Flow Indirect'!F37,\"\")","v":""}]
[null,null,null,null,"Total adjustments for working capital",{"$f":"IF(COUNT(F32:F37),ROUND(SUM(F32:F37),2),\"\")","v":""},null,null,null,"Total adjustments for working capital",null,null,null,null,null,null,null,{"$f":"+IF(COUNTA('Cash Flow Indirect'!F38),+'Cash Flow Indirect'!F38,\"\")","v":""}]
[null,null,null,null,"Total adjustments for reconcile profit (loss)",{"$f":"+IF(COUNT(F30:F38),ROUND(SUM(F30,F38),2),\"\")","v":""},null,null,null,"Total adjustments for reconcile profit (loss)",null,null,null,null,null,null,null,{"$f":"+IF(COUNTA('Cash Flow Indirect'!F39),+'Cash Flow Indirect'!F39,\"\")","v":""}]
[null,null,null,null,"Net cash flows from (used in) operations",{"$f":"+IF(COUNT(F17:F39),ROUND(SUM(F39,F17),2),\"\")","v":""},null,null,null,"Net cash flows from (used in) operations",null,null,null,null,null,null,null,{"$f":"+IF(COUNTA('Cash Flow Indirect'!F40),+'Cash Flow Indirect'!F40,\"\")","v":""}]
[null,null,null,null,"Dividends received",null,null,null,null,"Dividends received operating activities",null,null,null,null,null,null,null,{"$f":"+IF(COUNTA('Cash Flow Indirect'!F41),+'Cash Flow Indirect'!F41,\"\")","v":""}]
[null,null,null,null,"Interest paid",null,null,null,null,"Interest paid operating activities",null,null,null,null,null,null,null,{"$f":"+IF(COUNTA('Cash Flow Indirect'!F42),+'Cash Flow Indirect'!F42,\"\")","v":""}]
[null,null,null,null,"Interest received",null,null,null,null,"Interest received operating activities",null,null,null,null,null,null,null,{"$f":"+IF(COUNTA('Cash Flow Indirect'!F43),+'Cash Flow Indirect'!F43,\"\")","v":""}]
[null,null,null,null,"Income taxes paid (refund)",null,null,null,null,"Income taxes paid (refund) operating activities",null,null,null,null,null,null,null,{"$f":"+IF(COUNTA('Cash Flow Indirect'!F44),+'Cash Flow Indirect'!F44,\"\")","v":""}]
[null,null,null,null,"Other inflows (outflows) of cash",null,null,null,null,"Other inflows (outflows) of cash operating activities",null,null,null,null,null,null,null,{"$f":"+IF(COUNTA('Cash Flow Indirect'!F45),+'Cash Flow Indirect'!F45,\"\")","v":""}]
[null,null,null,null,"Net cash flows from (used in) operating activities before extraordinary items",{"$f":"IF(COUNT(F40:F45),ROUND(SUM(F40)+SUM(F41)-SUM(F42)+SUM(F43)-SUM(F44)+SUM(F45),2),\"\")","v":""},null,null,null,"Net cash flows from (used in) operating activities before extraordinary items",null,null,null,null,null,null,null,{"$f":"+IF(COUNTA('Cash Flow Indirect'!F46),+'Cash Flow Indirect'!F46,\"\")","v":""}]
[null,null,null,null,"Proceeds from extraordinary items",null,null,null,null,"Proceeds from extraordinary items operating activities",null,null,null,null,null,null,null,{"$f":"+IF(COUNTA('Cash Flow Indirect'!F47),+'Cash Flow Indirect'!F47,\"\")","v":""}]
[null,null,null,null,"Payment for extraordinary items",null,null,null,null,"Payment for extraordinary items operating activities",null,null,null,null,null,null,null,{"$f":"+IF(COUNTA('Cash Flow Indirect'!F48),+'Cash Flow Indirect'!F48,\"\")","v":""}]
[null,null,null,null,"Net cash flows from (used in) operating activities",{"$f":"IF(COUNT(F46:F48),ROUND(SUM(F46:F47)-SUM(F48),2),\"\")","v":""},null,null,null,"Net cash flows from (used in) operating activities",null,null,null,null,null,null,null,{"$f":"+IF(COUNTA('Cash Flow Indirect'!F49),+'Cash Flow Indirect'!F49,\"\")","v":""}]
[null,null,null,4,"Cash flows from used in investing activities",null,null,null,null,"Cash flows from used in investing activities [Abstract]",null,null,null,null,null,null,null,{"$f":"+IF(COUNTA('Cash Flow Indirect'!F50),+'Cash Flow Indirect'!F50,\"\")","v":""}]
[null,null,null,null,"Cash flows from losing control of subsidiaries or other businesses",null,null,null,null,"Cash flows from losing control of subsidiaries or other businesses",null,null,null,null,null,null,null,{"$f":"+IF(COUNTA('Cash Flow Indirect'!F51),+'Cash Flow Indirect'!F51,\"\")","v":""}]
[null,null,null,null,"Cash flows used in obtaining control of subsidiaries or other businesses",null,null,null,null,"Cash flows used in obtaining control of subsidiaries or other businesses",null,null,null,null,null,null,null,{"$f":"+IF(COUNTA('Cash Flow Indirect'!F52),+'Cash Flow Indirect'!F52,\"\")","v":""}]
[null,null,null,null,"Other cash receipts from sales of equity or debt instruments of other entities",null,null,null,null,"Other cash receipts from sales of equity or debt instruments of other entities",null,null,null,null,null,null,null,{"$f":"+IF(COUNTA('Cash Flow Indirect'!F53),+'Cash Flow Indirect'!F53,\"\")","v":""}]
[null,null,null,null,"Other cash payments to acquire equity or debt instruments of other entities",null,null,null,null,"Other cash payments to acquire equity or debt instruments of other entities",null,null,null,null,null,null,null,{"$f":"+IF(COUNTA('Cash Flow Indirect'!F54),+'Cash Flow Indirect'!F54,\"\")","v":""}]
[null,null,null,null,"Other cash receipts from sales of interests in joint ventures",null,null,null,null,"Other cash receipts from sales of interests in joint ventures",null,null,null,null,null,null,null,{"$f":"+IF(COUNTA('Cash Flow Indirect'!F55),+'Cash Flow Indirect'!F55,\"\")","v":""}]
[null,null,null,null,"Other cash payments to acquire interests in joint ventures",null,null,null,null,"Other cash payments to acquire interests in joint ventures",null,null,null,null,null,null,null,{"$f":"+IF(COUNTA('Cash Flow Indirect'!F56),+'Cash Flow Indirect'!F56,\"\")","v":""}]
[null,null,null,null,"Cash receipts from share of profits of partnership firm or association of persons or limited liability partnerships",null,null,null,null,"Cash receipts from share of profits of partnership firm or association of persons or limited liability partnerships",null,null,null,null,null,null,null,{"$f":"+IF(COUNTA('Cash Flow Indirect'!F57),+'Cash Flow Indirect'!F57,\"\")","v":""}]
[null,null,null,null,"Cash payment for investment in partnership firm or association of persons or limited liability partnerships",null,null,null,null,"Cash payment for investment in partnership firm or association of persons or limited liability partnerships",null,null,null,null,null,null,null,{"$f":"+IF(COUNTA('Cash Flow Indirect'!F58),+'Cash Flow Indirect'!F58,\"\")","v":""}]
[null,null,null,null,"Proceeds from sales of property plant and equipment",null,null,null,null,"Proceeds from sales of property plant and equipment",null,null,null,null,null,null,null,{"$f":"+IF(COUNTA('Cash Flow Indirect'!F59),+'Cash Flow Indirect'!F59,\"\")","v":""}]
[null,null,null,null,"Purchase of property plant and equipment",null,null,null,null,"Purchase of property plant and equipment",null,null,null,null,null,null,null,{"$f":"+IF(COUNTA('Cash Flow Indirect'!F60),+'Cash Flow Indirect'!F60,\"\")","v":""}]
[null,null,null,null,"Proceeds from sales of intangible assets",null,null,null,null,"Proceeds from sales of intangible assets",null,null,null,null,null,null,null,{"$f":"+IF(COUNTA('Cash Flow Indirect'!F61),+'Cash Flow Indirect'!F61,\"\")","v":""}]
[null,null,null,null,"Purchase of intangible assets",null,null,null,null,"Purchase of intangible assets",null,null,null,null,null,null,null,{"$f":"+IF(COUNTA('Cash Flow Indirect'!F62),+'Cash Flow Indirect'!F62,\"\")","v":""}]
[null,null,null,null,"Cash advances and loans made to other parties",null,null,null,null,"Cash advances and loans made to other parties",null,null,null,null,null,null,null,{"$f":"+IF(COUNTA('Cash Flow Indirect'!F63),+'Cash Flow Indirect'!F63,\"\")","v":""}]
[null,null,null,null,"Cash receipts from repayment of advances and loans made to other parties",null,null,null,null,"Cash receipts from repayment of advances and loans made to other parties",null,null,null,null,null,null,null,{"$f":"+IF(COUNTA('Cash Flow Indirect'!F64),+'Cash Flow Indirect'!F64,\"\")","v":""}]
[null,null,null,null,"Cash payments for future contracts, forward contracts, option contracts and swap contracts",null,null,null,null,"Cash payments for future contracts, forward contracts, option contracts and swap contracts",null,null,null,null,null,null,null,{"$f":"+IF(COUNTA('Cash Flow Indirect'!F65),+'Cash Flow Indirect'!F65,\"\")","v":""}]
[null,null,null,null,"Cash receipts from future contracts, forward contracts, option contracts and swap contracts",null,null,null,null,"Cash receipts from future contracts, forward contracts, option contracts and swap contracts",null,null,null,null,null,null,null,{"$f":"+IF(COUNTA('Cash Flow Indirect'!F66),+'Cash Flow Indirect'!F66,\"\")","v":""}]
[null,null,null,null,"Dividends received",null,null,null,null,"Dividends received investing activities",null,null,null,null,null,null,null,{"$f":"+IF(COUNTA('Cash Flow Indirect'!F67),+'Cash Flow Indirect'!F67,\"\")","v":""}]
[null,null,null,null,"Interest received",null,null,null,null,"Interest received investing activities",null,null,null,null,null,null,null,{"$f":"+IF(COUNTA('Cash Flow Indirect'!F68),+'Cash Flow Indirect'!F68,\"\")","v":""}]
[null,null,null,null,"Income taxes paid (refund)",null,null,null,null,"Income taxes paid (refund) investing activities",null,null,null,null,null,null,null,{"$f":"+IF(COUNTA('Cash Flow Indirect'!F69),+'Cash Flow Indirect'!F69,\"\")","v":""}]
[null,null,null,null,"Other inflows (outflows) of cash",null,null,null,null,"Other inflows (outflows) of cash investing activities",null,null,null,null,null,null,null,{"$f":"+IF(COUNTA('Cash Flow Indirect'!F70),+'Cash Flow Indirect'!F70,\"\")","v":""}]
[null,null,null,null,"Proceeds from government grants",null,null,null,null,"Proceeds from government grants",null,null,null,null,null,null,null,{"$f":"+IF(COUNTA('Cash Flow Indirect'!F71),+'Cash Flow Indirect'!F71,\"\")","v":""}]
[null,null,null,null,"Net cash flows from (used in) investing activities before extraordinary items",{"$f":"IF(COUNT(F51:F71),ROUND(SUM(F51)-SUM(F52)+SUM(F53)-SUM(F54)+SUM(F55)-SUM(F56)+SUM(F57)-SUM(F58)+SUM(F59)-SUM(F60)+SUM(F61)-SUM(F62)-SUM(F63)+SUM(F64)-SUM(F65)+SUM(F66)+SUM(F67)+SUM(F68)-SUM(F69)+SUM(F70)+SUM(F71),2),\"\")","v":""},null,null,null,"Net cash flows from (used in) investing activities before extraordinary items",null,null,null,null,null,null,null,{"$f":"+IF(COUNTA('Cash Flow Indirect'!F72),+'Cash Flow Indirect'!F72,\"\")","v":""}]
[null,null,null,null,"Proceeds from extraordinary items",null,null,null,null,"Proceeds from extraordinary items investing activities",null,null,null,null,null,null,null,{"$f":"+IF(COUNTA('Cash Flow Indirect'!F73),+'Cash Flow Indirect'!F73,\"\")","v":""}]
[null,null,null,null,"Payment for extraordinary items",null,null,null,null,"Payment for extraordinary items investing activities",null,null,null,null,null,null,null,{"$f":"+IF(COUNTA('Cash Flow Indirect'!F74),+'Cash Flow Indirect'!F74,\"\")","v":""}]
[null,null,null,null,"Net cash flows from (used in) investing activities",{"$f":"IF(COUNT(F72:F74),ROUND(SUM(F72:F73)-SUM(F74),2),\"\")","v":""},null,null,null,"Net cash flows from (used in) investing activities",null,null,null,null,null,null,null,{"$f":"+IF(COUNTA('Cash Flow Indirect'!F75),+'Cash Flow Indirect'!F75,\"\")","v":""}]
[null,null,null,5,"Cash flows from used in financing activities",null,null,null,null,"Cash flows from used in financing activities [Abstract]",null,null,null,null,null,null,null,{"$f":"+IF(COUNTA('Cash Flow Indirect'!F76),+'Cash Flow Indirect'!F76,\"\")","v":""}]
[null,null,null,null,"Proceeds from issuing shares",null,null,null,null,"Proceeds from issuing shares",null,null,null,null,null,null,null,{"$f":"+IF(COUNTA('Cash Flow Indirect'!F77),+'Cash Flow Indirect'!F77,\"\")","v":""}]
[null,null,null,null,"Proceeds from issuing other equity instruments",null,null,null,null,"Proceeds from issuing other equity instruments",null,null,null,null,null,null,null,{"$f":"+IF(COUNTA('Cash Flow Indirect'!F78),+'Cash Flow Indirect'!F78,\"\")","v":""}]
[null,null,null,null,"Proceeds from issuing debentures notes bonds etc",null,null,null,null,"Proceeds from issuing debentures notes bonds etc",null,null,null,null,null,null,null,{"$f":"+IF(COUNTA('Cash Flow Indirect'!F79),+'Cash Flow Indirect'!F79,\"\")","v":""}]
[null,null,null,null,"Proceeds from borrowings",null,null,null,null,"Proceeds from borrowings",null,null,null,null,null,null,null,{"$f":"+IF(COUNTA('Cash Flow Indirect'!F80),+'Cash Flow Indirect'!F80,\"\")","v":""}]
[null,null,null,null,"Repayments of borrowings",null,null,null,null,"Repayments of borrowings",null,null,null,null,null,null,null,{"$f":"+IF(COUNTA('Cash Flow Indirect'!F81),+'Cash Flow Indirect'!F81,\"\")","v":""}]
[null,null,null,null,"Dividends paid",null,null,null,null,"Dividends paid",null,null,null,null,null,null,null,{"$f":"+IF(COUNTA('Cash Flow Indirect'!F82),+'Cash Flow Indirect'!F82,\"\")","v":""}]
[null,null,null,null,"Interest paid",null,null,null,null,"Interest paid",null,null,null,null,null,null,null,{"$f":"+IF(COUNTA('Cash Flow Indirect'!F83),+'Cash Flow Indirect'!F83,\"\")","v":""}]
[null,null,null,null,"Income taxes paid (refund)",null,null,null,null,"Income taxes paid (refund)",null,null,null,null,null,null,null,{"$f":"+IF(COUNTA('Cash Flow Indirect'!F84),+'Cash Flow Indirect'!F84,\"\")","v":""}]
[null,null,null,null,"Other inflows (outflows) of cash",null,null,null,null,"Other inflows (outflows) of cash",null,null,null,null,null,null,null,{"$f":"+IF(COUNTA('Cash Flow Indirect'!F85),+'Cash Flow Indirect'!F85,\"\")","v":""}]
[null,null,null,null,"Net cash flows from (used in) financing activities before extraordinary items",{"$f":"IF(COUNT(F77:F85),ROUND(SUM(F77:F80)+SUM(F85)-SUM(F81)-SUM(F82)-SUM(F83)-SUM(F84),2),\"\")","v":""},null,null,null,"Net cash flows from (used in) financing activities before extraordinary items",null,null,null,null,null,null,null,{"$f":"+IF(COUNTA('Cash Flow Indirect'!F86),+'Cash Flow Indirect'!F86,\"\")","v":""}]
[null,null,null,null,"Proceeds from extraordinary items",null,null,null,null,"Proceeds from extraordinary items",null,null,null,null,null,null,null,{"$f":"+IF(COUNTA('Cash Flow Indirect'!F87),+'Cash Flow Indirect'!F87,\"\")","v":""}]
[null,null,null,null,"Payment for extraordinary items",null,null,null,null,"Payment for extraordinary items",null,null,null,null,null,null,null,{"$f":"+IF(COUNTA('Cash Flow Indirect'!F88),+'Cash Flow Indirect'!F88,\"\")","v":""}]
[null,null,null,null,"Net cash flows from (used in) financing activities",{"$f":"IF(COUNT(F86:F88),ROUND(SUM(F86:F87)-SUM(F88),2),\"\")","v":""},null,null,null,"Net cash flows from (used in) financing activities",null,null,null,null,null,null,null,{"$f":"+IF(COUNTA('Cash Flow Indirect'!F89),+'Cash Flow Indirect'!F89,\"\")","v":""}]
[null,null,null,null,"Net increase (decrease) in cash and cash equivalents before effect of exchange rate changes",{"$f":"+IF(COUNT(F49:F89),ROUND(SUM(F89,F75,F49),2),\"\")","v":""},null,null,null,"Net increase (decrease) in cash and cash equivalents before effect of exchange rate changes",null,null,null,null,null,null,null,{"$f":"+IF(COUNTA('Cash Flow Indirect'!F90),+'Cash Flow Indirect'!F90,\"\")","v":""}]
[null,null,null,6,"Effect of exchange rate changes on cash and cash equivalents",null,null,null,null,"Effect of exchange rate changes on cash and cash equivalents [Abstract]",null,null,null,null,null,null,null,{"$f":"+IF(COUNTA('Cash Flow Indirect'!F91),+'Cash Flow Indirect'!F91,\"\")","v":""}]
[null,null,null,null,"Effect of exchange rate changes on cash and cash equivalents",null,null,null,null,"Effect of exchange rate changes on cash and cash equivalents",null,null,null,null,null,null,null,{"$f":"+IF(COUNTA('Cash Flow Indirect'!F92),+'Cash Flow Indirect'!F92,\"\")","v":""}]
[null,null,null,null,"Net increase (decrease) in cash and cash equivalents",{"$f":"+IF(COUNT(F90:F92),ROUND(SUM(F90,F92),2),\"\")","v":""},null,null,null,"Net increase (decrease) in cash and cash equivalents",null,null,null,null,null,null,null,{"$f":"+IF(COUNTA('Cash Flow Indirect'!F93),+'Cash Flow Indirect'!F93,\"\")","v":""}]
[null,null,null,null,"Cash and cash equivalents cash flow statement at beginning of period",null,null,null,null,"Cash and cash equivalents cash flow statement at beginning of period",null,null,null,null,null,null,null,{"$f":"+IF(COUNTA('Cash Flow Indirect'!F94),+'Cash Flow Indirect'!F94,\"\")","v":""}]
[null,null,null,null,"Cash and cash equivalents cash flow statement at end of period",{"$f":"+IF(COUNT(F93:F94),ROUND(SUM(F93,F94),2),\"\")","v":""},null,null,null,"Cash and cash equivalents cash flow statement at end of period",null,null,null,null,null,null,null,{"$f":"+IF(COUNTA('Cash Flow Indirect'!F95),+'Cash Flow Indirect'!F95,\"\")","v":""}]

{"sheet":"Asset Liabilities","index":5,"n_rows":67,"n_cols":18,"rows_kept":67,"cut":false,"hidden":true,"merged":[[13,3,13,5],[7,3,7,5],[8,3,8,4],[9,3,9,4],[10,3,10,4],[11,3,11,4],[12,3,12,4]]}
[]
[]
[]
[]
[]
[]
[null,null,null,null,null,{"$f":"IF('General Info'!E19=\"\",\"\",\"Amount in (\"&'General Info'!E19&\")\")","v":""}]
[null,null,null,"Statement of Asset and Liabilities"]
[null,null,null,"Particulars",null,{"$f":"IF('General Info'!E21=\"Half yearly\",\"Half Year ended (dd-mm-yyyy)\",IF('General Info'!E21=\"Second quarter\",\"Half Year ended (dd-mm-yyyy)\",\"Year ended (dd-mm-yyyy)\"))","v":"Year ended (dd-mm-yyyy)"}]
[null,null,null,"Date of start of reporting period",null,{"$f":"IF('General Info'!E21=\"\",\"\",IF('General Info'!F14=\"\",\"\",IF('General Info'!G14=\"\",\"\",'General Info'!E14&\"-\"&'General Info'!F14&\"-\"&'General Info'!G14)))","v":""}]
[null,null,null,"Date of end of reporting period",null,{"$f":"IF('General Info'!E15=\"\",\"\",IF('General Info'!F15=\"\",\"\",IF('General Info'!$E$21='General Info'!T24,IF(LEN('General Info'!U29)>1,'General Info'!U29,\"0\"&'General Info'!U29)&\"-\"&IF(LEN('General Info'!V29)>1,'General Info'!V29,\"0\"&'General Info'!V29)&\"-\"&IF(LEN('General Info'!W29)>1,'General Info'!W29,\"0\"&'General Info'!W29),\"\")&IF(OR('General Info'!$E$21='General Info'!T25,'General Info'!$E$21='General Info'!T9),IF(LEN('General Info'!U30)>1,'General Info'!U30,\"0\"&'General Info'!U30)&\"-\"&IF(LEN('General Info'!V30)>1,'General Info'!V30,\"0\"&'General Info'!V30)&\"-\"&IF(LEN('General Info'!W30)>1,'General Info'!W30,\"0\"&'General Info'!W30),\"\")&IF('General Info'!$E$21='General Info'!T26,IF(LEN('General Info'!U31)>1,'General Info'!U31,\"0\"&'General Info'!U31)&\"-\"&IF(LEN('General Info'!V31)>1,'General Info'!V31,\"0\"&'General Info'!V31)&\"-\"&IF(LEN('General Info'!W31)>1,'General Info'!W31,\"0\"&'General Info'!W31),\"\")&IF(OR('General Info'!$E$21='General Info'!T27,'General Info'!$E$21='General Info'!T10),IF(LEN('General Info'!U32)>1,'General Info'!U32,\"0\"&'General Info'!U32)&\"-\"&IF(LEN('General Info'!V32)>1,'General Info'!V32,\"0\"&'General Info'!V32)&\"-\"&IF(LEN('General Info'!W32)>1,'General Info'!W32,\"0\"&'General Info'!W32),\"\")))","v":""}]
[null,null,null,"Whether results are audited or unaudited",null,{"$f":"IF(COUNTA('Financial Results'!G12),'Financial Results'!G12,\"\")","v":""},null,null,null,null,null,null,null,null,null,null,null,"Audited"]
[null,null,null,"Nature of report standalone or consolidated",null,{"$f":"+IF(COUNTA('General Info'!E22),'General Info'!E22,\"\")","v":""},null,null,null,null,null,null,null,null,null,null,null,"Unaudited"]
[]
[null,null,null,null,"Equity and liabilities"]
[null,null,null,1,"Shareholders' funds"]
[null,null,null,null,"Share capital"]
[null,null,null,null,"Reserves and surplus"]
[null,null,null,null,"Money received against share warrants"]
[null,null,null,null,"Total shareholders' funds",{"$f":"+IF(COUNT(F17:F19),+ROUND(SUM(F17:F19),2),\"\")","v":""}]
[null,null,null,2,"Share application money pending allotment"]
[null,null,null,3,"Deferred government grants"]
[null,null,null,4,"Minority interest"]
[null,null,null,5,"Non-current liabilities"]
[null,null,null,null,"Long-term borrowings"]
[null,null,null,null,"Deferred tax liabilities (net)"]
[null,null,null,null,"Foreign currency monetary item translation difference liability account"]
[null,null,null,null,"Other long-term liabilities"]
[null,null,null,null,"Long-term provisions"]
[null,null,null,null,"Total non-current liabilities",{"$f":"+IF(COUNT(F25:F29),+ROUND(SUM(F25:F29),2),\"\")","v":""}]
[null,null,null,6,"Current liabilities"]
[null,null,null,null,"Short-term borrowings"]
[null,null,null,null,"Trade Payables"]
[null,null,null,null,"(A) Total outstanding dues of micro enterprises and small enterprises"]
[null,null,null,null,"(B) Total outstanding dues of creditors other than micro enterprises and small enterprises"]
[null,null,null,null,"Total Trade payable",{"$f":"IF(COUNT(F34:F35),ROUND(SUM(F34:F35),2),\"\")","v":""}]
[null,null,null,null,"Other current liabilities"]
[null,null,null,null,"Short-term provisions"]
[null,null,null,null,"Total current liabilities",{"$f":"+IF(COUNT(F32,F36:F38),ROUND(SUM(F32,F36:F38),2),\"\")","v":""}]
[null,null,null,null,"Total equity and liabilities",{"$f":"+IF(COUNT(F39,F30,F20:F23),ROUND(SUM(F39,F30,F20:F23),2),\"\")","v":""}]
[null,null,null,null,"Assets"]
[null,null,null,1,"Non-current assets "]
[null,null,null,"(i)","Property, Plant and Equipment and Intangible assets"]
[null,null,null,null,"Property, Plant and Equipment"]
[null,null,null,null,"Producing properties"]
[null,null,null,null,"Intangible assets"]
[null,null,null,null,"Preproducing properties"]
[null,null,null,null,"Property, Plant and Equipment capital work-in-progress"]
[null,null,null,null,"Intangible assets under development or work-in-progress"]
[null,null,null,null,"Total Property, Plant and Equipment and Intangible assets",{"$f":"+IF(COUNT(F44:F49),+ROUND(SUM(F44:F49),2),\"\")","v":""}]
[null,null,null,"(ii)","Non-current investments"]
[null,null,null,"(v)","Deferred tax assets (net)"]
[null,null,null,"(vi)","Foreign currency monetary item translation difference asset account"]
[null,null,null,"(vii)","Long-term loans and advances"]
[null,null,null,"(viii)","Other non-current assets"]
[null,null,null,null,"Total non-current assets",{"$f":"+IF(COUNT(F50:F55),ROUND(SUM(F50:F55),2),\"\")","v":""}]
[null,null,null,2,"Current assets"]
[null,null,null,null,"Current investments"]
[null,null,null,null,"Inventories"]
[null,null,null,null,"Trade receivables"]
[null,null,null,null,"Cash and cash equivalents"]
[null,null,null,null,"Bank balance other than cash and cash equivalents"]
[null,null,null,null,"Short-term loans and advances"]
[null,null,null,null,"Other current assets"]
[null,null,null,null,"Total current assets",{"$f":"+IF(COUNT(F58:F64),ROUND(SUM(F58:F64),2),\"\")","v":""}]
[null,null,null,null,"Total assets",{"$f":"+IF(COUNT(F65,F56),ROUND(SUM(F65,F56),2),\"\")","v":""}]
[null,null,null,null,"Disclosure of notes on assets and liabilities"]

{"sheet":"Segment","index":6,"n_rows":99,"n_cols":19,"rows_kept":99,"cut":false,"hidden":false,"merged":[[77,5,77,6],[78,5,78,6],[7,3,7,6],[14,5,14,6],[34,5,34,6],[57,5,57,6],[8,3,8,4],[13,5,13,6],[35,5,35,6],[56,5,56,6],[9,3,9,4],[10,3,10,4],[11,3,11,4],[12,3,12,4]]}
[]
[]
[]
[]
[]
[]
[null,null,null,null,null,null,{"$f":"IF('General Info'!E19=\"\",\"\",\"Amount in (\"&'General Info'!E19&\")\")","v":""}]
[null,null,null,"Format for Reporting Segment wise Revenue, Results and Capital Employed along with the company results"]
[null,null,null,"Particulars",null,"3 months/ 6 months ended\n(dd-mm-yyyy)","Year to date figures for current period ended\n(dd-mm-yyyy)"]
[null,null,null,"Date of start of reporting period",null,{"$f":"IF('General Info'!E15=\"\",\"\",IF('General Info'!F15=\"\",\"\",IF(OR('General Info'!$E$21='General Info'!T24,'General Info'!$E$21='General Info'!T9),IF(LEN('General Info'!U24)>1,'General Info'!U24,\"0\"&'General Info'!U24)&\"-\"&IF(LEN('General Info'!V24)>1,'General Info'!V24,\"0\"&'General Info'!V24)&\"-\"&IF(LEN('General Info'!W24)>1,'General Info'!W24,\"0\"&'General Info'!W24),\"\")&IF('General Info'!$E$21='General Info'!T25,IF(LEN('General Info'!U25)>1,'General Info'!U25,\"0\"&'General Info'!U25)&\"-\"&IF(LEN('General Info'!V25)>1,'General Info'!V25,\"0\"&'General Info'!V25)&\"-\"&IF(LEN('General Info'!W25)>1,'General Info'!W24,\"0\"&'General Info'!W25),\"\")&IF(OR('General Info'!$E$21='General Info'!T26,'General Info'!$E$21='General Info'!T10),IF(LEN('General Info'!U26)>1,'General Info'!U26,\"0\"&'General Info'!U26)&\"-\"&IF(LEN('General Info'!V26)>1,'General Info'!V26,\"0\"&'General Info'!V26)&\"-\"&IF(LEN('General Info'!W26)>1,'General Info'!W26,\"0\"&'General Info'!W26),\"\")&IF('General Info'!$E$21='General Info'!T27,IF(LEN('General Info'!U27)>1,'General Info'!U27,\"0\"&'General Info'!U27)&\"-\"&IF(LEN('General Info'!V27)>1,'General Info'!V27,\"0\"&'General Info'!V27)&\"-\"&IF(LEN('General Info'!W27)>1,'General Info'!W27,\"0\"&'General Info'!W27),\"\")))","v":""},{"$f":"IF('General Info'!E21=\"\",\"\",IF('General Info'!F14=\"\",\"\",IF('General Info'!G14=\"\",\"\",'General Info'!E14&\"-\"&'General Info'!F14&\"-\"&'General Info'!G14)))","v":""}]
[null,null,null,"Date of end of reporting period",null,{"$f":"IF('General Info'!E15=\"\",\"\",IF('General Info'!F15=\"\",\"\",IF('General Info'!$E$21='General Info'!T24,IF(LEN('General Info'!U29)>1,'General Info'!U29,\"0\"&'General Info'!U29)&\"-\"&IF(LEN('General Info'!V29)>1,'General Info'!V29,\"0\"&'General Info'!V29)&\"-\"&IF(LEN('General Info'!W29)>1,'General Info'!W29,\"0\"&'General Info'!W29),\"\")&IF(OR('General Info'!$E$21='General Info'!T25,'General Info'!$E$21='General Info'!T9),IF(LEN('General Info'!U30)>1,'General Info'!U30,\"0\"&'General Info'!U30)&\"-\"&IF(LEN('General Info'!V30)>1,'General Info'!V30,\"0\"&'General Info'!V30)&\"-\"&IF(LEN('General Info'!W30)>1,'General Info'!W30,\"0\"&'General Info'!W30),\"\")&IF('General Info'!$E$21='General Info'!T26,IF(LEN('General Info'!U31)>1,'General Info'!U31,\"0\"&'General Info'!U31)&\"-\"&IF(LEN('General Info'!V31)>1,'General Info'!V31,\"0\"&'General Info'!V31)&\"-\"&IF(LEN('General Info'!W31)>1,'General Info'!W31,\"0\"&'General Info'!W31),\"\")&IF(OR('General Info'!$E$21='General Info'!T27,'General Info'!$E$21='General Info'!T10),IF(LEN('General Info'!U32)>1,'General Info'!U32,\"0\"&'General Info'!U32)&\"-\"&IF(LEN('General Info'!V32)>1,'General Info'!V32,\"0\"&'General Info'!V32)&\"-\"&IF(LEN('General Info'!W32)>1,'General Info'!W32,\"0\"&'General Info'!W32),\"\")))","v":""},{"$f":"IF('General Info'!E15=\"\",\"\",IF('General Info'!F15=\"\",\"\",IF('General Info'!$E$21='General Info'!T24,IF(LEN('General Info'!U29)>1,'General Info'!U29,\"0\"&'General Info'!U29)&\"-\"&IF(LEN('General Info'!V29)>1,'General Info'!V29,\"0\"&'General Info'!V29)&\"-\"&IF(LEN('General Info'!W29)>1,'General Info'!W29,\"0\"&'General Info'!W29),\"\")&IF(OR('General Info'!$E$21='General Info'!T25,'General Info'!$E$21='General Info'!T9),IF(LEN('General Info'!U30)>1,'General Info'!U30,\"0\"&'General Info'!U30)&\"-\"&IF(LEN('General Info'!V30)>1,'General Info'!V30,\"0\"&'General Info'!V30)&\"-\"&IF(LEN('General Info'!W30)>1,'General Info'!W30,\"0\"&'General Info'!W30),\"\")&IF('General Info'!$E$21='General Info'!T26,IF(LEN('General Info'!U31)>1,'General Info'!U31,\"0\"&'General Info'!U31)&\"-\"&IF(LEN('General Info'!V31)>1,'General Info'!V31,\"0\"&'General Info'!V31)&\"-\"&IF(LEN('General Info'!W31)>1,'General Info'!W31,\"0\"&'General Info'!W31),\"\")&IF(OR('General Info'!$E$21='General Info'!T27,'General Info'!$E$21='General Info'!T10),IF(LEN('General Info'!U32)>1,'General Info'!U32,\"0\"&'General Info'!U32)&\"-\"&IF(LEN('General Info'!V32)>1,'General Info'!V32,\"0\"&'General Info'!V32)&\"-\"&IF(LEN('General Info'!W32)>1,'General Info'!W32,\"0\"&'General Info'!W32),\"\")))","v":""}]
[null,null,null,"Whether results are audited or unaudited",null,{"$f":"+IF(COUNTA('General Info'!E23),'General Info'!E23,\"\")","v":""},{"$f":"+IF(COUNTA('General Info'!E24),'General Info'!E24,F12)","v":""},null,null,null,null,null,null,null,null,null,null,null,"Audited"]
[null,null,null,"Nature of report standalone or consolidated",null,{"$f":"+IF(COUNTA('General Info'!E22),'General Info'!E22,\"\")","v":""},{"$f":"+IF(COUNTA('General Info'!E22),'General Info'!E22,\"\")","v":""},null,null,null,null,null,null,null,null,null,null,null,"Unaudited"]
[null,null,null,1,"Segment Revenue"]
[null,null,null,null,"(net sale/income from each segment should be disclosed)"]
[null,null,null,1,null,null,null,null,null,null,null,null,null,null,null,null,null,null,{"$f":"+IF(COUNTA(F16),+F16,\"\")","v":""}]
[null,null,null,2,null,null,null,null,null,null,null,null,null,null,null,null,null,null,{"$f":"+IF(COUNTA(F17),+F17,\"\")","v":""}]
[null,null,null,3,null,null,null,null,null,null,null,null,null,null,null,null,null,null,""]
[null,null,null,4,null,null,null,null,null,null,null,null,null,null,null,null,null,null,""]
[null,null,null,5,null,null,null,null,null,null,null,null,null,null,null,null,null,null,""]
[null,null,null,6,null,null,null,null,null,null,null,null,null,null,null,null,null,null,""]
[null,null,null,7,null,null,null,null,null,null,null,null,null,null,null,null,null,null,""]
[null,null,null,8,null,null,null,null,null,null,null,null,null,null,null,null,null,null,""]
[null,null,null,9,null,null,null,null,null,null,null,null,null,null,null,null,null,null,""]
[null,null,null,10,null,null,null,null,null,null,null,null,null,null,null,null,null,null,""]
[null,null,null,11,null,null,null,null,null,null,null,null,null,null,null,null,null,null,""]
[null,null,null,12,null,null,null,null,null,null,null,null,null,null,null,null,null,null,""]
[null,null,null,13,null,null,null,null,null,null,null,null,null,null,null,null,null,null,""]
[null,null,null,14,null,null,null,null,null,null,null,null,null,null,null,null,null,null,""]
[null,null,null,15,null,null,null,null,null,null,null,null,null,null,null,null,null,null,""]
[null,null,null,null,"Total segment revenue",{"$f":"+IF(COUNT(F16:F30),ROUND(SUM(F16:F30),2),\"\")","v":""},{"$f":"+IF(COUNT(G16:G30),ROUND(SUM(G16:G30),2),\"\")","v":""},null,null,null,null,null,null,null,null,null,null,null,""]
[null,null,null,null,"Less: Inter segment revenue",null,null,null,null,null,null,null,null,null,null,null,null,null,""]
[null,null,null,null,"Revenue  from  operations ",{"$f":"+IF(COUNT(F31:F32),ROUND(SUM(F31)-SUM(F32),2),\"\")","v":""},{"$f":"+IF(COUNT(G31:G32),ROUND(SUM(G31)-SUM(G32),2),\"\")","v":""},null,null,null,null,null,null,null,null,null,null,null,""]
[null,null,null,null,null,null,null,null,null,null,null,null,null,null,null,null,null,null,""]
[null,null,null,2,"Segment Result",null,null,null,null,null,null,null,null,null,null,null,null,null,""]
[null,null,null,null,"Profit (+) / Loss (-) before tax and interest from each segment",null,null,null,null,null,null,null,null,null,null,null,null,null,""]
[null,null,null,1,{"$f":"+IF(COUNTA(E16),+E16,\"\")","v":""},null,null,null,null,null,null,null,null,null,null,null,null,null,""]
[null,null,null,2,{"$f":"+IF(COUNTA(E17),+E17,\"\")","v":""},null,null,null,null,null,null,null,null,null,null,null,null,null,""]
[null,null,null,3,"",null,null,null,null,null,null,null,null,null,null,null,null,null,""]
[null,null,null,4,"",null,null,null,null,null,null,null,null,null,null,null,null,null,""]
[null,null,null,5,"",null,null,null,null,null,null,null,null,null,null,null,null,null,""]
[null,null,null,6,"",null,null,null,null,null,null,null,null,null,null,null,null,null,""]
[null,null,null,7,"",null,null,null,null,null,null,null,null,null,null,null,null,null,""]
[null,null,null,8,"",null,null,null,null,null,null,null,null,null,null,null,null,null,""]
[null,null,null,9,"",null,null,null,null,null,null,null,null,null,null,null,null,null,""]
[null,null,null,10,"",null,null,null,null,null,null,null,null,null,null,null,null,null,""]
[null,null,null,11,"",null,null,null,null,null,null,null,null,null,null,null,null,null,""]
[null,null,null,12,"",null,null,null,null,null,null,null,null,null,null,null,null,null,""]
[null,null,null,13,"",null,null,null,null,null,null,null,null,null,null,null,null,null,""]
[null,null,null,14,"",null,null,null,null,null,null,null,null,null,null,null,null,null,""]
[null,null,null,15,"",null,null,null,null,null,null,null,null,null,null,null,null,null,""]
[null,null,null,null,"Total Profit before tax",{"$f":"+IF(COUNT(F37:F51),ROUND(SUM(F37:F51),2),\"\")","v":""},{"$f":"+IF(COUNT(G37:G51),ROUND(SUM(G37:G51),2),\"\")","v":""},null,null,null,null,null,null,null,null,null,null,null,""]
[null,null,null,null,"i. Finance cost",null,null,null,null,null,null,null,null,null,null,null,null,null,""]
[null,null,null,null,"ii. Other unallocable expenditure net off unallocable income",null,null,null,null,null,null,null,null,null,null,null,null,null,""]
[null,null,null,null,"Profit  before  tax ",{"$f":"+IF(COUNT(F52:F54),ROUND(SUM(F52)-SUM(F53)-SUM(F54),2),\"\")","v":""},{"$f":"+IF(COUNT(G52:G54),ROUND(SUM(G52)-SUM(G53)-SUM(G54),2),\"\")","v":""},null,null,null,null,null,null,null,null,null,null,null,""]
[null,null,null,null,null,null,null,null,null,null,null,null,null,null,null,null,null,null,""]
[null,null,null,3,"(Segment Asset - Segment Liabilities)",null,null,null,null,null,null,null,null,null,null,null,null,null,""]
[null,null,null,null,"Segment Asset ",null,null,null,null,null,null,null,null,null,null,null,null,null,""]
[null,null,null,{"$f":"+D58+1","v":1},{"$f":"+IF(COUNTA(E16),+E16,\"\")","v":""},null,{"$f":"+IF(COUNTA(F59),+F59,\"\")","v":""},null,null,null,null,null,null,null,null,null,null,null,""]
[null,null,null,2,"",null,"",null,null,null,null,null,null,null,null,null,null,null,""]
[null,null,null,3,"",null,"",null,null,null,null,null,null,null,null,null,null,null,""]
[null,null,null,4,"",null,"",null,null,null,null,null,null,null,null,null,null,null,""]
[null,null,null,5,"",null,"",null,null,null,null,null,null,null,null,null,null,null,""]
[null,null,null,6,"",null,"",null,null,null,null,null,null,null,null,null,null,null,""]
[null,null,null,7,"",null,"",null,null,null,null,null,null,null,null,null,null,null,""]
[null,null,null,8,"",null,"",null,null,null,null,null,null,null,null,null,null,null,""]
[null,null,null,9,"",null,"",null,null,null,null,null,null,null,null,null,null,null,""]
[null,null,null,{"$f":"+D67+1","v":10},"",null,"",null,null,null,null,null,null,null,null,null,null,null,""]
[null,null,null,{"$f":"+D68+1","v":11},"",null,"",null,null,null,null,null,null,null,null,null,null,null,""]
[null,null,null,{"$f":"+D69+1","v":12},"",null,"",null,null,null,null,null,null,null,null,null,null,null,""]
[null,null,null,{"$f":"+D70+1","v":13},"",null,"",null,null,null,null,null,null,null,null,null,null,null,""]
[null,null,null,14,"",null,"",null,null,null,null,null,null,null,null,null,null,null,""]
[null,null,null,15,"",null,"",null,null,null,null,null,null,null,null,null,null,null,""]
[null,null,null,null,"Total Segment Assets",{"$f":"+IF(COUNT(F59:F73),ROUND(SUM(F59:F73),2),\"\")","v":""},{"$f":"+IF(COUNT(G59:G73),ROUND(SUM(G59:G73),2),\"\")","v":""},null,null,null,null,null,null,null,null,null,null,null,""]
[null,null,null,null,"Un-allocable Assets",null,{"$f":"+IF(COUNTA(F75),+F75,\"\")","v":""},null,null,null,null,null,null,null,null,null,null,null,""]
[null,null,null,null,"Net Segment Assets",{"$f":"+IF(COUNT(F74:F75),ROUND(SUM(F74)+SUM(F75),2),\"\")","v":""},{"$f":"+IF(COUNT(G74:G75),ROUND(SUM(G74)+SUM(G75),2),\"\")","v":""},null,null,null,null,null,null,null,null,null,null,null,""]
[null,null,null,null,null,null,null,null,null,null,null,null,null,null,null,null,null,null,""]
[null,null,null,4,"Segment Liabilities",null,null,null,null,null,null,null,null,null,null,null,null,null,""]
[null,null,null,null,"Segment Liabilities",null,null,null,null,null,null,null,null,null,null,null,null,null,""]
[null,null,null,1,{"$f":"+IF(COUNTA(E16),+E16,\"\")","v":""},null,{"$f":"+IF(COUNTA(F80),+F80,\"\")","v":""},null,null,null,null,null,null,null,null,null,null,null,""]
[null,null,null,2,{"$f":"+IF(COUNTA(E17),+E17,\"\")","v":""},null,"",null,null,null,null,null,null,null,null,null,null,null,{"$f":"+IF(COUNTA(F81),+F81,\"\")","v":""}]
[null,null,null,3,{"$f":"+IF(COUNTA(E18),+E18,\"\")","v":""},null,"",null,null,null,null,null,null,null,null,null,null,null,""]
[null,null,null,4,"",null,"",null,null,null,null,null,null,null,null,null,null,null,""]
[null,null,null,5,"",null,"",null,null,null,null,null,null,null,null,null,null,null,""]
[null,null,null,6,"",null,"",null,null,null,null,null,null,null,null,null,null,null,""]
[null,null,null,7,"",null,"",null,null,null,null,null,null,null,null,null,null,null,""]
[null,null,null,8,"",null,"",null,null,null,null,null,null,null,null,null,null,null,""]
[null,null,null,9,"",null,"",null,null,null,null,null,null,null,null,null,null,null,""]
[null,null,null,10,"",null,"",null,null,null,null,null,null,null,null,null,null,null,""]
[null,null,null,11,"",null,"",null,null,null,null,null,null,null,null,null,null,null,""]
[null,null,null,12,"",null,"",null,null,null,null,null,null,null,null,null,null,null,""]
[null,null,null,13,"",null,"",null,null,null,null,null,null,null,null,null,null,null,""]
[null,null,null,14,"",null,"",null,null,null,null,null,null,null,null,null,null,null,""]
[null,null,null,15,"",null,"",null,null,null,null,null,null,null,null,null,null,null,""]
[null,null,null,null,"Total Segment Liabilities",{"$f":"+IF(COUNT(F80:F94),ROUND(SUM(F80:F94),2),\"\")","v":""},{"$f":"+IF(COUNT(G80:G94),ROUND(SUM(G80:G94),2),\"\")","v":""},null,null,null,null,null,null,null,null,null,null,null,""]
[null,null,null,null,"Un-allocable Liabilities",null,{"$f":"+IF(COUNTA(F96),+F96,\"\")","v":""},null,null,null,null,null,null,null,null,null,null,null,""]
[null,null,null,null,"Net Segment Liabilities",{"$f":"+IF(COUNT(F95:F96),ROUND(SUM(F95,F96),2),\"\")","v":""},{"$f":"+IF(COUNT(G95:G96),ROUND(SUM(G95,G96),2),\"\")","v":""},null,null,null,null,null,null,null,null,null,null,null,""]
[]
[null,null,null,null,"Disclosure of notes on segments"]

{"sheet":"Impact of Audit Qualification","index":7,"n_rows":16,"n_cols":21,"rows_kept":16,"cut":false,"hidden":true,"merged":[[7,3,7,5],[13,3,13,5]]}
[null,null,null,null,"Audited","Unaudited",null,null,0,null,null,null,null,null,null,null,null,null,null,"Qualified opinion","Yes"]
[null,null,null,"AuditorsFirmName","WhetherTheFirmHoldsAValidPeerReviewCertificateIssuedByPeerReviewBoardOfICAI","ValidityDateOfCertificate",null,null,null,null,null,null,null,null,null,null,null,null,null,"Disclaimer of opinion","No"]
[null,null,null,null,null,null,null,null,null,null,null,null,null,null,null,null,null,null,null,"Adverse opinion"]
[]
[]
[]
[]
[null,null,null,"Details of Impact of Audit Qualification"]
[null,null,null,"Whether results are audited or unaudited",{"$f":"IF('General Info'!E24=\"\",IF('General Info'!E23=\"\",\"\",'General Info'!E23),'General Info'!E24)","v":""},null,null,null,null,null,null,null,null,null,"WhetherResultsAreAuditedOrUnauditedForImpactOfAuditQualification"]
[null,null,null,"Declaration of unmodified opinion or statement on impact of audit qualification",{"$f":"IF(COUNTA('General Info'!E31),'General Info'!$E$31,\"\")","v":""}]
[null,null,null,"Auditor's opinion",null,null,null,null,null,null,null,null,null,null,"OpinionOfAuditors"]
[null,null,null,{"$f":"IF('General Info'!$E$22=\"Standalone\",\"Declaration pursuant to Regulation 33 (3) (d) of SEBI (LODR) Regulation, 2015:\nThe company declares that its Statutory Auditor/s have issued an Audit Report with unmodified opinion for the period on Standalone results\",IF('General Info'!$E$22=\"Consolidated\",\"Declaration pursuant to Regulation 33 (3) (d) of SEBI (LODR) Regulation, 2015:\nThe company declares that its Statutory Auditor/s have issued an Audit Report with unmodified opinion for the period on Consolidated results\",\"Declaration pursuant to Regulation 33 (3) (d) of SEBI (LODR) Regulation, 2015:\nThe company declares that its Statutory Auditor/s have issued an Audit Report with unmodified opinion for the period on Standalone or Consolidated results\"))","v":"Declaration pursuant to Regulation 33 (3) (d) of SEBI (LODR) Regulation, 2015:\nThe company declares that its Statutory Auditor/s have issued an Audit Report with unmodified opinion for the period on Standalone or Consolidated results"},null,null,null,null,null,null,null,null,null,null,"DeclarationPursuantToClauseDOfSubRegulation3OfRegulation33OfSEBILODRRegulation2015"]
[null,null,null,"Audit firm's name","Whether the firm holds a valid peer review certificate issued by Peer Review Board of ICAI","Certificate valid upto"]
[]
[]
[null,null,1,null,null,""]

{"sheet":"Financial details","index":8,"n_rows":20,"n_cols":15,"rows_kept":20,"cut":false,"hidden":true,"merged":[[7,3,7,6],[17,3,17,5]]}
[null,null,null,null,null,null,null,null,0]
[]
[]
[]
[]
[]
[null,null,null,null,null,null,{"$f":"IF('General Info'!E19=\"\",\"\",\"Amount in (\"&'General Info'!E19&\")\")","v":""}]
[null,null,null,"Financial details"]
[null,null,null,"Sr.","Particulars","Audited Figures (as reported before adjusting for qualifications)","Adjusted Figures (audited figures after adjusting for qualifications)"]
[null,null,null,1,"Turnover / Total income",null,null,null,null,null,null,null,null,null,"TurnoverOrTotalIncome"]
[null,null,null,{"$f":"+D10+1","v":2},"Total Expenditure",null,null,null,null,null,null,null,null,null,"TotalExpenditure"]
[null,null,null,{"$f":"+D11+1","v":3},"Net Profit/(Loss)",null,null,null,null,null,null,null,null,null,"NetProfitAfterTax"]
[null,null,null,4,"Earnings Per Share",null,null,null,null,null,null,null,null,null,"EarningPerShare"]
[null,null,null,5,"Total Assets",null,null,null,null,null,null,null,null,null,"Assets"]
[null,null,null,6,"Total Liabilities",null,null,null,null,null,null,null,null,null,"Liabilities"]
[null,null,null,7,"Net Worth",null,null,null,null,null,null,null,null,null,"NetWorth"]
[]
[null,null,null,"Any other financial item(s) (as felt appropriate by the management)"]
[]
[null,null,null,"*Note : In case company has declared unaudited results, these figures shall be considered as unaudited."]

{"sheet":"Audit qualification","index":9,"n_rows":25,"n_cols":15,"rows_kept":25,"cut":false,"hidden":true,"merged":[[17,4,17,5],[7,3,7,10],[8,3,9,3],[8,4,9,4],[8,5,9,5],[8,6,9,6],[8,8,8,10]]}
[null,null,null,null,null,null,null,null,0,null,null,null,null,"Qualified opinion","Whether appeared first time"]
[null,null,null,null,"DetailsOfAuditQualificationExplanatory","TypeOfAuditQualification","FrequencyOfAuditQualification","AuditQualificationsWhereTheImpactIsQuantifiedByTheAuditorManagementsViewsExplanatory","ManagementsEstimationOnTheImpactOfAuditQualificationExplanatory","ReasonsIfManagementIsUnableToEstimateTheImpactExplanatory","AuditorsCommentsOnManagementsEstimateOrUnableToEstimateOnTheImpactOfAuditQualificationExplanatory",null,null,"Disclaimer of opinion","Repetitive"]
[null,null,null,null,null,null,null,null,null,null,null,null,null,"Adverse opinion","Since how long continuing"]
[]
[]
[]
[]
[null,null,null,"Audit qualification"]
[null,null,null,"Sr.","Details of Audit Qualification","Type of Audit Qualification","Frequency of qualification","For Audit Qualification(s) where the impact is quantified by the auditor","For Audit Qualification(s) where the impact is not quantified by the auditor"]
[null,null,null,null,null,null,null,"Management's Views","(i) Management's estimation on the impact of audit qualification","(ii) If management is unable to estimate the impact, reasons for the same","Auditors' Comments on (i) or (ii) above"]
[]
[]
[]
[null,null,null,"*Note : In case company has declared unaudited results, the details shall be considered as unaudited."]
[]
[]
[]
[null,null,null,null,"Signatories details"]
[null,null,null,null,"Name of CEO / Managing director",null,null,null,null,null,null,null,null,null,"NameOfCEOOrManagingDirectorAsSignatoryOfImpactOfAuditQualification"]
[null,null,null,null,"Name of CFO",null,null,null,null,null,null,null,null,null,"NameOfCFOAsASignatoryOfImpactOfAuditQualification"]
[null,null,null,null,"Name of audit committee chairman",null,null,null,null,null,null,null,null,null,"NameOfChairmanOfAuditCommitteeAsASignatoryOfImpactOfAuditQualification"]
[null,null,null,null,"Name of statutory auditor",null,null,null,null,null,null,null,null,null,"NameOfStatutoryAuditorAsASignatoryOfImpactOfAuditQualification"]
[null,null,null,null,"Name of other signatory, if any, with designation",null,null,null,null,null,null,null,null,null,"NameAndDesignationOfOtherPersonAsASignatoryOfImpactOfAuditQualification"]
[null,null,null,null,"Place",null,null,null,null,null,null,null,null,null,"PlaceOfSignatoryOfImpactOfAuditQualification"]
[null,null,null,null,"Date",null,null,null,null,null,null,null,null,null,"DateOfSignatoryOfImpactOfAuditQualification"]

{"sheet":"Related Party Transactions","index":10,"n_rows":19,"n_cols":34,"rows_kept":19,"cut":false,"hidden":true,"merged":[[9,13,10,13],[18,2,18,11],[12,2,12,3],[7,2,7,8],[8,17,8,26],[9,2,10,2],[9,3,9,4],[9,5,9,7],[9,8,10,8],[9,9,10,9],[9,10,10,10],[9,11,10,11],[9,12,10,12],[9,14,10,14],[9,15,9,16],[9,17,9,20],[9,21,9,26]]}
[null,null,0,null,null,null,null,null,null,null,null,null,null,null,null,null,null,null,null,null,null,null,null,null,null,null,null,null,null,null,null,"Secured","Loan","Loan"]
[null,null,null,"NameOfListedEntityOrSubsidiaryEnteringIntoTheTransaction","PANOfListedEntityOrSubsidiaryEnteringIntoTheTransaction","NameOfCounterParty","PANOfCounterParty","RelationshipOfTheCounterpartyWithTheListedEntityOrItsSubsidiary","TypeOfRelatedPartyTransaction","DetailsOfOtherRelatedPartyTransaction","ValueOfTheRelatedPartyTransactionAsApprovedByTheAuditCommittee","RemarksOnApprovalByAuditCommittee","ValueOfTheRelatedPartyTransactionRatifiedByTheAuditCommittee","DateOfAuditCommitteeMeetingWhereTheRatificationWasApproved","AmountOfRelatedPartyTransactionDuringTheReportingPeriod","AmountOfRelatedPartyTransaction","AmountOfRelatedPartyTransaction","NatureOfFinancialIndebtedness","DetailsOfOtherIndebtedness","CostOfFinancialIndebtedness","TenureOfFinancialIndebtedness","NatureOfTheLoansOrInterCorporateDepositsOrAdvancesOrInvestments","InterestRateOfLoansOrInterCorporateDepositsOrAdvancesOrInvestments","TenureOfLoansOrInterCorporateDepositsOrAdvancesOrInvestments","TypeOfLoansOrInterCorporateDepositsOrAdvancesOrInvestmentsSecuredOrUnsecured","PurposeForWhichTheFundsWillBeUtilisedByTheUltimateRecipientOfFundsForEndusage","RelatedPartyTransactionExplanatory",null,null,null,null,"Unsecured ","Issuance of debt","Inter-corporate deposit"]
[null,null,null,null,"Sale of goods or services","Purchase of goods or services","Loan","Inter-corporate deposit","Advance","Investment","Any other transaction","Purchase of fixed assets","Sale of fixed assets","Interest paid","Interest received","Remuneration","Dividend paid","Dividend received",null,null,null,null,null,null,null,null,null,null,null,null,null,null,"Any other","Advance"]
[null,null,null,null,null,null,null,null,null,null,null,null,null,null,null,null,null,null,null,null,null,null,null,null,null,null,null,null,null,null,null,null,null,"Investment"]
[]
[]
[null,null,null,null,null,null,null,null,{"$f":"IF('General Info'!E19=\"\",\"\",\"Amount in (\"&'General Info'!E19&\")\")","v":""}]
[null,null,"Format for Disclosure of Related Party Transactions (applicable only for half-yearly filings i.e., 2nd and 4th quarter)"]
[null,null,null,null,null,null,null,null,null,null,null,null,null,null,null,null,null,"Additional disclosure of related party transactions - applicable only in case the related party transaction relates to loans, inter-corporate deposits, advances or investments made or given by the listed entity/subsidiary. These details need to be disclosed only once, during the reporting period when such transaction was undertaken."]
[null,null,"Sr. No.","Details of the party (listed entity /subsidiary) entering into the transaction",null,"Details of the counterparty",null,null,"Type of related party transaction","Details of  other related party transaction","Value of the related party transaction as approved by the audit committee","Remarks on approval by audit committee","Value of the related party transaction ratified by the audit committee","Date of Audit Committee Meeting where the ratification was approved","Value of transaction during the reporting period","In case monies are due to either party as a result of the transaction",null,"In case any financial indebtedness is incurred to make or give loans, inter-corporate deposits, advances or investments",null,null,null,"Details of the loans, inter-corporate deposits, advances or investments"]
[null,null,null,"Name","PAN","Name","PAN","Relationship of the counterparty with the listed entity or its subsidiary",null,null,null,null,null,null,null,"Opening balance","Closing balance","Nature of indebtedness (loan/ issuance of debt/ any other etc.)","Details of other indebtedness","Cost","Tenure","Nature (loan/ advance/ intercorporate deposit/ investment)","Interest Rate (%)","Tenure","Secured/ unsecured","Purpose for which the funds will be utilised by the ultimate recipient of funds (endusage)","Notes"]
[]
[]
[]
[null,null,"Total value of transaction during the reporting period",null,null,null,null,null,null,null,null,null,null,null,{"$f":"IF(COUNT($O$13:O14)>0,SUM($O$13:O14),\"\")","v":""}]
[]
[]
[null,null,"Notes:"]
[null,null,"1. The details in this format are required to be provided for all transactions undertaken during the reporting period. However, opening and closing balances, including commitments, \nto be disclosed for existing related party transactions even if there is no new related party transaction during the reporting period.\n2. Where a transaction is undertaken between members of the consolidated entity (between the listed entity and its subsidiary or between subsidiaries), it may be reported once.\n3. Listed banks shall not be required to provide the disclosures with respect to related party transactions involving loans, inter-corporate deposits, advances or investments made or given by the listed banks.\n4. For companies with financial year ending March 31, this information has to be provided for six months ended September 30 and six months ended March 31. \nCompanies with financial years ending in other months, the six months period shall apply accordingly.\n5. Each type of related party transaction (for e.g. sale of goods/services, purchase of goods/services or whether it involves a loan, inter-corporate deposit, advance or investment) with a single party shall be disclosed separately and there should be no clubbing or netting of transactions of same type. \nHowever, transactions with the same counterparty of the same type may be aggregated for the reporting period. For instance, sale transactions with the same party may be aggregated for the reporting period and purchase transactions may also be disclosed in a similar manner. There should be no netting off for sale and purchase transactions. Similarly, loans advanced to and received from the same counterparty should be disclosed separately, without any netting off.\n6. In case of a multi-year related party transaction:\n  a. The aggregate value of such related party transaction as approved by the audit committee shall be disclosed in the column “Value of the related party transaction as approved by the audit committee”.\n  b. The value of the related party transaction ratified by the audit committee shall be disclosed in the column “Value of the related party transaction ratified by the audit committee”.\n  c. The value of the related party transaction undertaken in the reporting period shall be reported in the column “Value of related party transaction during the reporting period”.\n7. \"Cost\" refers to the cost of borrowed funds for the listed entity. 8. Transactions such as acceptance of fixed deposits by banks/NBFCs, undertaken with related parties, at the terms uniformly applicable /offered to all shareholders/ public shall also be reported."]

{"sheet":"SOD","index":11,"n_rows":39,"n_cols":15,"rows_kept":39,"cut":false,"hidden":true,"merged":[[34,4,34,5],[31,4,31,5],[24,8,25,8],[24,9,25,9],[24,10,25,10],[27,3,27,4],[24,7,25,7],[7,4,7,5],[24,3,25,3],[24,4,25,4],[24,5,25,5],[24,6,25,6]]}
[null,null,null,null,null,null,null,null,0,null,null,null,"Public Issues","Applicable","Yes"]
[null,null,null,null,"OriginalObject","ModifiedObject","OriginalAllocation","ModifiedAllocation","FundsUtilised","AmountOfDeviationOrVariationForTheQuarterAccordingToApplicableObject","DisclosureNotesOnObjectsForWhichFundsHaveBeenRaisedAndWhereThereHasBeenADeviation",null,"Rights Issues","Not applicable","No"]
[null,null,null,null,"Chief Financial Officer","CEO","Company Secretary","Company Secretary and Compliance Officer","Compliance Officer","Director","Managing Director",null,"Preferential Issues"]
[null,null,null,null,null,null,null,null,null,null,null,null,"QIP"]
[null,null,null,null,null,null,null,null,null,null,null,null,"Others"]
[]
[null,null,null,null,null,{"$f":"IF('General Info'!E19=\"\",\"\",\"Amount in (\"&'General Info'!E19&\")\")","v":""}]
[null,null,null,null,"Statement on Deviation or Variation for proceeds of Public Issue, Rights Issue, Preferential Issue, Qualified Institutions Placement Etc."]
[null,null,null,null,"Mode of Fund Raising",null,null,null,null,null,null,null,null,null,"ModeOfFundRaising"]
[null,null,null,null,"Description of mode of fund raising\n(Applicable in case of others is selected)",null,null,null,null,null,null,null,null,null,"DescriptionOfModeOfFundRaising"]
[null,null,null,null,"Date of Raising Funds",null,null,null,null,null,null,null,null,null,"DateOfFundsRaising"]
[null,null,null,null,"Amount Raised",null,null,null,null,null,null,null,null,null,"AmountRaised"]
[null,null,null,null,"Report filed for Quarter ended",{"$f":"IF(COUNTA('Financial Results'!F11),'Financial Results'!F11,\"\")","v":""},null,null,null,null,null,null,null,null,"DateOfEndOfReportingPeriod"]
[null,null,null,null,"Monitoring Agency",null,null,null,null,null,null,null,null,null,"MonitoringAgency"]
[null,null,null,null,"Monitoring Agency Name, if applicable",null,null,null,null,null,null,null,null,null,"NameOfMonitoringAgency"]
[null,null,null,null,"Is there a Deviation / Variation in use of funds raised",null,null,null,null,null,null,null,null,null,"IsThereADeviationOrVariationInUseOfFundsRaised"]
[null,null,null,null,"If yes, whether the same is pursuant to change in terms of a contract or objects, which was approved by the shareholders",null,null,null,null,null,null,null,null,null,"WhetherTheDeviationOrVariationInUseOfFundsIsPursuantToChangeInTermsOfAContractOrObjectsWhichWasApprovedByTheShareholders"]
[null,null,null,null,"If Yes, Date of shareholder Approval","",null,null,null,null,null,null,null,null,"DateOfShareholderApproval"]
[null,null,null,null,"Explanation for the Deviation / Variation",null,null,null,null,null,null,null,null,null,"ExplanationForTheDeviationOrVariation"]
[null,null,null,null,"Comments of the Audit Committee after review",null,null,null,null,null,null,null,null,null,"CommentsOfTheAuditCommitteeAfterReview"]
[null,null,null,null,"Comments of the auditors, if any",null,null,null,null,null,null,null,null,null,"CommentsOfTheAuditors"]
[]
[null,null,null,null,"Objects for which funds have been raised and where there has been a deviation, in the following table:"]
[]
[null,null,null,"Sr.","Original Object","Modified Object, if any","Original Allocation","Modified allocation, if any","Funds Utilised","Amount of Deviation/Variation for the quarter according to applicable object","Remarks if any"]
[]
[]
[]
[]
[]
[]
[null,null,null,null,"Deviation or variation could mean:\n(a) Deviation in the objects or purposes for which the funds have been raised or\n(b) Deviation in the amount of funds actually utilized as against what was originally disclosed or\n(c) Change in terms of a contract referred to in the fund raising document i.e. prospectus, letter of offer, etc"]
[]
[]
[null,null,null,null,"Signatory Details"]
[null,null,null,null,"Name of signatory",null,null,null,null,null,null,null,null,null,"NameOfSignatoryOfStatementOfDeviationOrVariationInUtilisationOfFundsRaised"]
[null,null,null,null,"Designation of person",null,null,null,null,null,null,null,null,null,"DesignationOfPersonOfStatementOfDeviationOrVariationInUtilisationOfFundsRaised"]
[null,null,null,null,"Place",null,null,null,null,null,null,null,null,null,"PlaceOfStatementOfDeviationOrVariationInUtilisationOfFundsRaised"]
[null,null,null,null,"Date",null,null,null,null,null,null,null,null,null,"DateOfStatementOfDeviationOrVariationInUtilisationOfFundsRaised"]

{"sheet":"OS Default on Loans & Debt Sec.","index":12,"n_rows":15,"n_cols":16,"rows_kept":15,"cut":false,"hidden":true,"merged":[[6,3,6,6],[8,4,8,6],[11,4,11,6]]}
[]
[]
[]
[]
[]
[null,null,null,null,null,null,{"$f":"IF('General Info'!E19=\"\",\"\",\"Amount in (\"&'General Info'!E19&\")\")","v":""}]
[null,null,null,"Format for Disclosing Outstanding Default on Loans and Debt Securities"]
[null,null,null,"Sr. No.","Particulars","Amount","Remarks"]
[null,null,null,"1.","Loans / revolving facilities like cash credit from banks / financial institutions"]
[null,null,null,"A","Total amount outstanding as on date",null,null,null,null,null,null,null,null,null,"TotalOutstandingAmountOfLoansOrRevolvingFacilitiesAtTheEndOfPeriod","RemarksForTotalOutstandingOfLoansOrRevolvingFacilitiesAtTheEndOfPeriod"]
[null,null,null,"B","Of the total amount outstanding, amount of default as on date",null,null,null,null,null,null,null,null,null,"AmountOfDefaultOutOfTotalOutstandingAmountOfLoansOrRevolvingFacilitiesAtTheEndOfPeriod","RemarksForDefaultOutOfTotalOutstandingAmountOfLoansOrRevolvingFacilitiesAtTheEndOfPeriod"]
[null,null,null,"2.","Unlisted debt securities i.e. NCDs and NCRPS"]
[null,null,null,"A","Total amount outstanding as on date",null,null,null,null,null,null,null,null,null,"TotalOutstandingAmountOfUnlistedDebtSecuritiesAtTheEndOfPeriod","RemarksForTotalOutstandingUnlistedDebtSecuritiesAtTheEndOfPeriod"]
[null,null,null,"B","Of the total amount outstanding, amount of default as on date",null,null,null,null,null,null,null,null,null,"AmountOfDefaultOutOfTotalOutstandingAmountOfUnlistedDebtSecuritiesAtTheEndOfPeriod","RemarksForDefaultOutOfTotalOutstandingAmountOfUnlistedDebtSecuritiesAtTheEndOfPeriod"]
[null,null,null,"3.","Total financial indebtedness of the listed entity including short-term\nand long-term debt",null,null,null,null,null,null,null,null,null,"AmountOfTotalFinancialIndebtednessOfTheListedEntityIncludingShortTermAndLongTermDebtAtTheEndOfPeriod","RemarksForTotalFinancialIndebtednessOfTheListedEntityIncludingShortTermAndLongTermDebtAtTheEndOfPeriod"]

{"sheet":"Taxonomy","index":13,"n_rows":340,"n_cols":5,"rows_kept":340,"cut":false,"hidden":true,"merged":[]}
["element","label","type","periodType","validation"]
["ScripCode","Scrip code*","in-capmkt-types:ScripCode","duration","1) This field is mandatory.\n2) Enter a valid Scrip code.\n3) Please enter 6 digit Scrip code."]
["Symbol","NSE Symbol*","xbrli:stringItemType","duration","1) This field is mandatory.\n2) Space is not allowed.\n3) Maximum 10 characters allowed."]
["MSEISymbol","MSEI Symbol*","xbrli:stringItemType","duration","1) This field is mandatory.\n2) Space is not allowed.\n3) Maximum 10 characters allowed."]
["ISIN","ISIN*","in-capmkt-types:ISIN","duration","1) This field is mandatory.\n2) Please enter 12 digit ISIN number."]
["NameOfTheCompany","Name of company","xbrli:stringItemType","duration"]
["TypeOfCompany","Type of company","in-capmkt-types:TypeOfCompany","duration","1) This field is mandatory.\n2) Please select from dropdown only."]
["ClassOfSecurity","Class of security","in-capmkt-types:ClassOfSecurity","duration"]
["DateOfStartOfFinancialYear","Date of start of financial year","xbrli:dateItemType","duration","1) This field is mandatory.\n2) Please select from dropdown only."]
["DateOfEndOfFinancialYear","Date of end of financial year","xbrli:dateItemType","duration"]
["DateOfStartOfReportingPeriod","Date of start of reporting period","xbrli:dateItemType","duration"]
["DateOfEndOfReportingPeriod","Date of end of reporting period","xbrli:dateItemType","duration"]
["DateOfBoardMeetingWhenFinancialResultsWereApproved","Date of board meeting when results were approved","xbrli:dateItemType","duration","1) This field is mandatory.\n2) Date on which prior intimation of the meeting for considering financial results was informed to the exchange must be on or before \"Date of board meeting when results were approved\".\n3) Date should be within \"Start date and time of board meeting\" and \" End date and time of board meeting\".\n4) Please select from dropdown only."]
["DateOnWhichPriorIntimationOfTheMeetingForConsideringFinancialResultsWasInformedToTheExchange","Date on which prior intimation of the meeting for considering financial results was informed to the exchange","xbrli:dateItemType","duration","1) This field is mandatory.\n2) \"Date on which prior intimation of the meeting for considering financial results was informed to the exchange\" shall not be later than \"Date of board meeting when results were approved\" and shall not be before the current financial year.\n3) Please select from dropdown only."]
["NatureOfReportStandaloneConsolidated","Nature of report standalone or consolidated","in-capmkt-types:NatureOfReport","duration","1) This field is mandatory.\n2) Please select from dropdown only."]
["ReportingQuarter","Reporting Quarter","in-capmkt-types:ReportingPeriod","duration","1) This field is mandatory.\n2) Please select from dropdown only."]
["DescriptionOfPresentationCurrency","Description of presentation currency","xbrli:stringItemType","duration"]
["LevelOfRounding","Level of rounding","in-capmkt-types:LevelOfRounding","duration","1) This field is mandatory.\n2) Please select from dropdown only."]
["WhetherResultsAreAuditedOrUnaudited","Whether results are audited or unaudited","in-capmkt-types:AuditedUnaudited","duration","1) This field is mandatory.\n2) Please select from dropdown only."]
["IsCompanyReportingMultisegmentOrSingleSegment","Segment Reporting","in-capmkt-types:SegmentType","duration","1) This field is mandatory.\n2) Please select from dropdown only."]
["DescriptionOfSingleSegment","Description of single segment","xbrli:stringItemType","duration","This field is mandatory, if \"Single segment\" selected in \"Segment Reporting\" field."]
["DateOfStartOfBoardMeeting","Start date of board meeting","xbrli:dateItemType","duration","1) This field is mandatory.\n2) Start date of board meeting would be the next quarter then the reporting quarter (e.g. if results are submitted for June, quarter start time and end time would be from July).\n3) Future date is not allowed.\n4) Enter date in \"DD-MM-YYYY\" format.\n5) Enter a valid date."]
["DateOfEndOfBoardMeeting","End date of board meeting","xbrli:dateItemType","duration","1) This field is mandatory.\n2) End date of board meeting must be after or same day of start date of bord meeting and would be the next quarter then the reporting quarter (e.g. if results are submitted for June, quarter start time and end time would be from July) and shall not be earlier than Date of Prior Intimation.\n3) Future date is not allowed.\n4) Enter date in \"DD-MM-YYYY\" format.\n5) Enter a valid date."]
["StartTimeOfBoardMeeting","Start date and time of board meeting","xbrli:timeItemType","duration","1) This field is mandatory.\n2) Please select from dropdown only."]
["EndTimeOfBoardMeeting","End date and time of board meeting","xbrli:timeItemType","duration","1) This field is mandatory.\n2) \"End time of board meeting\" must be greater than \"Start time of board meeting\".\n3) Please select from dropdown only."]
["DeclarationOfUnmodifiedOpinionOrStatementOnImpactOfAuditQualification","Declaration of unmodified opinion or statement on impact of audit qualification","in-capmkt-types:DeclarationOfImpactOfAuditQalification","duration","1) This field is mandatory, if \"Yearly\" selected in \"Reporting Quarter\" field.\n2) Please select from dropdown only."]
["Financial Results"]
["RevenueFromOperations","Revenue from operations","xbrli:monetaryItemType","duration","1) This field is mandatory.\n2) Only numeric value allowed.\n3) Upto 2 decimal value allowed."]
["OtherIncome","Other income","xbrli:monetaryItemType","duration","1) This field is mandatory.\n2) Only numeric value allowed.\n3) Upto 2 decimal value allowed."]
["Income","Total Income","xbrli:monetaryItemType","duration","1) This field is mandatory.\n2) Only numeric value allowed.\n3) Upto 2 decimal value allowed."]
["CostOfMaterialsConsumed","Cost of materials consumed","xbrli:monetaryItemType","duration","1) This field is mandatory.\n2) Only numeric value allowed.\n3) Upto 2 decimal value allowed."]
["PurchasesOfStockInTrade","Purchases of stock-in-trade","xbrli:monetaryItemType","duration","1) This field is mandatory.\n2) Only numeric value allowed.\n3) Upto 2 decimal value allowed."]
["ChangesInInventoriesOfFinishedGoodsWorkInProgressAndStockInTrade","Changes in inventories of finished goods, work-in-progress and stock-in-trade","xbrli:monetaryItemType","duration","1) This field is mandatory.\n2) Only numeric value allowed.\n3) Upto 2 decimal value allowed."]
["EmployeeBenefitExpense","Employee benefit expense  ","xbrli:monetaryItemType","duration","1) This field is mandatory.\n2) Only numeric value allowed.\n3) Upto 2 decimal value allowed."]
["FinanceCosts","Finance costs","xbrli:monetaryItemType","duration","1) This field is mandatory.\n2) Only numeric value allowed.\n3) Upto 2 decimal value allowed."]
["DepreciationAndAmortisationExpense","Depreciation and amortisation expense","xbrli:monetaryItemType","duration","1) This field is mandatory.\n2) Only numeric value allowed.\n3) Upto 2 decimal value allowed."]
["OtherExpenses","Other Expenses","xbrli:monetaryItemType","duration","1) This field is mandatory.\n2) Only numeric value allowed.\n3) Upto 2 decimal value allowed."]
["DescriptionOfOtherExpenses","Description of other expenses","xbrli:stringItemType","duration"]
["OtherExpenses","Total other expenses","xbrli:monetaryItemType","duration","1) This field is mandatory.\n2) Only numeric value allowed.\n3) Upto 2 decimal value allowed."]
["Expenses","Total  expenses","xbrli:monetaryItemType","duration","1) This field is mandatory.\n2) Only numeric value allowed.\n3) Upto 2 decimal value allowed."]
["ProfitBeforeExceptionalAndExtraordinaryItemsAndTax","Profit before exceptional and extraordinary items and tax ","xbrli:monetaryItemType","duration","1) This field is mandatory.\n2) Only numeric value allowed.\n3) Upto 2 decimal value allowed."]
["ExceptionalItems","Exceptional items ","xbrli:monetaryItemType","duration","1) This field is mandatory.\n2) Only numeric value allowed.\n3) Upto 2 decimal value allowed."]
["ProfitBeforeExtraordinaryItemsAndTax","Profit before extraordinary items and tax","xbrli:monetaryItemType","duration","1) This field is mandatory.\n2) Only numeric value allowed.\n3) Upto 2 decimal value allowed."]
["ExtraordinaryItems","Extraordinary items","xbrli:monetaryItemType","duration","1) This field is mandatory.\n2) Only numeric value allowed.\n3) Upto 2 decimal value allowed."]
["ProfitBeforeTax","Profit before tax","xbrli:monetaryItemType","duration","1) This field is mandatory.\n2) Only numeric value allowed.\n3) Upto 2 decimal value allowed."]
["CurrentTax","Current tax","xbrli:monetaryItemType","duration","1) This field is mandatory.\n2) Only numeric value allowed.\n3) Upto 2 decimal value allowed."]
["DeferredTax","Deferred tax","xbrli:monetaryItemType","duration","1) This field is mandatory.\n2) Only numeric value allowed.\n3) Upto 2 decimal value allowed."]
["TaxExpense","Total tax expenses","xbrli:monetaryItemType","duration","1) This field is mandatory.\n2) Only numeric value allowed.\n3) Upto 2 decimal value allowed."]
["ProfitLossForThePeriodFromContinuingOperations","Net Profit Loss for the period from continuing operations","xbrli:monetaryItemType","duration","1) This field is mandatory.\n2) Only numeric value allowed.\n3) Upto 2 decimal value allowed."]
["ProfitLossFromDiscontinuingOperationsBeforeTax","Profit (loss) from discontinuing operations before tax","xbrli:monetaryItemType","duration","1) This field is mandatory.\n2) Only numeric value allowed.\n3) Upto 2 decimal value allowed."]
["TaxExpenseOfDiscontinuingOperations","Tax expense of discontinuing operations","xbrli:monetaryItemType","duration","1) This field is mandatory.\n2) Only numeric value allowed.\n3) Upto 2 decimal value allowed."]
["ProfitLossFromDiscontinuingOperationAfterTax","Net profit (loss) from discontinuing operation after tax","xbrli:monetaryItemType","duration","1) This field is mandatory.\n2) Only numeric value allowed.\n3) Upto 2 decimal value allowed."]
["ProfitLossForPeriodBeforeMinorityInterest","Profit (loss) for period before minority interest","xbrli:monetaryItemType","duration","1) This field is mandatory.\n2) Only numeric value allowed.\n3) Upto 2 decimal value allowed."]
["ProfitLossOfMinorityInterest","Profit (loss) of minority interest","xbrli:monetaryItemType","duration","1) This field is mandatory.\n2) Only numeric value allowed.\n3) Upto 2 decimal value allowed."]
["ShareOfProfitLossOfAssociates","Share of profit (loss) of associates","xbrli:monetaryItemType","duration","1) This field is mandatory.\n2) Only numeric value allowed.\n3) Upto 2 decimal value allowed."]
["ProfitLossForThePeriod","Net profit (loss) for the period","xbrli:monetaryItemType","duration","1) This field is mandatory.\n2) Only numeric value allowed.\n3) Upto 2 decimal value allowed."]
["PaidUpValueOfEquityShareCapital","Paid-up equity share capital","xbrli:monetaryItemType","duration","1) This field is mandatory.\n2) Only numeric value allowed.\n3) Upto 2 decimal value allowed."]
["FaceValueOfEquityShareCapital","Face value of equity share capital","num:perShareItemType","duration","1) This field is mandatory.\n2) Only numeric value allowed.\n3) Upto 2 decimal value allowed."]
["ReserveExcludingRevaluationReserves","Reserves excluding revaluation reserve","xbrli:monetaryItemType","duration","1) This field is mandatory.\n2) Only numeric value allowed.\n3) Upto 2 decimal value allowed."]
["BasicEarningsLossPerShareFromContinuingAndDiscontinuedOperations","Basic earnings (loss) per share from continuing and discontinued operations","num:perShareItemType","duration","1) This field is mandatory.\n2) Only numeric value allowed.\n3) Upto 2 decimal value allowed."]
["DilutedEarningsLossPerShareFromContinuingAndDiscontinuedOperations","Diluted earnings (loss) per share from continuing and discontinued operations","num:perShareItemType","duration","1) This field is mandatory.\n2) Only numeric value allowed.\n3) Upto 2 decimal value allowed."]
["DebtEquityRatio","Debt equity ratio","num:percentItemType","duration","1) This field is mandatory.\n2) Only numeric value allowed.\n3) Upto 2 decimal value allowed."]
["DebtServiceCoverageRatio","Debt service coverage ratio","num:percentItemType","duration","1) This field is mandatory.\n2) Only numeric value allowed.\n3) Upto 2 decimal value allowed."]
["InterestServiceCoverageRatio","Interest service coverage ratio","num:percentItemType","duration","1) This field is mandatory.\n2) Only numeric value allowed.\n3) Upto 2 decimal value allowed."]
["DisclosureOfNotesOnFinancialResultsExplanatoryTextBlock","Disclosure of notes on financial results","nonnum:textBlockItemType","duration"]
["Asset Liabilities"]
["ShareCapital","Share capital","xbrli:monetaryItemType","instant","1) This field is mandatory.\n2) Only numeric value allowed.\n3) Upto 2 decimal value allowed."]
["ReservesAndSurplus","Reserves and surplus","xbrli:monetaryItemType","instant","1) This field is mandatory.\n2) Only numeric value allowed.\n3) Upto 2 decimal value allowed."]
["MoneyReceivedAgainstShareWarrants","Money received against share warrants","xbrli:monetaryItemType","instant","1) This field is mandatory.\n2) Only numeric value allowed.\n3) Upto 2 decimal value allowed."]
["ShareholdersFunds","Total shareholders' funds","xbrli:monetaryItemType","instant","1) This field is mandatory.\n2) Only numeric value allowed.\n3) Upto 2 decimal value allowed."]
["ShareApplicationMoneyPendingAllotment","Share application money pending allotment","xbrli:monetaryItemType","instant","1) This field is mandatory.\n2) Only numeric value allowed.\n3) Upto 2 decimal value allowed."]
["DeferredGovernmentGrants","Deferred government grants","xbrli:monetaryItemType","instant","1) This field is mandatory.\n2) Only numeric value allowed.\n3) Upto 2 decimal value allowed."]
["MinorityInterest","Minority interest","xbrli:monetaryItemType","instant","1) This field is mandatory.\n2) Only numeric value allowed.\n3) Upto 2 decimal value allowed."]
["LongTermBorrowings","Long-term borrowings","xbrli:monetaryItemType","instant","1) This field is mandatory.\n2) Only numeric value allowed.\n3) Upto 2 decimal value allowed."]
["DeferredTaxLiabilitiesNet","Deferred tax liabilities (net)","xbrli:monetaryItemType","instant","1) This field is mandatory.\n2) Only numeric value allowed.\n3) Upto 2 decimal value allowed."]
["ForeignCurrencyMonetaryItemTranslationDifferenceLiabilityAccount","Foreign currency monetary item translation difference liability account","xbrli:monetaryItemType","instant","1) This field is mandatory.\n2) Only numeric value allowed.\n3) Upto 2 decimal value allowed."]
["OtherLongTermLiabilities","Other long-term liabilities","xbrli:monetaryItemType","instant","1) This field is mandatory.\n2) Only numeric value allowed.\n3) Upto 2 decimal value allowed."]
["LongTermProvisions","Long-term provisions","xbrli:monetaryItemType","instant","1) This field is mandatory.\n2) Only numeric value allowed.\n3) Upto 2 decimal value allowed."]
["NoncurrentLiabilities","Total non-current liabilities","xbrli:monetaryItemType","instant","1) This field is mandatory.\n2) Only numeric value allowed.\n3) Upto 2 decimal value allowed."]
["ShortTermBorrowings","Short-term borrowings","xbrli:monetaryItemType","instant","1) This field is mandatory.\n2) Only numeric value allowed.\n3) Upto 2 decimal value allowed."]
["TotalOutstandingDuesOfMicroEnterprisesAndSmallEnterprises","(A) Total outstanding dues of micro enterprises and small enterprises","xbrli:monetaryItemType","instant","1) This field is mandatory.\n2) Only numeric value allowed.\n3) Upto 2 decimal value allowed."]
["TotalOutstandingDuesOfCreditorsOtherThanMicroEnterprisesAndSmallEnterprises","(B) Total outstanding dues of creditors other than micro enterprises and small enterprises","xbrli:monetaryItemType","instant","1) This field is mandatory.\n2) Only numeric value allowed.\n3) Upto 2 decimal value allowed."]
["OtherCurrentLiabilities","Other current liabilities","xbrli:monetaryItemType","instant","1) This field is mandatory.\n2) Only numeric value allowed.\n3) Upto 2 decimal value allowed."]
["ShortTermProvisions","Short-term provisions","xbrli:monetaryItemType","instant","1) This field is mandatory.\n2) Only numeric value allowed.\n3) Upto 2 decimal value allowed."]
["CurrentLiabilities","Total current liabilities","xbrli:monetaryItemType","instant","1) This field is mandatory.\n2) Only numeric value allowed.\n3) Upto 2 decimal value allowed."]
["EquityAndLiabilities","Total equity and liabilities","xbrli:monetaryItemType","instant","1) This field is mandatory.\n2) Only numeric value allowed.\n3) Upto 2 decimal value allowed."]
["PropertyPlantAndEquipment","Property, Plant and Equipment","xbrli:monetaryItemType","instant","1) This field is mandatory.\n2) Only numeric value allowed.\n3) Upto 2 decimal value allowed."]
["ProducingProperties","Producing properties","xbrli:monetaryItemType","instant","1) This field is mandatory.\n2) Only numeric value allowed.\n3) Upto 2 decimal value allowed."]
["IntangibleAssets","Intangible assets","xbrli:monetaryItemType","instant","1) This field is mandatory.\n2) Only numeric value allowed.\n3) Upto 2 decimal value allowed."]
["PreproducingProperties","Preproducing properties","xbrli:monetaryItemType","instant","1) This field is mandatory.\n2) Only numeric value allowed.\n3) Upto 2 decimal value allowed."]
["PropertyPlantAndEquipmentCapitalWorkInProgress","Property, Plant and Equipment capital work-in-progress","xbrli:monetaryItemType","instant","1) This field is mandatory.\n2) Only numeric value allowed.\n3) Upto 2 decimal value allowed."]
["IntangibleAssetsUnderDevelopmentOrWorkInProgress","Intangible assets under development or work-in-progress","xbrli:monetaryItemType","instant","1) This field is mandatory.\n2) Only numeric value allowed.\n3) Upto 2 decimal value allowed."]
["PropertyPlantAndEquipmentAndIntangibleAssets","Total Property, Plant and Equipment and Intangible assets","xbrli:monetaryItemType","instant","1) This field is mandatory.\n2) Only numeric value allowed.\n3) Upto 2 decimal value allowed."]
["NoncurrentInvestments","Non-current investments","xbrli:monetaryItemType","instant","1) This field is mandatory.\n2) Only numeric value allowed.\n3) Upto 2 decimal value allowed."]
["DeferredTaxAssetsNet","Deferred tax assets (net)","xbrli:monetaryItemType","instant","1) This field is mandatory.\n2) Only numeric value allowed.\n3) Upto 2 decimal value allowed."]
["ForeignCurrencyMonetaryItemTranslationDifferenceAssetAccount","Foreign currency monetary item translation difference asset account","xbrli:monetaryItemType","instant","1) This field is mandatory.\n2) Only numeric value allowed.\n3) Upto 2 decimal value allowed."]
["LongTermLoansAndAdvances","Long-term loans and advances","xbrli:monetaryItemType","instant","1) This field is mandatory.\n2) Only numeric value allowed.\n3) Upto 2 decimal value allowed."]
["OtherNoncurrentAssets","Other non-current assets","xbrli:monetaryItemType","instant","1) This field is mandatory.\n2) Only numeric value allowed.\n3) Upto 2 decimal value allowed."]
["NoncurrentAssets","Total non-current assets","xbrli:monetaryItemType","instant","1) This field is mandatory.\n2) Only numeric value allowed.\n3) Upto 2 decimal value allowed."]
["CurrentInvestments","Current investments","xbrli:monetaryItemType","instant","1) This field is mandatory.\n2) Only numeric value allowed.\n3) Upto 2 decimal value allowed."]
["Inventories","Inventories","xbrli:monetaryItemType","instant","1) This field is mandatory.\n2) Only numeric value allowed.\n3) Upto 2 decimal value allowed."]
["TradeReceivables","Trade receivables","xbrli:monetaryItemType","instant","1) This field is mandatory.\n2) Only numeric value allowed.\n3) Upto 2 decimal value allowed."]
["CashAndCashEquivalents","Cash and cash equivalents","xbrli:monetaryItemType","instant","1) This field is mandatory.\n2) Only numeric value allowed.\n3) Upto 2 decimal value allowed."]
["BankBalanceOtherThanCashAndCashEquivalents","Bank balance other than cash and cash equivalents","xbrli:monetaryItemType","instant","1) This field is mandatory.\n2) Only numeric value allowed.\n3) Upto 2 decimal value allowed."]
["ShortTermLoansAndAdvances","Short-term loans and advances","xbrli:monetaryItemType","instant","1) This field is mandatory.\n2) Only numeric value allowed.\n3) Upto 2 decimal value allowed."]
["OtherCurrentAssets","Other current assets","xbrli:monetaryItemType","instant","1) This field is mandatory.\n2) Only numeric value allowed.\n3) Upto 2 decimal value allowed."]
["CurrentAssets","Total current assets","xbrli:monetaryItemType","instant","1) This field is mandatory.\n2) Only numeric value allowed.\n3) Upto 2 decimal value allowed."]
["Assets","Total assets","xbrli:monetaryItemType","instant","\"Total Assets\" must match with \"Total Equity and Liabilities\" mentioned in sheet \"Asset Liabilities\""]
["DisclosureOfNotesOnAssetsAndLiabilitiesExplanatoryTextBlock","Disclosure of notes on assets and liabilities","nonnum:textBlockItemType","duration"]
["Segment"]
["DescriptionOfReportableSegment","Description Of reportable segments","xbrli:stringItemType","duration"]
["SegmentRevenue","Segment revenue","xbrli:monetaryItemType","duration","1) This field is mandatory.\n2) Only numeric value allowed.\n3) Upto 2 decimal value allowed."]
["SegmentRevenue","Total Segment Revenue","xbrli:monetaryItemType","duration","1) This field is mandatory.\n2) Only numeric value allowed.\n3) Upto 2 decimal value allowed."]
["InterSegmentRevenue","Less: Inter segment revenue","xbrli:monetaryItemType","duration","1) This field is mandatory.\n2) Only numeric value allowed.\n3) Upto 2 decimal value allowed."]
["SegmentRevenueFromOperations","Revenue  from  Operations ","xbrli:monetaryItemType","duration","1) This field is mandatory.\n2) Only numeric value allowed.\n3) Upto 2 decimal value allowed."]
["SegmentProfitLossBeforeTaxAndFinanceCosts","Profit (loss) before tax and interest","xbrli:monetaryItemType","duration","1) This field is mandatory.\n2) Only numeric value allowed.\n3) Upto 2 decimal value allowed."]
["SegmentProfitLossBeforeTaxAndFinanceCosts","Total Profit before tax","xbrli:monetaryItemType","duration","1) This field is mandatory.\n2) Only numeric value allowed.\n3) Upto 2 decimal value allowed."]
["SegmentFinanceCosts","i. Finance cost","xbrli:monetaryItemType","duration","1) This field is mandatory.\n2) Only numeric value allowed.\n3) Upto 2 decimal value allowed."]
["OtherUnallocableExpenditureNetOffUnAllocableIncome","ii. Other unallocable expenditure net off unallocable income","xbrli:monetaryItemType","duration","1) This field is mandatory.\n2) Only numeric value allowed.\n3) Upto 2 decimal value allowed."]
["SegmentProfitBeforeTax","Profit  before  tax ","xbrli:monetaryItemType","duration","1) This field is mandatory.\n2) Only numeric value allowed.\n3) Upto 2 decimal value allowed."]
["SegmentAssets","Segment Asset ","xbrli:monetaryItemType","instant","1) This field is mandatory.\n2) Only numeric value allowed.\n3) Upto 2 decimal value allowed."]
["SegmentAssets","Total Segment Assets","xbrli:monetaryItemType","instant","1) This field is mandatory.\n2) Only numeric value allowed.\n3) Upto 2 decimal value allowed."]
["UnAllocableAssets","Un-allocable Assets","xbrli:monetaryItemType","instant","1) This field is mandatory.\n2) Only numeric value allowed.\n3) Upto 2 decimal value allowed."]
["NetSegmentAssets","Net Segment Assets","xbrli:monetaryItemType","instant","1) This field is mandatory.\n2) Only numeric value allowed.\n3) Upto 2 decimal value allowed."]
["SegmentLiabilities","Segment Liabilities","xbrli:monetaryItemType","instant","1) This field is mandatory.\n2) Only numeric value allowed.\n3) Upto 2 decimal value allowed."]
["SegmentLiabilities","Total Segment Liabilities","xbrli:monetaryItemType","instant","1) This field is mandatory.\n2) Only numeric value allowed.\n3) Upto 2 decimal value allowed."]
["UnAllocableLiabilities","Un-allocable Liabilities","xbrli:monetaryItemType","instant","1) This field is mandatory.\n2) Only numeric value allowed.\n3) Upto 2 decimal value allowed."]
["NetSegmentLiabilities","Net Segment Liabilities","xbrli:monetaryItemType","instant","1) This field is mandatory.\n2) Only numeric value allowed.\n3) Upto 2 decimal value allowed."]
["DisclosureOfNotesOnSegmentsExplanatoryTextBlock","Disclosure of notes on segments","nonnum:textBlockItemType","duration"]
["WhetherCashFlowStatementIsApplicableOnCompany","Whether cash flow statement is applicable on company","xbrli:booleanItemType","duration","1) This field is mandatory, if \"Second quarter\" or \"Fourth quarter\" or \"Half yearly\" or \"Yearly\" selected in \"Reporting Quarter\" field.\n2) Please select from dropdown only."]
["TypeOfCashFlowStatement","Type of cash flow statement","in-capmkt-types:TypeOfCashFlowStatement","duration","1) This field is mandatory, if \"Yes\" selected in \"Whether cash flow statement is applicable on company\" field.\n2) Please select from dropdown only."]
["ReceiptsFromSalesOfGoodsAndRenderingOfServices","Receipts from sales of goods and rendering of services","xbrli:monetaryItemType","duration","1) This field is mandatory.\n2) Only numeric value allowed.\n3) Upto 2 decimal value allowed."]
["ReceiptsFromRoyaltiesFeesCommissionsAndOtherRevenue","Receipts from royalties fees, commissions and other revenue","xbrli:monetaryItemType","duration","1) This field is mandatory.\n2) Only numeric value allowed.\n3) Upto 2 decimal value allowed."]
["ReceiptsFromFutureContractsForwardContractsOptionsContractsAndSwapContractsHeldForDealingOrTradingPurpose","Receipts from future contracts, forward contracts, options contracts and swap contracts held for dealing or trading purpose","xbrli:monetaryItemType","duration","1) This field is mandatory.\n2) Only numeric value allowed.\n3) Upto 2 decimal value allowed."]
["ReceiptsFromPremiumsAndClaimsAnnuitiesAndOtherPolicyBenefits","Receipts from premiums and claims annuities and other policy benefits","xbrli:monetaryItemType","duration","1) This field is mandatory.\n2) Only numeric value allowed.\n3) Upto 2 decimal value allowed."]
["OtherCashReceiptsFromOperatingActivities","Other cash receipts from operating activities","xbrli:monetaryItemType","duration","1) This field is mandatory.\n2) Only numeric value allowed.\n3) Upto 2 decimal value allowed."]
["PaymentsToSuppliersForGoodsAndServices","Payments to suppliers for goods and services","xbrli:monetaryItemType","duration","1) This field is mandatory.\n2) Only numeric value allowed.\n3) Upto 2 decimal value allowed."]
["PaymentsToFutureContractsForwardContractsOptionsContractsAndSwapContractsHeldForDealingOrTradingPurpose","Payments to future contracts, forward contracts, options contracts and swap contracts held for dealing or trading purpose","xbrli:monetaryItemType","duration","1) This field is mandatory.\n2) Only numeric value allowed.\n3) Upto 2 decimal value allowed."]
["PaymentsToAndOnBehalfOfEmployees","Payments to and on behalf of employees","xbrli:monetaryItemType","duration","1) This field is mandatory.\n2) Only numeric value allowed.\n3) Upto 2 decimal value allowed."]
["PaymentsForPremiumsAndClaimsAnnuitiesAndOtherPolicyBenefits","Payments for premiums and claims, annuities and other policy benefits","xbrli:monetaryItemType","duration","1) This field is mandatory.\n2) Only numeric value allowed.\n3) Upto 2 decimal value allowed."]
["OtherCashPaymentsFromOperatingActivities","Other cash payments from operating activities","xbrli:monetaryItemType","duration","1) This field is mandatory.\n2) Only numeric value allowed.\n3) Upto 2 decimal value allowed."]
["CashFlowsFromUsedInOperations","Net cash flows from (used in) operations","xbrli:monetaryItemType","duration","1) This field is mandatory.\n2) Only numeric value allowed.\n3) Upto 2 decimal value allowed."]
["DividendsReceivedClassifiedAsOperatingActivities","Dividends received operating activities","xbrli:monetaryItemType","duration","1) This field is mandatory.\n2) Only numeric value allowed.\n3) Upto 2 decimal value allowed."]
["InterestPaidClassifiedAsOperatingActivities","Interest paid operating activities","xbrli:monetaryItemType","duration","1) This field is mandatory.\n2) Only numeric value allowed.\n3) Upto 2 decimal value allowed."]
["InterestReceivedClassifiedAsOperatingActivities","Interest received operating activities","xbrli:monetaryItemType","duration","1) This field is mandatory.\n2) Only numeric value allowed.\n3) Upto 2 decimal value allowed."]
["IncomeTaxesPaidRefundClassifiedAsOperatingActivities","Income taxes paid (refund) operating activities","xbrli:monetaryItemType","duration","1) This field is mandatory.\n2) Only numeric value allowed.\n3) Upto 2 decimal value allowed."]
["OtherInflowsOutflowsOfCashClassifiedAsOperatingActivities","Other inflows (outflows) of cash operating activities","xbrli:monetaryItemType","duration","1) This field is mandatory.\n2) Only numeric value allowed.\n3) Upto 2 decimal value allowed."]
["CashFlowsFromUsedInOperatingActivitiesBeforeExtraordinaryItems","Net cash flows from (used in) operating activities before extraordinary items","xbrli:monetaryItemType","duration","1) This field is mandatory.\n2) Only numeric value allowed.\n3) Upto 2 decimal value allowed."]
["ProceedsFromExtraordinaryItemsClassifiedAsOperatingActivities","Proceeds from extraordinary items operating activities","xbrli:monetaryItemType","duration","1) This field is mandatory.\n2) Only numeric value allowed.\n3) Upto 2 decimal value allowed."]
["PaymentForExtraordinaryItemsClassifiedAsOperatingActivities","Payment for extraordinary items operating activities","xbrli:monetaryItemType","duration","1) This field is mandatory.\n2) Only numeric value allowed.\n3) Upto 2 decimal value allowed."]
["CashFlowsFromUsedInOperatingActivities","Net cash flows from (used in) operating activities","xbrli:monetaryItemType","duration","1) This field is mandatory.\n2) Only numeric value allowed.\n3) Upto 2 decimal value allowed."]
["CashFlowsFromLosingControlOfSubsidiariesOrOtherBusinessesClassifiedAsInvestingActivities","Cash flows from losing control of subsidiaries or other businesses","xbrli:monetaryItemType","duration","1) This field is mandatory.\n2) Only numeric value allowed.\n3) Upto 2 decimal value allowed."]
["CashFlowsUsedInObtainingControlOfSubsidiariesOrOtherBusinessesClassifiedAsInvestingActivities","Cash flows used in obtaining control of subsidiaries or other businesses","xbrli:monetaryItemType","duration","1) This field is mandatory.\n2) Only numeric value allowed.\n3) Upto 2 decimal value allowed."]
["OtherCashReceiptsFromSalesOfEquityOrDebtInstrumentsOfOtherEntitiesClassifiedAsInvestingActivities","Other cash receipts from sales of equity or debt instruments of other entities","xbrli:monetaryItemType","duration","1) This field is mandatory.\n2) Only numeric value allowed.\n3) Upto 2 decimal value allowed."]
["OtherCashPaymentsToAcquireEquityOrDebtInstrumentsOfOtherEntitiesClassifiedAsInvestingActivities","Other cash payments to acquire equity or debt instruments of other entities","xbrli:monetaryItemType","duration","1) This field is mandatory.\n2) Only numeric value allowed.\n3) Upto 2 decimal value allowed."]
["OtherCashReceiptsFromSalesOfInterestsInJointVenturesClassifiedAsInvestingActivities","Other cash receipts from sales of interests in joint ventures","xbrli:monetaryItemType","duration","1) This field is mandatory.\n2) Only numeric value allowed.\n3) Upto 2 decimal value allowed."]
["OtherCashPaymentsToAcquireInterestsInJointVenturesClassifiedAsInvestingActivities","Other cash payments to acquire interests in joint ventures","xbrli:monetaryItemType","duration","1) This field is mandatory.\n2) Only numeric value allowed.\n3) Upto 2 decimal value allowed."]
["CashReceiptsFromShareOfProfitsOfPartnershipFirmOrAssociationOfPersonsOrLimitedLiabilityPartnerships","Cash receipts from share of profits of partnership firm or association of persons or limited liability partnerships","xbrli:monetaryItemType","duration","1) This field is mandatory.\n2) Only numeric value allowed.\n3) Upto 2 decimal value allowed."]
["CashPaymentForInvestmentInPartnershipFirmOrAssociationOfPersonsOrLimitedLiabilityPartnerships","Cash payment for investment in partnership firm or association of persons or limited liability partnerships","xbrli:monetaryItemType","duration","1) This field is mandatory.\n2) Only numeric value allowed.\n3) Upto 2 decimal value allowed."]
["ProceedsFromSalesOfPropertyPlantAndEquipmentClassifiedAsInvestingActivities","Proceeds from sales of property plant and equipment","xbrli:monetaryItemType","duration","1) This field is mandatory.\n2) Only numeric value allowed.\n3) Upto 2 decimal value allowed."]
["PurchaseOfPropertyPlantAndEquipmentClassifiedAsInvestingActivities","Purchase of property plant and equipment","xbrli:monetaryItemType","duration","1) This field is mandatory.\n2) Only numeric value allowed.\n3) Upto 2 decimal value allowed."]
["ProceedsFromSalesOfIntangibleAssetsClassifiedAsInvestingActivities","Proceeds from sales of intangible assets","xbrli:monetaryItemType","duration","1) This field is mandatory.\n2) Only numeric value allowed.\n3) Upto 2 decimal value allowed."]
["PurchaseOfIntangibleAssetsClassifiedAsInvestingActivities","Purchase of intangible assets","xbrli:monetaryItemType","duration","1) This field is mandatory.\n2) Only numeric value allowed.\n3) Upto 2 decimal value allowed."]
["CashAdvancesAndLoansMadeToOtherPartiesClassifiedAsInvestingActivities","Cash advances and loans made to other parties","xbrli:monetaryItemType","duration","1) This field is mandatory.\n2) Only numeric value allowed.\n3) Upto 2 decimal value allowed."]
["CashReceiptsFromRepaymentOfAdvancesAndLoansMadeToOtherPartiesClassifiedAsInvestingActivities","Cash receipts from repayment of advances and loans made to other parties","xbrli:monetaryItemType","duration","1) This field is mandatory.\n2) Only numeric value allowed.\n3) Upto 2 decimal value allowed."]
["CashPaymentsForFutureContractsForwardContractsOptionContractsAndSwapContractsClassifiedAsInvestingActivities","Cash payments for future contracts, forward contracts, option contracts and swap contracts","xbrli:monetaryItemType","duration","1) This field is mandatory.\n2) Only numeric value allowed.\n3) Upto 2 decimal value allowed."]
["CashReceiptsFromFutureContractsForwardContractsOptionContractsAndSwapContractsClassifiedAsInvestingActivities","Cash receipts from future contracts, forward contracts, option contracts and swap contracts","xbrli:monetaryItemType","duration","1) This field is mandatory.\n2) Only numeric value allowed.\n3) Upto 2 decimal value allowed."]
["DividendsReceivedClassifiedAsInvestingActivities","Dividends received investing activities","xbrli:monetaryItemType","duration","1) This field is mandatory.\n2) Only numeric value allowed.\n3) Upto 2 decimal value allowed."]
["InterestReceivedClassifiedAsInvestingActivities","Interest received investing activities","xbrli:monetaryItemType","duration","1) This field is mandatory.\n2) Only numeric value allowed.\n3) Upto 2 decimal value allowed."]
["IncomeTaxesPaidRefundClassifiedAsInvestingActivities","Income taxes paid (refund) investing activities","xbrli:monetaryItemType","duration","1) This field is mandatory.\n2) Only numeric value allowed.\n3) Upto 2 decimal value allowed."]
["OtherInflowsOutflowsOfCashClassifiedAsInvestingActivities","Other inflows (outflows) of cash investing activities","xbrli:monetaryItemType","duration","1) This field is mandatory.\n2) Only numeric value allowed.\n3) Upto 2 decimal value allowed."]
["ProceedsFromGovernmentGrantsClassifiedAsInvestingActivities","Proceeds from government grants","xbrli:monetaryItemType","duration","1) This field is mandatory.\n2) Only numeric value allowed.\n3) Upto 2 decimal value allowed."]
["CashFlowsFromUsedInInvestingActivitiesBeforeExtraordinaryItems","Net cash flows from (used in) investing activities before extraordinary items","xbrli:monetaryItemType","duration","1) This field is mandatory.\n2) Only numeric value allowed.\n3) Upto 2 decimal value allowed."]
["ProceedsFromExtraordinaryItemsClassifiedAsInvestingActivities","Proceeds from extraordinary items investing activities","xbrli:monetaryItemType","duration","1) This field is mandatory.\n2) Only numeric value allowed.\n3) Upto 2 decimal value allowed."]
["PaymentForExtraordinaryItemsClassifiedAsInvestingActivities","Payment for extraordinary items investing activities","xbrli:monetaryItemType","duration","1) This field is mandatory.\n2) Only numeric value allowed.\n3) Upto 2 decimal value allowed."]
["CashFlowsFromUsedInInvestingActivities","Net cash flows from (used in) investing activities","xbrli:monetaryItemType","duration","1) This field is mandatory.\n2) Only numeric value allowed.\n3) Upto 2 decimal value allowed."]
["ProceedsFromIssuingShares","Proceeds from issuing shares","xbrli:monetaryItemType","duration","1) This field is mandatory.\n2) Only numeric value allowed.\n3) Upto 2 decimal value allowed."]
["ProceedsFromIssuingOtherEquityInstruments","Proceeds from issuing other equity instruments","xbrli:monetaryItemType","duration","1) This field is mandatory.\n2) Only numeric value allowed.\n3) Upto 2 decimal value allowed."]
["ProceedsFromIssuingDebenturesNotesBondsEtc","Proceeds from issuing debentures notes bonds etc","xbrli:monetaryItemType","duration","1) This field is mandatory.\n2) Only numeric value allowed.\n3) Upto 2 decimal value allowed."]
["ProceedsFromBorrowingsClassifiedAsFinancingActivities","Proceeds from borrowings","xbrli:monetaryItemType","duration","1) This field is mandatory.\n2) Only numeric value allowed.\n3) Upto 2 decimal value allowed."]
["RepaymentsOfBorrowingsClassifiedAsFinancingActivities","Repayments of borrowings","xbrli:monetaryItemType","duration","1) This field is mandatory.\n2) Only numeric value allowed.\n3) Upto 2 decimal value allowed."]
["DividendsPaidClassifiedAsFinancingActivities","Dividends paid","xbrli:monetaryItemType","duration","1) This field is mandatory.\n2) Only numeric value allowed.\n3) Upto 2 decimal value allowed."]
["InterestPaidClassifiedAsFinancingActivities","Interest paid","xbrli:monetaryItemType","duration","1) This field is mandatory.\n2) Only numeric value allowed.\n3) Upto 2 decimal value allowed."]
["IncomeTaxesPaidRefundClassifiedAsFinancingActivities","Income taxes paid (refund)","xbrli:monetaryItemType","duration","1) This field is mandatory.\n2) Only numeric value allowed.\n3) Upto 2 decimal value allowed."]
["OtherInflowsOutflowsOfCashClassifiedAsFinancingActivities","Other inflows (outflows) of cash","xbrli:monetaryItemType","duration","1) This field is mandatory.\n2) Only numeric value allowed.\n3) Upto 2 decimal value allowed."]
["CashFlowsFromUsedInFinancingActivitiesBeforeExtraordinaryItems","Net cash flows from (used in) financing activities before extraordinary items","xbrli:monetaryItemType","duration","1) This field is mandatory.\n2) Only numeric value allowed.\n3) Upto 2 decimal value allowed."]
["ProceedsFromExtraordinaryItemsClassifiedAsFinancingActivities","Proceeds from extraordinary items","xbrli:monetaryItemType","duration","1) This field is mandatory.\n2) Only numeric value allowed.\n3) Upto 2 decimal value allowed."]
["PaymentForExtraordinaryItemsClassifiedAsFinancingActivities","Payment for extraordinary items","xbrli:monetaryItemType","duration","1) This field is mandatory.\n2) Only numeric value allowed.\n3) Upto 2 decimal value allowed."]
["CashFlowsFromUsedInFinancingActivities","Net cash flows from (used in) financing activities","xbrli:monetaryItemType","duration","1) This field is mandatory.\n2) Only numeric value allowed.\n3) Upto 2 decimal value allowed."]
["IncreaseDecreaseInCashAndCashEquivalentsBeforeEffectOfExchangeRateChanges","Net increase (decrease) in cash and cash equivalents before effect of exchange rate changes","xbrli:monetaryItemType","duration","1) This field is mandatory.\n2) Only numeric value allowed.\n3) Upto 2 decimal value allowed."]
["EffectOfExchangeRateChangesOnCashAndCashEquivalents","Effect of exchange rate changes on cash and cash equivalents","xbrli:monetaryItemType","duration","1) This field is mandatory.\n2) Only numeric value allowed.\n3) Upto 2 decimal value allowed."]
["IncreaseDecreaseInCashAndCashEquivalents","Net increase (decrease) in cash and cash equivalents","xbrli:monetaryItemType","duration","1) This field is mandatory.\n2) Only numeric value allowed.\n3) Upto 2 decimal value allowed."]
["CashAndCashEquivalentsCashFlowStatement","Cash and cash equivalents cash flow statement at beginning of period","xbrli:monetaryItemType","instant","1) This field is mandatory.\n2) Only numeric value allowed.\n3) Upto 2 decimal value allowed."]
["CashAndCashEquivalentsCashFlowStatement","Cash and cash equivalents cash flow statement at end of period","xbrli:monetaryItemType","instant","1) This field is mandatory.\n2) Only numeric value allowed.\n3) Upto 2 decimal value allowed."]
["ProfitBeforeExtraordinaryItemsAndTax","Total profit before extraordinary items and tax","xbrli:monetaryItemType","duration","Value should be match with Profit before extraordinary items and tax from financial results sheet"]
["AdjustmentsForFinanceCosts","Adjustments for finance costs","xbrli:monetaryItemType","duration","1) This field is mandatory.\n2) Only numeric value allowed.\n3) Upto 2 decimal value allowed."]
["AdjustmentsForDepreciationAndAmortisationExpense","Adjustments for depreciation and amortisation expense","xbrli:monetaryItemType","duration","1) This field is mandatory.\n2) Only numeric value allowed.\n3) Upto 2 decimal value allowed."]
["AdjustmentsForImpairmentLossReversalOfImpairmentLossRecognisedInProfitOrLoss","Adjustments for impairment loss reversal of impairment loss recognised in profit or loss","xbrli:monetaryItemType","duration","1) This field is mandatory.\n2) Only numeric value allowed.\n3) Upto 2 decimal value allowed."]
["AdjustmentsForUnrealisedForeignExchangeLossesGains","Adjustments for unrealised foreign exchange losses gains","xbrli:monetaryItemType","duration","1) This field is mandatory.\n2) Only numeric value allowed.\n3) Upto 2 decimal value allowed."]
["AdjustmentsForDividendIncome","Adjustments for dividend income","xbrli:monetaryItemType","duration","1) This field is mandatory.\n2) Only numeric value allowed.\n3) Upto 2 decimal value allowed."]
["AdjustmentsForSharebasedPayments","Adjustments for share-based payments","xbrli:monetaryItemType","duration","1) This field is mandatory.\n2) Only numeric value allowed.\n3) Upto 2 decimal value allowed."]
["OtherAdjustmentsForWhichCashEffectsAreInvestingOrFinancingCashFlow","Other adjustments for which cash effects are investing or financing cash flow","xbrli:monetaryItemType","duration","1) This field is mandatory.\n2) Only numeric value allowed.\n3) Upto 2 decimal value allowed."]
["OtherAdjustmentsToReconcileProfitLoss","Other adjustments to reconcile profit (loss)","xbrli:monetaryItemType","duration","1) This field is mandatory.\n2) Only numeric value allowed.\n3) Upto 2 decimal value allowed."]
["OtherAdjustmentsForNoncashItems","Other adjustments for non-cash items","xbrli:monetaryItemType","duration","1) This field is mandatory.\n2) Only numeric value allowed.\n3) Upto 2 decimal value allowed."]
["ShareOfProfitAndLossFromPartnershipFirmOrAssociationOfPersonsOrLimitedLiabilityPartnerships","Share of profit and loss from partnership firm or association of persons or limited liability partnerships","xbrli:monetaryItemType","duration","1) This field is mandatory.\n2) Only numeric value allowed.\n3) Upto 2 decimal value allowed."]
["AdjustmentsToProfitLoss","Total adjustments to profit (loss)","xbrli:monetaryItemType","duration","1) This field is mandatory.\n2) Only numeric value allowed.\n3) Upto 2 decimal value allowed."]
["AdjustmentsForDecreaseIncreaseInInventories","Adjustments for decrease (increase) in inventories","xbrli:monetaryItemType","duration","1) This field is mandatory.\n2) Only numeric value allowed.\n3) Upto 2 decimal value allowed."]
["AdjustmentsForDecreaseIncreaseInTradeReceivables","Adjustments for decrease (increase) in trade receivables","xbrli:monetaryItemType","duration","1) This field is mandatory.\n2) Only numeric value allowed.\n3) Upto 2 decimal value allowed."]
["AdjustmentsForDecreaseIncreaseInOtherCurrentAssets","Adjustments for decrease (increase) in other current assets","xbrli:monetaryItemType","duration","1) This field is mandatory.\n2) Only numeric value allowed.\n3) Upto 2 decimal value allowed."]
["AdjustmentsForIncreaseDecreaseInTradePayables","Adjustments for increase (decrease) in trade payables","xbrli:monetaryItemType","duration","1) This field is mandatory.\n2) Only numeric value allowed.\n3) Upto 2 decimal value allowed."]
["AdjustmentsForIncreaseDecreaseInOtherCurrentLiabilities","Adjustments for increase (decrease) in other current liabilities","xbrli:monetaryItemType","duration","1) This field is mandatory.\n2) Only numeric value allowed.\n3) Upto 2 decimal value allowed."]
["AdjustmentsForProvisions","Adjustments for provisions","xbrli:monetaryItemType","duration","1) This field is mandatory.\n2) Only numeric value allowed.\n3) Upto 2 decimal value allowed."]
["AdjustmentsForWorkingCapital","Total adjustments for working capital","xbrli:monetaryItemType","duration","1) This field is mandatory.\n2) Only numeric value allowed.\n3) Upto 2 decimal value allowed."]
["AdjustmentsForReconcileProfitLoss","Total adjustments for reconcile profit (loss)","xbrli:monetaryItemType","duration","1) This field is mandatory.\n2) Only numeric value allowed.\n3) Upto 2 decimal value allowed."]
["TypeOfReportingPeriod","Reporting Type","in-capmkt-types:ReportingPeriodType","duration","1) This field is mandatory.\n2) Please select from dropdown only."]
["Integrated Finance Other than Banks"]
["General Info"]
["WhetherTheCompanyHasAnyRelatedParty","Whether the company has any related party?","xbrli:booleanItemType","duration","1) This field is mandatory, if \"Standalone\" selected in \"Nature of report standalone or consolidated\" and \"Second quarter\" or \"Fourth quarter\" or \"Half yearly\" or \"Yearly\" selected in \"Reporting Quarter\" field.\n2) Please select from dropdown only."]
["WhetherTheCompanyHasEnteredIntoAnyRelatedPartyTransactionDuringThePeriod","Whether the company has entered into any Related Party transaction during the selected half year for which it wants to submit disclosure?","xbrli:booleanItemType","duration","1) This field is mandatory, if \"Yes\" selected in \"Whether the company has any related party?\" field.\n2) Please select from dropdown only."]
["WeDeclareThatTheAcceptanceOfFixedDepositsByTheBanksOrNonBankingFinanceCompanyAreAtTheTermsUniformlyApplicableOrOfferedToAllShareholdersOrPublic","(I) We declare that the acceptance of fixed deposits by the bans/Non-Banking Finance Company are at the terms uniformly applicable/offered to all shareholders/public","in-capmkt-types:Declaration","duration","1) This field is mandatory.\n2) Please select from dropdown only."]
["WeDeclareThatTheScheduledCommercialBankAsPerRBICircularRBIDBR20151619Dated03March2016HasAllowedAdditionalInterestOfOnePerCentPerAnnumOverAndAboveTheRateOfInterestMentionedInTheScheduleOfInterestRatesOnSavings","(II) We declare that the scheduled commercial bank, as per RBI circular RBI/DBR/2015-16/19 dated March 03, 2016, has allowed additional interest of one per cent per annum, over and above the rate of interest mentioned in the schedule of interest rates on savings or a term deposits of bank’s staff and their exclusive associations as well as on deposits of Chairman, Chairman & Managing Director, Executive Director or such other Executives appointed for a fixed tenure.","in-capmkt-types:Declaration","duration","1) This field is mandatory.\n2) Please select from dropdown only."]
["WhetherTheCompanyIsAHighValueDebtListedEntityAccordingTo1AOfRegulation15","(III) Whether the company is a ‘high value debt listed entity’ according to regulation 15 (1A)?","xbrli:booleanItemType","instant","1) This field is mandatory.\n2) Please select from dropdown only."]
["IfTheCompanyIsAHighValueDebtListedEntityAccordingTo1AOfRegulation15ThenWhetherComplyingWithProvisoToSubReguation9OfRegulation23","(a) If answer to above question is Yes, whether complying with proviso to regulation 23 (9), i.e., submitting RPT disclosures on the day of results publication?","xbrli:booleanItemType","duration","1) This field is mandatory, if \"Yes\" selected in \"(III) Whether the company is a ‘high value debt listed entity’ according to regulation 15 (1A)?\" field.\n2) Please select from dropdown only."]
["TheReasonForNotComplyingWithProvisoToSubReguation9OfRegulation23","(b) If answer to above question is No, please explain the reason for not complying.","nonnum:textBlockItemType","duration","This field is mandatory, if \"No\" selected in \"(a) If answer to above question is Yes, whether complying with proviso to regulation 23 (9), i.e., submitting RPT disclosures on the day of results publication?\" field."]
["WhetherTheUpdatedRelatedPartyTransactionsPolicyHasBeenUploadedOnTheWebsiteOfTheCompanyInComplianceWithRegulation23","Whether the updated Related Party Transactions (RPT) Policy (in compliance with Reg. 23 of SEBI LODR) has been uploaded on the website of the Company?","xbrli:booleanItemType","duration","1) This field is mandatory.\n2) Please select from dropdown only."]
["LatestDateOnWhichRelatedPartyTransactionsPolicyIsUpdated","Latest Date on which RPT policy is updated","xbrli:dateItemType","duration","1) This field is mandatory, if \"Yes\" selected in \"Whether the updated Related Party Transactions (RPT) Policy (in compliance with Reg. 23 of SEBI LODR) has been uploaded on the website of the Company?\" field.\n2) Date should be less than or equal to current date.\n3) Enter date in \"DD-MM-YYYY\" format.\n4) Enter a valid date."]
["WebsiteLinkForUpdatedRelatedPartyTransactionsPolicyOfTheCompany","Indicate Company website link for updated RPT policy of the Company","xbrli:anyURIItemType","duration","This field is mandatory, if \"Yes\" selected in \"Whether the updated Related Party Transactions (RPT) Policy (in compliance with Reg. 23 of SEBI LODR) has been uploaded on the website of the Company?\" field."]
["WhetherStatementOnDeviationOrVariationForProceedsOfPublicIssueOrRightIssueOrPreferentialIssueOrQIPEtcIsApplicableToTheCompanyForTheCurrentQuarter","Whether statement on deviation or variation for proceeds of public issue, rights issue, preferential issue, qualified institutions placement etc. is applicable to the company for the current quarter?","xbrli:booleanItemType","duration","1) This field is mandatory, if \"Standalone\" selected in \"Nature of report standalone or consolidated\" field.\n2) Please select from dropdown only."]
["NumberOfStatementsOfDeviationForTheCurrentQuarter","No. of times funds raised during the quarter","xbrli:positiveIntegerItemType","duration","1) This field is mandatory, if \"Yes\" selected in \"Whether statement on deviation or variation for proceeds of public issue, rights issue, preferential issue, qualified institutions placement etc. is applicable to the company for the current quarter?\" field.\n2) Please select \"No. of times funds raised during the QTR\" between 1 to 10.\n3) Value should be greater than Zero."]
["WhetherTheDisclosureForTheDefaultOnLoansAndDebtSecuritiesIsApplicableToTheEntity","Whether the disclosure for the Default on Loans and Debt Securities is applicable to the entity?","xbrli:booleanItemType","duration","1) This field is mandatory, if \"Standalone\" selected in \"Nature of report standalone or consolidated\" field.\n2) Please select from dropdown only."]
["NoteForNonApplicabilityOfTheDisclosureForTheDefaultOnLoansAndDebtSecuritiesToTheEntity","Notes for Whether the disclosure for the Default on Loans and Debt Securities is applicable to the entity","nonnum:textBlockItemType","duration","This field is mandatory, if \"No\" selected in \"Whether the disclosure for the Default on Loans and Debt Securities is applicable to the entity?\" field."]
[null,"Whether results are audited or unaudited for the quarter ended",null,null,"1) This field is mandatory.\n2) Please select from dropdown only."]
[null,"Whether results are audited or unaudited for the Year to date for current period ended/year ended",null,null,"1) This field is mandatory.\n2) Please select from dropdown only."]
["Financial Results"]
["RemarksForDebtEquityRatio","Remarks for Debt equity ratio","nonnum:textBlockItemType","duration","This field is mandatory, if value is less than -100 or greater than 100 in \"Debt equity ratio\"."]
["RemarksForDebtServiceCoverageRatio","Remarks for Debt service coverage ratio","nonnum:textBlockItemType","duration","This field is mandatory, if value is less than -100 or greater than 100 in \"Debt service coverage ratio\"."]
["RemarksForInterestServiceCoverageRatio","Remarks for Interest service coverage ratio","nonnum:textBlockItemType","duration","This field is mandatory, if value is less than -100 or greater than 100 in \"Interest service coverage ratio\"."]
["RPT"]
["NameOfListedEntityOrSubsidiaryEnteringIntoTheTransaction","Name","xbrli:stringItemType","duration","1) This is a mandatory field.\n2) 'Name of listed entity or subsidiary' and 'Name of counter party' should be different."]
["PANOfListedEntityOrSubsidiaryEnteringIntoTheTransaction","PAN","in-capmkt-types:PermanentAccountNumber","duration","1) This is a mandatory field.\n2) Please enter valid PAN number [A-Z][A-Z][A-Z][A-Z][A-Z][0-9][0-9][0-9][0-9][A-Z]\n3) 'PAN of listed entity or subsidiary' and 'PAN of counter party' should be different."]
["NameOfCounterParty","Name","xbrli:stringItemType","duration","1) This is a mandatory field.\n2) 'Name of listed entity or subsidiary' and 'Name of counter party' should be different."]
["PANOfCounterParty","PAN","in-capmkt-types:PermanentAccountNumber","duration","1) This is a mandatory field.\n2) Please enter valid PAN number [A-Z][A-Z][A-Z][A-Z][A-Z][0-9][0-9][0-9][0-9][A-Z]\n3) 'PAN of listed entity or subsidiary' and 'PAN of counter party' should be different."]
["RelationshipOfTheCounterpartyWithTheListedEntityOrItsSubsidiary","Relationship of the counterparty with the listed entity or its subsidiary","xbrli:stringItemType","duration","This is a mandatory field."]
["TypeOfRelatedPartyTransaction","Type of related party transaction","in-capmkt-types:TypeOfTransaction","duration","1) This is a mandatory field.\n2) Please select only dropdown menu."]
["DetailsOfOtherRelatedPartyTransaction","Details of  other related party transaction","xbrli:stringItemType","duration","This is a mandatory field."]
["ValueOfTheRelatedPartyTransactionAsApprovedByTheAuditCommittee","Value of the related party transaction as approved by the audit committee","xbrli:monetaryItemType","duration","1) This field is mandatory.\n2) Only numeric value allowed.\n3) Upto 2 decimal value allowed."]
["RemarksOnApprovalByAuditCommittee","Remarks on approval by audit committee","xbrli:stringItemType","duration","This is a mandatory field."]
["ValueOfTheRelatedPartyTransactionRatifiedByTheAuditCommittee","Value of the related party transaction ratified by the audit committee","xbrli:monetaryItemType","duration","1) This field is mandatory, if entered date in \"Date of Audit Committee Meeting where the ratification was approved\" field.\n2) Only numeric value allowed.\n3) Upto 2 decimal value allowed."]
["DateOfAuditCommitteeMeetingWhereTheRatificationWasApproved","Date of Audit Committee Meeting where the ratification was approved","xbrli:dateItemType","duration","1) This field is mandatory, if entered value in \"Value of the related party transaction ratified by the audit committee\" field.\n2) Enter date in \"DD-MM-YYYY\" format.\n3) Enter a valid date."]
["AmountOfRelatedPartyTransactionDuringTheReportingPeriod","Value of transaction during the reporting period","xbrli:monetaryItemType","duration","1) This field is mandatory.\n2) Only numeric value allowed.\n3) Upto 2 decimal value allowed."]
["AmountOfRelatedPartyTransaction","Opening balance","xbrli:monetaryItemType","instant","1) This field is mandatory.\n2) Only numeric value allowed.\n3) Upto 2 decimal value allowed."]
["AmountOfRelatedPartyTransaction","Closing balance","xbrli:monetaryItemType","instant","1) This field is mandatory.\n2) Only numeric value allowed.\n3) Upto 2 decimal value allowed."]
["NatureOfFinancialIndebtedness","Nature of indebtedness (loan/ issuance of debt/ any other etc.)","in-capmkt-types:NatureOfIndebtedness","duration","1) This is a mandatory field.\n2) Please select only dropdown menu."]
["DetailsOfOtherIndebtedness","Details of other indebtedness","xbrli:stringItemType","duration","This is a mandatory field."]
["CostOfFinancialIndebtedness","Cost","num:percentItemType","duration","1) This field is mandatory.\n2) Only numeric value allowed.\n3) Upto 2 decimal value allowed."]
["TenureOfFinancialIndebtedness","Tenure","xbrli:stringItemType","duration","This is a mandatory field."]
["NatureOfTheLoansOrInterCorporateDepositsOrAdvancesOrInvestments","Nature (loan/ advance/ intercorporate deposit/ investment)","in-capmkt-types:NatureLoansOrInterCorporateDepositsOrAdvancesOrInvestments","duration","1) This is a mandatory field.\n2) Please select only dropdown menu."]
["InterestRateOfLoansOrInterCorporateDepositsOrAdvancesOrInvestments","Interest Rate (%)","num:percentItemType","duration","1) This field is mandatory.\n2) Only numeric value allowed.\n3) Upto 2 decimal value allowed."]
["TenureOfLoansOrInterCorporateDepositsOrAdvancesOrInvestments","Tenure","xbrli:stringItemType","duration","This is a mandatory field."]
["TypeOfLoansOrInterCorporateDepositsOrAdvancesOrInvestmentsSecuredOrUnsecured","Secured/ unsecured","in-capmkt-types:SecuredOrUnsecured","duration","1) This is a mandatory field.\n2) Please select only dropdown menu."]
["PurposeForWhichTheFundsWillBeUtilisedByTheUltimateRecipientOfFundsForEndusage","Purpose for which the funds will be utilised by the ultimate recipient of funds (endusage)","xbrli:stringItemType","duration","This is a mandatory field."]
["RelatedPartyTransactionExplanatory","Notes","nonnum:textBlockItemType","duration","This is a mandatory field."]
["AmountOfRelatedPartyTransactionDuringTheReportingPeriod",null,"xbrli:monetaryItemType","duration"]
["Impact Of Audit Qualification"]
["WhetherResultsAreAuditedOrUnauditedForImpactOfAuditQualification","Whether results are audited or unaudited for the Year to date for current period ended/year ended","in-capmkt-types:AuditedUnaudited","duration"]
["OpinionOfAuditors","Auditor's opinion","in-capmkt-types:TypeOfQualification","duration","1) This field is mandatory, if \"Statement on impact of audit qualification\" selected in \"Declaration of unmodified opinion or statement on impact of audit qualification\" field in \"General Info\" sheet.\n2) Please select from dropdown only."]
["DeclarationPursuantToClauseDOfSubRegulation3OfRegulation33OfSEBILODRRegulation2015","Declaration pursuant to Regulation 33 (3) (d) of SEBI (LODR) Regulation, 2015:\nThe company declares that its Statutory Auditor/s have issued an Audit Report with unmodified opinion for the period on Standalone results","xbrli:booleanItemType","duration","1) This field is mandatory, if \"Declaration of unmodified opinion\" selected in \"Declaration of unmodified opinion or statement on impact of audit qualification\" field in \"General Info\" sheet.\n2) Please select from dropdown only."]
["AuditorsFirmName","Audit firm's name","xbrli:stringItemType","duration","This field is mandatory."]
["WhetherTheFirmHoldsAValidPeerReviewCertificateIssuedByPeerReviewBoardOfICAI","Whether the firm holds a valid peer review certificate issued by Peer Review Board of ICAI","xbrli:booleanItemType","duration","1) This field is mandatory.\n2) Please select from dropdown only."]
["ValidityDateOfCertificate","Certificate valid upto","xbrli:dateItemType","duration","1) This field is mandatory, if \"Yes\" selected in \"Whether the firm holds a valid peer review certificate issued by Peer Review Board of ICAI\" field.\n2) Enter date in \"DD-MM-YYYY\" format.\n3) Enter a valid date."]
["Financial Details"]
["TurnoverOrTotalIncome","Turnover / Total income","xbrli:monetaryItemType","duration","1) This field is mandatory.\n2) Only numeric value allowed.\n3) Upto 2 decimal value allowed."]
["TotalExpenditure","Total Expenditure","xbrli:monetaryItemType","duration","1) This field is mandatory.\n2) Only numeric value allowed.\n3) Upto 2 decimal value allowed."]
["NetProfitAfterTax","Net Profit/(Loss)","xbrli:monetaryItemType","duration","1) This field is mandatory.\n2) Only numeric value allowed.\n3) Upto 2 decimal value allowed."]
["EarningPerShare","Earnings Per Share","num:perShareItemType","duration","1) This field is mandatory.\n2) Only numeric value allowed.\n3) Upto 2 decimal value allowed."]
["Assets","Total Assets","xbrli:monetaryItemType","instant","1) This field is mandatory.\n2) Only numeric value allowed.\n3) Upto 2 decimal value allowed."]
["Liabilities","Total Liabilities","xbrli:monetaryItemType","instant","1) This field is mandatory.\n2) Only numeric value allowed.\n3) Upto 2 decimal value allowed."]
["NetWorth","Net Worth","xbrli:monetaryItemType","duration","1) This field is mandatory.\n2) Only numeric value allowed.\n3) Upto 2 decimal value allowed."]
["DetailsOfOtherFinancialItem","Particulars","xbrli:stringItemType","duration","This field is mandatory."]
["AmountOfOtherFinancialItem","Audited Figures (as reported before adjusting for qualifications)","xbrli:monetaryItemType","duration","1) This field is mandatory.\n2) Only numeric value allowed.\n3) Upto 2 decimal value allowed."]
[null,"Adjusted Figures (audited figures after adjusting for qualifications)",null,null,"1) This field is mandatory.\n2) Only numeric value allowed.\n3) Upto 2 decimal value allowed."]
["Audit Qualifications"]
["DetailsOfAuditQualificationExplanatory","Details of Audit Qualification","nonnum:textBlockItemType","duration","This field is mandatory."]
["TypeOfAuditQualification","Type of Audit Qualification","in-capmkt-types:TypeOfQualification","duration","1) This field is mandatory.\n2) Please select from dropdown only."]
["FrequencyOfAuditQualification","Frequency of qualification","in-capmkt-types:FrequencyOfQualification","duration","1) This field is mandatory.\n2) Please select from dropdown only."]
["AuditQualificationsWhereTheImpactIsQuantifiedByTheAuditorManagementsViewsExplanatory","Management's Views","nonnum:textBlockItemType","duration","This field is mandatory."]
["ManagementsEstimationOnTheImpactOfAuditQualificationExplanatory","(i) Management's estimation on the impact of audit qualification","nonnum:textBlockItemType","duration","This field is mandatory."]
["ReasonsIfManagementIsUnableToEstimateTheImpactExplanatory","(ii) If management is unable to estimate the impact, reasons for the same","nonnum:textBlockItemType","duration","This field is mandatory."]
["AuditorsCommentsOnManagementsEstimateOrUnableToEstimateOnTheImpactOfAuditQualificationExplanatory","Auditors' Comments on (i) or (ii) above","nonnum:textBlockItemType","duration","This field is mandatory."]
["Signatories Details"]
["NameOfCEOOrManagingDirectorAsSignatoryOfImpactOfAuditQualification","Name of CEO / Managing director","xbrli:stringItemType","duration","This field is mandatory."]
["NameOfCFOAsASignatoryOfImpactOfAuditQualification","Name of CFO","xbrli:stringItemType","duration","This field is mandatory."]
["NameOfChairmanOfAuditCommitteeAsASignatoryOfImpactOfAuditQualification","Name of audit committee chairman","xbrli:stringItemType","duration","This field is mandatory."]
["NameOfStatutoryAuditorAsASignatoryOfImpactOfAuditQualification","Name of statutory auditor","xbrli:stringItemType","duration","This field is mandatory."]
["NameAndDesignationOfOtherPersonAsASignatoryOfImpactOfAuditQualification","Name of other signatory, if any, with designation","xbrli:stringItemType","duration","This field is mandatory."]
["PlaceOfSignatoryOfImpactOfAuditQualification","Place","xbrli:stringItemType","duration","This field is mandatory."]
["DateOfSignatoryOfImpactOfAuditQualification","Date","xbrli:dateItemType","duration","1) This field is mandatory.\n2) Date should be less than or equal to system date."]
["SOD"]
["ModeOfFundRaising","Mode of Fund Raising","in-capmkt-types:ModeOfFundRaising","instant","1) This field is mandatory.\n2) Please select from dropdown only."]
["DescriptionOfModeOfFundRaising","Description of mode of fund raising\n(Applicable in case of others is selected)","xbrli:stringItemType","instant","1) This field is mandatory, if \"Others\" selected in \"Mode of Fund Raising\" field."]
["DateOfFundsRaising","Date of Raising Funds","xbrli:dateItemType","instant","1) This field is mandatory.\n2) Future date is not allowed.\n3) Enter date in \"DD-MM-YYYY\" format.\n4) Enter a valid date."]
["AmountRaised","Amount Raised","xbrli:monetaryItemType","instant","1) This field is mandatory.\n2) Only numeric value allowed.\n3) Upto 2 decimal value allowed."]
["DateOfEndOfReportingPeriod","Report filed for Quarter ended","xbrli:dateItemType","duration","This field is mandatory."]
["MonitoringAgency","Monitoring Agency","xbrli:booleanItemType","duration","1) This field is mandatory.\n2) Please select from dropdown only."]
["NameOfMonitoringAgency","Monitoring Agency Name, if applicable","xbrli:stringItemType","instant","This field is mandatory, if \"Applicable\" selected in \"Monitoring Agency\" field."]
["IsThereADeviationOrVariationInUseOfFundsRaised","Is there a Deviation / Variation in use of funds raised","xbrli:booleanItemType","duration","1) This field is mandatory.\n2) Please select from dropdown only."]
["WhetherTheDeviationOrVariationInUseOfFundsIsPursuantToChangeInTermsOfAContractOrObjectsWhichWasApprovedByTheShareholders","If yes, whether the same is pursuant to change in terms of a contract or objects, which was approved by the shareholders","xbrli:booleanItemType","duration","This field is mandatory, if \"Yes\" selected in \"Is there a Deviation / Variation in use of funds raised\" field."]
["DateOfShareholderApproval","If Yes, Date of shareholder Approval","xbrli:dateItemType","instant","1) This field is mandatory, if \"Yes\" selected in \"If yes, whether the same is pursuant to change in terms of a contract or objects, which was approved by the shareholders\" field.\n2) Future date is not allowed.\n3) Enter date in \"DD-MM-YYYY\" format.\n4) Enter a valid date."]
["ExplanationForTheDeviationOrVariation","Explanation for the Deviation / Variation","xbrli:stringItemType","instant","This field is mandatory."]
["CommentsOfTheAuditCommitteeAfterReview","Comments of the Audit Committee after review","xbrli:stringItemType","instant","This field is mandatory."]
["CommentsOfTheAuditors","Comments of the auditors, if any","xbrli:stringItemType","instant","This field is mandatory."]
["OriginalObject","Original Object","xbrli:stringItemType","instant","This field is mandatory."]
["ModifiedObject","Modified Object, if any","xbrli:stringItemType","instant","This field is mandatory."]
["OriginalAllocation","Original Allocation","xbrli:monetaryItemType","instant","1) This field is mandatory.\n2) Only numeric value allowed.\n3) Upto 2 decimal value allowed."]
["ModifiedAllocation","Modified allocation, if any","xbrli:monetaryItemType","instant","1) This field is mandatory.\n2) Only numeric value allowed.\n3) Upto 2 decimal value allowed."]
["FundsUtilised","Funds Utilised","xbrli:monetaryItemType","instant","1) This field is mandatory.\n2) Only numeric value allowed.\n3) Upto 2 decimal value allowed."]
["AmountOfDeviationOrVariationForTheQuarterAccordingToApplicableObject","Amount of Deviation/Variation for the quarter according to applicable object","xbrli:monetaryItemType","instant","1) This field is mandatory.\n2) Only numeric value allowed.\n3) Upto 2 decimal value allowed."]
["DisclosureNotesOnObjectsForWhichFundsHaveBeenRaisedAndWhereThereHasBeenADeviation","Remarks if any","nonnum:textBlockItemType","instant","This field is mandatory."]
["NameOfSignatoryOfStatementOfDeviationOrVariationInUtilisationOfFundsRaised","Name of signatory","xbrli:stringItemType","duration","This field is mandatory."]
["DesignationOfPersonOfStatementOfDeviationOrVariationInUtilisationOfFundsRaised","Designation of person","in-capmkt-types:Designation","duration","1) This field is mandatory.\n2) Please select from dropdown only."]
["PlaceOfStatementOfDeviationOrVariationInUtilisationOfFundsRaised","Place","xbrli:stringItemType","duration","This field is mandatory."]
["DateOfStatementOfDeviationOrVariationInUtilisationOfFundsRaised","Date","xbrli:dateItemType","instant","1) This field is mandatory.\n2) Date should be less than or equal to system date."]
["OS Default on Loans & Debt Sec."]
["TotalOutstandingAmountOfLoansOrRevolvingFacilitiesAtTheEndOfPeriod","Total amount outstanding as on date","xbrli:monetaryItemType","instant","1) This field is mandatory.\n2) Only numeric value allowed.\n3) Upto 2 decimal value allowed."]
["AmountOfDefaultOutOfTotalOutstandingAmountOfLoansOrRevolvingFacilitiesAtTheEndOfPeriod","Of the total amount outstanding, amount of default as on date","xbrli:monetaryItemType","instant","1) This field is mandatory.\n2) Only numeric value allowed.\n3) Upto 2 decimal value allowed."]
["TotalOutstandingAmountOfUnlistedDebtSecuritiesAtTheEndOfPeriod","Total amount outstanding as on date","xbrli:monetaryItemType","instant","1) This field is mandatory.\n2) Only numeric value allowed.\n3) Upto 2 decimal value allowed."]
["AmountOfDefaultOutOfTotalOutstandingAmountOfUnlistedDebtSecuritiesAtTheEndOfPeriod","Of the total amount outstanding, amount of default as on date","xbrli:monetaryItemType","instant","1) This field is mandatory.\n2) Only numeric value allowed.\n3) Upto 2 decimal value allowed."]
["AmountOfTotalFinancialIndebtednessOfTheListedEntityIncludingShortTermAndLongTermDebtAtTheEndOfPeriod","Total financial indebtedness of the listed entity including short-term\nand long-term debt","xbrli:monetaryItemType","instant","1) This field is mandatory.\n2) Only numeric value allowed.\n3) Upto 2 decimal value allowed."]
["RemarksForTotalOutstandingOfLoansOrRevolvingFacilitiesAtTheEndOfPeriod",null,"nonnum:textBlockItemType","duration"]
["RemarksForDefaultOutOfTotalOutstandingAmountOfLoansOrRevolvingFacilitiesAtTheEndOfPeriod",null,"nonnum:textBlockItemType","duration"]
["RemarksForTotalOutstandingUnlistedDebtSecuritiesAtTheEndOfPeriod",null,"nonnum:textBlockItemType","duration"]
["RemarksForDefaultOutOfTotalOutstandingAmountOfUnlistedDebtSecuritiesAtTheEndOfPeriod",null,"nonnum:textBlockItemType","duration"]
["RemarksForTotalFinancialIndebtednessOfTheListedEntityIncludingShortTermAndLongTermDebtAtTheEndOfPeriod",null,"nonnum:textBlockItemType","duration"]
["New addition in Asset Liabilities"]
["TradePayables","Total Trade payable","xbrli:monetaryItemType","instant","1) This field is mandatory.\n2) Only numeric value allowed.\n3) Upto 2 decimal value allowed."]
["RemarksForTotalOutstandingUnlistedDebtSecuritiesAtTheEndOfPeriod",null,"nonnum:textBlockItemType","duration"]
["RemarksForDefaultOutOfTotalOutstandingAmountOfUnlistedDebtSecuritiesAtTheEndOfPeriod",null,"nonnum:textBlockItemType","duration"]
["RemarksForTotalFinancialIndebtednessOfTheListedEntityIncludingShortTermAndLongTermDebtAtTheEndOfPeriod",null,"nonnum:textBlockItemType","duration"]
["New addition in Asset Liabilities"]
["TradePayables","Total Trade payable","xbrli:monetaryItemType","instant","1) This field is mandatory.\n2) Only numeric value allowed.\n3) Upto 2 decimal value allowed."]

{"sheet":"TextBlock","index":14,"n_rows":0,"n_cols":0,"rows_kept":0,"cut":false,"hidden":true,"merged":[]}